Workbook

Sheet Main
B10: 2018-10-15
B12: Sheet No. | C12: Template Name | D12: Summary
B13: 1 | C13: Future Intra | D13: For Intraday trading in F&O segment
B14: 2 | C14: Cash Intra | D14: For Intraday trading in cash market segment
B15: 3 | C15: Mid-cap Intra | D15: For Intraday trading in Mid-cap stocks
B16: 4 | C16: Bulk Deals | D16: Reveals Bulk Deals carried on NSE & BSE
B17: 5 | C17: Call Tracker

Sheet Future Intra
M5: Back to Main Page
A6: FOR INTRA DAY TRADING | L6: =Main!B10 -> 2018-10-15
A9: Sr.no | B9: Sector | C9: Scrip | D9: CLOSE RATE | E9: Pivot Point | F9: Supports | I9: Resistances
B10: Sector | D10: Point | E10: Point | F10: S1 | G10: S2 | H10: S3 | I10: R1 | J10: R2 | K10: R3 | L10: HIGH | M10: LOW | N10: OI | O10: % Change in OI
A11: 1 | B11: Index | C11: BANKNIFTY | D11: 25406.95 | E11: 25307.18 | F11: 25099.82 | G11: 24792.68 | H11: 24585.32 | I11: 25614.32 | J11: 25821.68 | K11: 26128.82 | L11: 25514.55 | M11: 25000.05 | N11: 1529320 | O11: 5.11%
A12: 2 | B12: Index | C12: NIFTY | D12: 10486.55 | E12: 10439.12 | F12: 10369.33 | G12: 10252.12 | H12: 10182.33 | I12: 10556.33 | J12: 10626.12 | K12: 10743.33 | L12: 10508.9 | M12: 10321.9 | N12: 21503850 | O12: -1.88%
A13: 3 | B13: Index | C13: NIFTYCPSE | D13: 2315.55 | E13: 771.85 | F13: 1543.70 | G13: 771.85 | H13: 1543.70 | I13: 1543.70 | J13: 771.85 | K13: 1543.70 | L13: 0 | M13: 0 | N13: 0 | O13: 0.00%
A14: 4 | B14: Index | C14: NIFTYINFRA | D14: 3177.55 | E14: 1059.18 | F14: 2118.37 | G14: 1059.18 | H14: 2118.37 | I14: 2118.37 | J14: 1059.18 | K14: 2118.37 | L14: 0 | M14: 0 | N14: 0 | O14: 0.00%
A15: 5 | B15: Index | C15: NIFTYIT | D15: 14561.00 | E15: 14591.33 | F15: 14416.67 | G15: 14272.33 | H15: 14097.67 | I15: 14735.67 | J15: 14910.33 | K15: 15054.67 | L15: 14766 | M15: 14447 | N15: 36850 | O15: 0.14%
A16: 6 | B16: Index | C16: NIFTYMID50 | D16: 4559.25 | E16: 1519.75 | F16: 3039.50 | G16: 1519.75 | H16: 3039.50 | I16: 3039.50 | J16: 1519.75 | K16: 3039.50 | L16: 0 | M16: 0 | N16: 725890 | O16: 0.00%
A17: 7 | B17: Index | C17: NIFTYPSE | D17: 3599.05 | E17: 1199.68 | F17: 2399.37 | G17: 1199.68 | H17: 2399.37 | I17: 2399.37 | J17: 1199.68 | K17: 2399.37 | L17: 0 | M17: 0 | N17: 0 | O17: 0.00%
A18: 8 | B18: Cement | C18: ACC | D18: 1507.20 | E18: 1490.57 | F18: 1468.53 | G18: 1429.87 | H18: 1407.83 | I18: 1529.23 | J18: 1551.27 | K18: 1589.93 | L18: 1512.6 | M18: 1451.9 | N18: 1020400 | O18: -2.19%
A19: 9 | B19: Others | C19: ADANIENT | D19: 144.45 | E19: 143.63 | F19: 141.27 | G19: 138.08 | H19: 135.72 | I19: 146.82 | J19: 149.18 | K19: 152.37 | L19: 146 | M19: 140.45 | N19: 40036000 | O19: 0.10%
A20: 10 | B20: Others | C20: ADANIPORTS | D20: 324.65 | E20: 323.97 | F20: 319.33 | G20: 314.02 | H20: 309.38 | I20: 329.28 | J20: 333.92 | K20: 339.23 | L20: 328.6 | M20: 318.65 | N20: 13467500 | O20: 3.84%
A21: 11 | B21: Power | C21: ADANIPOWER | D21: 32.75 | E21: 32.48 | F21: 30.72 | G21: 28.68 | H21: 26.92 | I21: 34.52 | J21: 36.28 | K21: 38.32 | L21: 34.25 | M21: 30.45 | N21: 173520000 | O21: 4.20%
A22: 12 | B22: Pharma | C22: AJANTPHARM | D22: 1027.15 | E22: 1026.38 | F22: 1009.07 | G22: 990.98 | H22: 973.67 | I22: 1044.47 | J22: 1061.78 | K22: 1079.87 | L22: 1043.7 | M22: 1008.3 | N22: 547500 | O22: 0.18%
A23: 13 | B23: Banking | C23: ALBK | D23: 36.50 | E23: 36.35 | F23: 35.85 | G23: 35.20 | H23: 34.70 | I23: 37.00 | J23: 37.50 | K23: 38.15 | L23: 36.85 | M23: 35.7 | N23: 18128000 | O23: 2.62%
A24: 14 | B24: Automobile | C24: AMARAJABAT | D24: 734.95 | E24: 730.62 | F24: 721.23 | G24: 707.52 | H24: 698.13 | I24: 744.33 | J24: 753.72 | K24: 767.43 | L24: 740 | M24: 716.9 | N24: 1342600 | O24: -0.83%
A25: 15 | B25: Cement | C25: AMBUJACEM | D25: 219.25 | E25: 216.43 | F25: 212.22 | G25: 205.18 | H25: 200.97 | I25: 223.47 | J25: 227.68 | K25: 234.72 | L25: 220.65 | M25: 209.4 | N25: 12277500 | O25: 1.13%
A26: 17 | B26: Others | C26: APOLLOHOSP | D26: 1129.80 | E26: 1121.60 | F26: 1108.20 | G26: 1086.60 | H26: 1073.20 | I26: 1143.20 | J26: 1156.60 | K26: 1178.20 | L26: 1135 | M26: 1100 | N26: 1019000 | O26: 1.49%
A27: 18 | B27: Automobile | C27: APOLLOTYRE | D27: 217.00 | E27: 215.33 | F27: 211.17 | G27: 205.33 | H27: 201.17 | I27: 221.17 | J27: 225.33 | K27: 231.17 | L27: 219.5 | M27: 209.5 | N27: 10923000 | O27: -5.23%
A28: 19 | B28: Textile | C28: ARVIND | D28: 330.60 | E28: 328.82 | F28: 321.38 | G28: 312.17 | H28: 304.73 | I28: 338.03 | J28: 345.47 | K28: 354.68 | L28: 336.25 | M28: 319.6 | N28: 6530000 | O28: -0.79%
A29: 20 | B29: Automobile | C29: ASHOKLEY | D29: 116.10 | E29: 115.92 | F29: 112.83 | G29: 109.57 | H29: 106.48 | I29: 119.18 | J29: 122.27 | K29: 125.53 | L29: 119 | M29: 112.65 | N29: 57976000 | O29: -0.29%
A30: 21 | B30: FMCG | C30: ASIANPAINT | D30: 1258.85 | E30: 1252.52 | F30: 1241.18 | G30: 1223.52 | H30: 1212.18 | I30: 1270.18 | J30: 1281.52 | K30: 1299.18 | L30: 1263.85 | M30: 1234.85 | N30: 5277600 | O30: 3.34%
A31: 22 | B31: Pharma | C31: AUROPHARMA | D31: 738.85 | E31: 746.02 | F31: 726.03 | G31: 713.22 | H31: 693.23 | I31: 758.83 | J31: 778.82 | K31: 791.63 | L31: 766 | M31: 733.2 | N31: 20923000 | O31: 3.19%
A32: 23 | B32: Banking | C32: AXISBANK | D32: 587.45 | E32: 591.28 | F32: 578.72 | G32: 569.98 | H32: 557.42 | I32: 600.02 | J32: 612.58 | K32: 621.32 | L32: 603.85 | M32: 582.55 | N32: 39170400 | O32: 1.21%
A33: 24 | B33: Automobile | C33: BAJAJ-AUTO | D33: 2632.75 | E33: 2609.80 | F33: 2562.60 | G33: 2492.45 | H33: 2445.25 | I33: 2679.95 | J33: 2727.15 | K33: 2797.30 | L33: 2657 | M33: 2539.65 | N33: 2476250 | O33: -4.03%
A34: 25 | B34: Others | C34: BAJAJFINSV | D34: 5809.85 | E34: 5806.93 | F34: 5688.87 | G34: 5567.88 | H34: 5449.82 | I34: 5927.92 | J34: 6045.98 | K34: 6166.97 | L34: 5925 | M34: 5685.95 | N34: 693625 | O34: -0.09%
A35: 26 | B35: Finance | C35: BAJFINANCE | D35: 2292.15 | E35: 2275.42 | F35: 2226.73 | G35: 2161.32 | H35: 2112.63 | I35: 2340.83 | J35: 2389.52 | K35: 2454.93 | L35: 2324.1 | M35: 2210 | N35: 7314500 | O35: -1.91%
A36: 27 | B36: Others | C36: BALKRISIND | D36: 1055.40 | E36: 1050.45 | F36: 1031.90 | G36: 1008.40 | H36: 989.85 | I36: 1073.95 | J36: 1092.50 | K36: 1116.00 | L36: 1069 | M36: 1026.95 | N36: 1768800 | O36: -3.83%
A37: 29 | B37: Banking | C37: BANKBARODA | D37: 96.55 | E37: 96.42 | F37: 94.98 | G37: 93.42 | H37: 91.98 | I37: 97.98 | J37: 99.42 | K37: 100.98 | L37: 97.85 | M37: 94.85 | N37: 85188000 | O37: -0.36%
A38: 30 | B38: Banking | C38: BANKINDIA | D38: 77.50 | E38: 77.65 | F38: 76.50 | G38: 75.50 | H38: 74.35 | I38: 78.65 | J38: 79.80 | K38: 80.80 | L38: 78.8 | M38: 76.65 | N38: 19956000 | O38: 0.97%
A39: 31 | B39: FMCG | C39: BATAINDIA | D39: 923.30 | E39: 926.93 | F39: 909.37 | G39: 895.43 | H39: 877.87 | I39: 940.87 | J39: 958.43 | K39: 972.37 | L39: 944.5 | M39: 913 | N39: 1793000 | O39: -1.57%
A40: 32 | B40: Capital_Goods | C40: BEL | D40: 85.65 | E40: 85.92 | F40: 84.48 | G40: 83.32 | H40: 81.88 | I40: 87.08 | J40: 88.52 | K40: 89.68 | L40: 87.35 | M40: 84.75 | N40: 29214900 | O40: -1.93%
A41: 33 | B41: Infrastructure | C41: BEML | D41: 596.15 | E41: 598.38 | F41: 587.77 | G41: 579.38 | H41: 568.77 | I41: 606.77 | J41: 617.38 | K41: 625.77 | L41: 609 | M41: 590 | N41: 1623500 | O41: 2.40%
A42: 34 | B42: Others | C42: BERGEPAINT | D42: 283.40 | E42: 282.07 | F42: 279.03 | G42: 274.67 | H42: 271.63 | I42: 286.43 | J42: 289.47 | K42: 293.83 | L42: 285.1 | M42: 277.7 | N42: 2094400 | O42: 4.04%
A43: 35 | B43: Finance | C43: BHARATFIN | D43: 1024.70 | E43: 1020.88 | F43: 1012.32 | G43: 999.93 | H43: 991.37 | I43: 1033.27 | J43: 1041.83 | K43: 1054.22 | L43: 1029.45 | M43: 1008.5 | N43: 5292500 | O43: 5.47%
A44: 36 | B44: Automobile | C44: BHARATFORG | D44: 575.65 | E44: 573.93 | F44: 561.87 | G44: 548.08 | H44: 536.02 | I44: 587.72 | J44: 599.78 | K44: 613.57 | L44: 586 | M44: 560.15 | N44: 6907200 | O44: -4.70%
A45: 37 | B45: Telecom | C45: BHARTIARTL | D45: 291.55 | E45: 290.33 | F45: 286.72 | G45: 281.88 | H45: 278.27 | I45: 295.17 | J45: 298.78 | K45: 303.62 | L45: 293.95 | M45: 285.5 | N45: 55930000 | O45: 4.68%
A46: 38 | B46: Capital_Goods | C46: BHEL | D46: 75.15 | E46: 75.32 | F46: 73.93 | G46: 72.72 | H46: 71.33 | I46: 76.53 | J46: 77.92 | K46: 79.13 | L46: 76.7 | M46: 74.1 | N46: 38160000 | O46: 1.50%
A47: 39 | B47: Pharma | C47: BIOCON | D47: 609.05 | E47: 610.35 | F47: 598.70 | G47: 588.35 | H47: 576.70 | I47: 620.70 | J47: 632.35 | K47: 642.70 | L47: 622 | M47: 600 | N47: 6884100 | O47: 0.95%
A48: 40 | B48: Automobile | C48: BOSCHLTD | D48: 18638.55 | E48: 18706.35 | F48: 18470.70 | G48: 18302.85 | H48: 18067.20 | I48: 18874.20 | J48: 19109.85 | K48: 19277.70 | L48: 18942 | M48: 18538.5 | N48: 121740 | O48: 0.57%
A49: 41 | B49: Oil_Gas | C49: BPCL | D49: 289.60 | E49: 289.10 | F49: 281.70 | G49: 273.80 | H49: 266.40 | I49: 297.00 | J49: 304.40 | K49: 312.30 | L49: 296.5 | M49: 281.2 | N49: 16077600 | O49: -5.50%
A50: 42 | B50: FMCG | C50: BRITANNIA | D50: 5759.55 | E50: 5726.12 | F50: 5661.98 | G50: 5564.42 | H50: 5500.28 | I50: 5823.68 | J50: 5887.82 | K50: 5985.38 | L50: 5790.25 | M50: 5628.55 | N50: 1346200 | O50: -0.53%
A51: 43 | B51: Pharma | C51: CADILAHC | D51: 378.45 | E51: 378.63 | F51: 374.47 | G51: 370.48 | H51: 366.32 | I51: 382.62 | J51: 386.78 | K51: 390.77 | L51: 382.8 | M51: 374.65 | N51: 9136000 | O51: 0.35%
A52: 44 | B52: Banking | C52: CANBK | D52: 231.15 | E52: 231.50 | F52: 228.25 | G52: 225.35 | H52: 222.10 | I52: 234.40 | J52: 237.65 | K52: 240.55 | L52: 234.75 | M52: 228.6 | N52: 8016000 | O52: 1.29%
A53: 45 | B53: Others | C53: CANFINHOME | D53: 245.15 | E53: 249.00 | F53: 238.60 | G53: 232.05 | H53: 221.65 | I53: 255.55 | J53: 265.95 | K53: 272.50 | L53: 259.4 | M53: 242.45 | N53: 5691250 | O53: 2.43%
A54: 46 | B54: Finance | C54: CAPF | D54: 493.90 | E54: 491.62 | F54: 485.43 | G54: 476.97 | H54: 470.78 | I54: 500.08 | J54: 506.27 | K54: 514.73 | L54: 497.8 | M54: 483.15 | N54: 6064800 | O54: -0.98%
A55: 47 | B55: Oil_Gas | C55: CASTROLIND | D55: 144.55 | E55: 144.22 | F55: 142.18 | G55: 139.82 | H55: 137.78 | I55: 146.58 | J55: 148.62 | K55: 150.98 | L55: 146.25 | M55: 141.85 | N55: 9508800 | O55: -0.56%
A56: 48 | B56: Automobile | C56: CEATLTD | D56: 1100.10 | E56: 1098.07 | F56: 1078.78 | G56: 1057.47 | H56: 1038.18 | I56: 1119.38 | J56: 1138.67 | K56: 1159.98 | L56: 1117.35 | M56: 1076.75 | N56: 1032500 | O56: -2.09%
A57: 49 | B57: Textile | C57: CENTURYTEX | D57: 811.50 | E57: 793.75 | F57: 764.30 | G57: 717.10 | H57: 687.65 | I57: 840.95 | J57: 870.40 | K57: 917.60 | L57: 823.2 | M57: 746.55 | N57: 6273300 | O57: -4.59%
A58: 50 | B58: Power | C58: CESC | D58: 903.75 | E58: 896.40 | F58: 869.35 | G58: 834.95 | H58: 807.90 | I58: 930.80 | J58: 957.85 | K58: 992.25 | L58: 923.45 | M58: 862 | N58: 6176500 | O58: 1.59%
A59: 51 | B59: Power | C59: CGPOWER | D59: 40.80 | E59: 40.53 | F59: 40.07 | G59: 39.33 | H59: 38.87 | I59: 41.27 | J59: 41.73 | K59: 42.47 | L59: 41 | M59: 39.8 | N59: 36084000 | O59: 2.31%
A60: 52 | B60: Others | C60: CHENNPETRO | D60: 259.70 | E60: 257.47 | F60: 251.08 | G60: 242.47 | H60: 236.08 | I60: 266.08 | J60: 272.47 | K60: 281.08 | L60: 263.85 | M60: 248.85 | N60: 1096500 | O60: 7.18%
A61: 53 | B61: Others | C61: CHOLAFIN | D61: 1192.15 | E61: 1173.68 | F61: 1138.37 | G61: 1084.58 | H61: 1049.27 | I61: 1227.47 | J61: 1262.78 | K61: 1316.57 | L61: 1209 | M61: 1119.9 | N61: 919500 | O61: 0.27%
A62: 54 | B62: Pharma | C62: CIPLA | D62: 622.75 | E62: 620.77 | F62: 614.53 | G62: 606.32 | H62: 600.08 | I62: 628.98 | J62: 635.22 | K62: 643.43 | L62: 627 | M62: 612.55 | N62: 10794000 | O62: 0.67%
A63: 55 | B63: Others | C63: COALINDIA | D63: 279.65 | E63: 276.58 | F63: 272.47 | G63: 265.28 | H63: 261.17 | I63: 283.77 | J63: 287.88 | K63: 295.07 | L63: 280.7 | M63: 269.4 | N63: 21021000 | O63: 8.10%
A64: 56 | B64: FMCG | C64: COLPAL | D64: 1102.15 | E64: 1100.07 | F64: 1092.13 | G64: 1082.12 | H64: 1074.18 | I64: 1110.08 | J64: 1118.02 | K64: 1128.03 | L64: 1108 | M64: 1090.05 | N64: 1605800 | O64: -0.56%
A65: 57 | B65: Others | C65: CONCOR | D65: 606.60 | E65: 602.52 | F65: 594.13 | G65: 581.67 | H65: 573.28 | I65: 614.98 | J65: 623.37 | K65: 635.83 | L65: 610.9 | M65: 590.05 | N65: 3113750 | O65: 1.71%
A66: 58 | B66: Capital_Goods | C66: CUMMINSIND | D66: 682.35 | E66: 682.65 | F66: 675.35 | G66: 668.35 | H66: 661.05 | I66: 689.65 | J66: 696.95 | K66: 703.95 | L66: 689.95 | M66: 675.65 | N66: 1120000 | O66: -2.38%
A67: 59 | B67: FMCG | C67: DABUR | D67: 408.25 | E67: 406.52 | F67: 400.68 | G67: 393.12 | H67: 387.28 | I67: 414.08 | J67: 419.92 | K67: 427.48 | L67: 412.35 | M67: 398.95 | N67: 16532500 | O67: -4.13%
A68: 60 | B68: Cement | C68: DALMIABHA | D68: 2100.50 | E68: 2107.57 | F68: 2055.13 | G68: 2009.77 | H68: 1957.33 | I68: 2152.93 | J68: 2205.37 | K68: 2250.73 | L68: 2160 | M68: 2062.2 | N68: 443400 | O68: 1.86%
A69: 61 | B69: Banking | C69: DCBBANK | D69: 162.10 | E69: 159.08 | F69: 154.97 | G69: 147.83 | H69: 143.72 | I69: 166.22 | J69: 170.33 | K69: 177.47 | L69: 163.2 | M69: 151.95 | N69: 5319000 | O69: -4.91%
A70: 62 | B70: Finance | C70: DHFL | D70: 291.90 | E70: 297.48 | F70: 283.22 | G70: 274.53 | H70: 260.27 | I70: 306.17 | J70: 320.43 | K70: 329.12 | L70: 311.75 | M70: 288.8 | N70: 12807000 | O70: -4.34%
A71: 63 | B71: Media | C71: DISHTV | D71: 55.55 | E71: 55.85 | F71: 54.70 | G71: 53.85 | H71: 52.70 | I71: 56.70 | J71: 57.85 | K71: 58.70 | L71: 57 | M71: 55 | N71: 36920000 | O71: 2.35%
A72: 64 | B72: Pharma | C72: DIVISLAB | D72: 1286.30 | E72: 1284.03 | F72: 1270.07 | G72: 1253.83 | H72: 1239.87 | I72: 1300.27 | J72: 1314.23 | K72: 1330.47 | L72: 1298 | M72: 1267.8 | N72: 2698400 | O72: -3.85%
A73: 65 | B73: Realty | C73: DLF | D73: 158.25 | E73: 158.73 | F73: 155.87 | G73: 153.48 | H73: 150.62 | I73: 161.12 | J73: 163.98 | K73: 166.37 | L73: 161.6 | M73: 156.35 | N73: 27730000 | O73: 0.48%
A74: 66 | B74: Pharma | C74: DRREDDY | D74: 2455.10 | E74: 2459.77 | F74: 2427.53 | G74: 2399.97 | H74: 2367.73 | I74: 2487.33 | J74: 2519.57 | K74: 2547.13 | L74: 2492 | M74: 2432.2 | N74: 4130250 | O74: -1.11%
A75: 67 | B75: Automobile | C75: EICHERMOT | D75: 23985.20 | E75: 23578.78 | F75: 22904.77 | G75: 21824.33 | H75: 21150.32 | I75: 24659.22 | J75: 25333.23 | K75: 26413.67 | L75: 24252.8 | M75: 22498.35 | N75: 296600 | O75: 0.53%
A76: 68 | B76: Infrastructure | C76: ENGINERSIN | D76: 116.10 | E76: 116.30 | F76: 112.90 | G76: 109.70 | H76: 106.30 | I76: 119.50 | J76: 122.90 | K76: 126.10 | L76: 119.7 | M76: 113.1 | N76: 7542500 | O76: -2.84%
A77: 69 | B77: Finance | C77: EQUITAS | D77: 128.80 | E77: 130.28 | F77: 125.77 | G77: 122.73 | H77: 118.22 | I77: 133.32 | J77: 137.83 | K77: 140.87 | L77: 134.8 | M77: 127.25 | N77: 12224000 | O77: -3.93%
A78: 70 | B78: Automobile | C78: ESCORTS | D78: 601.90 | E78: 596.30 | F78: 579.70 | G78: 557.50 | H78: 540.90 | I78: 618.50 | J78: 635.10 | K78: 657.30 | L78: 612.9 | M78: 574.1 | N78: 5155700 | O78: -1.55%
A79: 71 | B79: Automobile | C79: EXIDEIND | D79: 256.95 | E79: 256.05 | F79: 253.20 | G79: 249.45 | H79: 246.60 | I79: 259.80 | J79: 262.65 | K79: 266.40 | L79: 258.9 | M79: 252.3 | N79: 5484000 | O79: 6.69%
A80: 72 | B80: Banking | C80: FEDERALBNK | D80: 73.70 | E80: 73.37 | F80: 72.48 | G80: 71.27 | H80: 70.38 | I80: 74.58 | J80: 75.47 | K80: 76.68 | L80: 74.25 | M80: 72.15 | N80: 46299000 | O80: -1.30%
A81: 73 | B81: Oil_Gas | C81: GAIL | D81: 359.40 | E81: 356.75 | F81: 351.75 | G81: 344.10 | H81: 339.10 | I81: 364.40 | J81: 369.40 | K81: 377.05 | L81: 361.75 | M81: 349.1 | N81: 18770346 | O81: -3.36%
A82: 74 | B82: Pharma | C82: GLENMARK | D82: 603.85 | E82: 600.83 | F82: 593.67 | G82: 583.48 | H82: 576.32 | I82: 611.02 | J82: 618.18 | K82: 628.37 | L82: 608 | M82: 590.65 | N82: 4073000 | O82: -0.12%
A83: 75 | B83: Infrastructure | C83: GMRINFRA | D83: 16.60 | E83: 16.48 | F83: 16.12 | G83: 15.63 | H83: 15.27 | I83: 16.97 | J83: 17.33 | K83: 17.82 | L83: 16.85 | M83: 16 | N83: 181710000 | O83: -1.73%
A84: 76 | B84: Others | C84: GODFRYPHLP | D84: 731.50 | E84: 734.87 | F84: 711.63 | G84: 691.77 | H84: 668.53 | I84: 754.73 | J84: 777.97 | K84: 797.83 | L84: 758.1 | M84: 715 | N84: 560700 | O84: 0.00%
A85: 77 | B85: FMCG | C85: GODREJCP | D85: 717.55 | E85: 722.92 | F85: 703.83 | G85: 690.12 | H85: 671.03 | I85: 736.63 | J85: 755.72 | K85: 769.43 | L85: 742 | M85: 709.2 | N85: 5180400 | O85: 1.67%
A86: 78 | B86: FMCG | C86: GODREJIND | D86: 479.80 | E86: 484.25 | F86: 472.55 | G86: 465.30 | H86: 453.60 | I86: 491.50 | J86: 503.20 | K86: 510.45 | L86: 495.95 | M86: 477 | N86: 2083500 | O86: 1.68%
A87: 79 | B87: Pharma | C87: GRANULES | D87: 92.65 | E87: 92.28 | F87: 91.22 | G87: 89.78 | H87: 88.72 | I87: 93.72 | J87: 94.78 | K87: 96.22 | L87: 93.35 | M87: 90.85 | N87: 13105000 | O87: 0.04%
A88: 80 | B88: Cement | C88: GRASIM | D88: 898.45 | E88: 895.10 | F88: 885.35 | G88: 872.25 | H88: 862.50 | I88: 908.20 | J88: 917.95 | K88: 931.05 | L88: 904.85 | M88: 882 | N88: 4580250 | O88: 6.64%
A89: 81 | B89: Others | C89: GSFC | D89: 93.85 | E89: 93.10 | F89: 91.70 | G89: 89.55 | H89: 88.15 | I89: 95.25 | J89: 96.65 | K89: 98.80 | L89: 94.5 | M89: 90.95 | N89: 13603500 | O89: -0.07%
A90: 82 | B90: Others | C90: HAVELLS | D90: 597.80 | E90: 595.35 | F90: 587.15 | G90: 576.50 | H90: 568.30 | I90: 606.00 | J90: 614.20 | K90: 624.85 | L90: 603.55 | M90: 584.7 | N90: 4578000 | O90: -1.27%
A91: 83 | B91: Others | C91: HCC | D91: 12.40 | E91: 12.38 | F91: 12.07 | G91: 11.73 | H91: 11.42 | I91: 12.72 | J91: 13.03 | K91: 13.37 | L91: 12.7 | M91: 12.05 | N91: 31500000 | O91: -3.69%
A92: 84 | B92: Technology | C92: HCLTECH | D92: 989.30 | E92: 992.15 | F92: 975.40 | G92: 961.50 | H92: 944.75 | I92: 1006.05 | J92: 1022.80 | K92: 1036.70 | L92: 1008.9 | M92: 978.25 | N92: 8404200 | O92: 9.01%
A93: 85 | B93: Finance | C93: HDFC | D93: 1734.65 | E93: 1727.35 | F93: 1707.70 | G93: 1680.75 | H93: 1661.10 | I93: 1754.30 | J93: 1773.95 | K93: 1800.90 | L93: 1747 | M93: 1700.4 | N93: 24761500 | O93: -2.23%
A94: 86 | B94: Banking | C94: HDFCBANK | D94: 1979.10 | E94: 1971.52 | F94: 1947.63 | G94: 1916.17 | H94: 1892.28 | I94: 2002.98 | J94: 2026.87 | K94: 2058.33 | L94: 1995.4 | M94: 1940.05 | N94: 11784500 | O94: 0.57%
A95: 88 | B95: Automobile | C95: HEROMOTOCO | D95: 2903.15 | E95: 2907.92 | F95: 2876.78 | G95: 2850.42 | H95: 2819.28 | I95: 2934.28 | J95: 2965.42 | K95: 2991.78 | L95: 2939.05 | M95: 2881.55 | N95: 1507200 | O95: 0.56%
A96: 89 | B96: Technology | C96: HEXAWARE | D96: 390.40 | E96: 388.23 | F96: 379.67 | G96: 368.93 | H96: 360.37 | I96: 398.97 | J96: 407.53 | K96: 418.27 | L96: 396.8 | M96: 377.5 | N96: 5659500 | O96: 7.07%
A97: 90 | B97: Metals | C97: HINDALCO | D97: 227.60 | E97: 224.73 | F97: 220.52 | G97: 213.43 | H97: 209.22 | I97: 231.82 | J97: 236.03 | K97: 243.12 | L97: 228.95 | M97: 217.65 | N97: 35815500 | O97: -4.36%
A98: 91 | B98: Oil_Gas | C98: HINDPETRO | D98: 219.00 | E98: 218.25 | F98: 214.30 | G98: 209.60 | H98: 205.65 | I98: 222.95 | J98: 226.90 | K98: 231.60 | L98: 222.2 | M98: 213.55 | N98: 22554000 | O98: -0.14%
A99: 92 | B99: FMCG | C99: HINDUNILVR | D99: 1558.95 | E99: 1552.87 | F99: 1538.73 | G99: 1518.52 | H99: 1504.38 | I99: 1573.08 | J99: 1587.22 | K99: 1607.43 | L99: 1567 | M99: 1532.65 | N99: 9538800 | O99: -1.16%
A100: 93 | B100: Metals | C100: HINDZINC | D100: 278.40 | E100: 276.47 | F100: 273.48 | G100: 268.57 | H100: 265.58 | I100: 281.38 | J100: 284.37 | K100: 289.28 | L100: 279.45 | M100: 271.55 | N100: 7590400 | O100: -4.66%
A101: 94 | B101: Finance | C101: IBULHSGFIN | D101: 930.70 | E101: 929.02 | F101: 913.88 | G101: 897.07 | H101: 881.93 | I101: 945.83 | J101: 960.97 | K101: 977.78 | L101: 944.15 | M101: 912.2 | N101: 15810000 | O101: 0.58%
A102: 95 | B102: Banking | C102: ICICIBANK | D102: 319.35 | E102: 319.27 | F102: 314.28 | G102: 309.22 | H102: 304.23 | I102: 324.33 | J102: 329.32 | K102: 334.38 | L102: 324.25 | M102: 314.2 | N102: 100740750 | O102: 2.42%
A103: 96 | B103: Others | C103: ICICIPRULI | D103: 319.75 | E103: 322.62 | F103: 315.13 | G103: 310.52 | H103: 303.03 | I103: 327.23 | J103: 334.72 | K103: 339.33 | L103: 330.1 | M103: 318 | N103: 4377100 | O103: 8.93%
A104: 97 | B104: Banking | C104: IDBI | D104: 59.15 | E104: 59.20 | F104: 58.75 | G104: 58.35 | H104: 57.90 | I104: 59.60 | J104: 60.05 | K104: 60.45 | L104: 59.65 | M104: 58.8 | N104: 48670000 | O104: -1.48%
A105: 98 | B105: Telecom | C105: IDEA | D105: 36.10 | E105: 35.97 | F105: 35.23 | G105: 34.37 | H105: 33.63 | I105: 36.83 | J105: 37.57 | K105: 38.43 | L105: 36.7 | M105: 35.1 | N105: 148064000 | O105: -0.00%
A106: 99 | B106: Finance | C106: IDFC | D106: 38.85 | E106: 38.53 | F106: 37.92 | G106: 36.98 | H106: 36.37 | I106: 39.47 | J106: 40.08 | K106: 41.02 | L106: 39.15 | M106: 37.6 | N106: 114325200 | O106: -0.22%
A107: 100 | B107: Banking | C107: IDFCBANK | D107: 36.55 | E107: 36.30 | F107: 35.85 | G107: 35.15 | H107: 34.70 | I107: 37.00 | J107: 37.45 | K107: 38.15 | L107: 36.75 | M107: 35.6 | N107: 126258000 | O107: -0.39%
A108: 101 | B108: Finance | C108: IFCI | D108: 13.00 | E108: 13.02 | F108: 12.83 | G108: 12.67 | H108: 12.48 | I108: 13.18 | J108: 13.37 | K108: 13.53 | L108: 13.2 | M108: 12.85 | N108: 58325000 | O108: 0.52%
A109: 102 | B109: Oil_Gas | C109: IGL | D109: 242.75 | E109: 241.12 | F109: 235.63 | G109: 228.52 | H109: 223.03 | I109: 248.23 | J109: 253.72 | K109: 260.83 | L109: 246.6 | M109: 234 | N109: 3643750 | O109: -5.09%
A110: 103 | B110: Cement | C110: INDIACEM | D110: 96.10 | E110: 95.83 | F110: 93.97 | G110: 91.83 | H110: 89.97 | I110: 97.97 | J110: 99.83 | K110: 101.97 | L110: 97.7 | M110: 93.7 | N110: 17346000 | O110: 0.26%
A111: 104 | B111: Banking | C111: INDIANB | D111: 237.55 | E111: 237.05 | F111: 233.25 | G111: 228.95 | H111: 225.15 | I111: 241.35 | J111: 245.15 | K111: 249.45 | L111: 240.85 | M111: 232.75 | N111: 4950000 | O111: -1.00%
A112: 105 | B112: Others | C112: INDIGO | D112: 812.45 | E112: 803.90 | F112: 788.55 | G112: 764.65 | H112: 749.30 | I112: 827.80 | J112: 843.15 | K112: 867.05 | L112: 819.25 | M112: 780 | N112: 3508200 | O112: -0.31%
A113: 106 | B113: Banking | C113: INDUSINDBK | D113: 1656.80 | E113: 1643.53 | F113: 1623.07 | G113: 1589.33 | H113: 1568.87 | I113: 1677.27 | J113: 1697.73 | K113: 1731.47 | L113: 1664 | M113: 1609.8 | N113: 6755100 | O113: 4.66%
A114: 107 | B114: Technology | C114: INFIBEAM | D114: 51.15 | E114: 51.60 | F114: 49.55 | G114: 47.95 | H114: 45.90 | I114: 53.20 | J114: 55.25 | K114: 56.85 | L114: 53.65 | M114: 50 | N114: 26476000 | O114: 3.41%
A115: 108 | B115: Telecom | C115: INFRATEL | D115: 265.85 | E115: 263.93 | F115: 260.42 | G115: 254.98 | H115: 251.47 | I115: 269.37 | J115: 272.88 | K115: 278.32 | L115: 267.45 | M115: 258.5 | N115: 5914300 | O115: -5.87%
A116: 109 | B116: Technology | C116: INFY | D116: 680.60 | E116: 676.92 | F116: 667.78 | G116: 654.97 | H116: 645.83 | I116: 689.73 | J116: 698.87 | K116: 711.68 | L116: 686.05 | M116: 664.1 | N116: 30900000 | O116: 4.00%
A117: 110 | B117: Oil_Gas | C117: IOC | D117: 134.40 | E117: 134.90 | F117: 132.80 | G117: 131.20 | H117: 129.10 | I117: 136.50 | J117: 138.60 | K117: 140.20 | L117: 137 | M117: 133.3 | N117: 33612000 | O117: 0.90%
A118: 111 | B118: Infrastructure | C118: IRB | D118: 134.00 | E118: 134.17 | F118: 131.43 | G118: 128.87 | H118: 126.13 | I118: 136.73 | J118: 139.47 | K118: 142.03 | L118: 136.9 | M118: 131.6 | N118: 13762500 | O118: 0.57%
A119: 112 | B119: FMCG | C119: ITC | D119: 275.30 | E119: 273.65 | F119: 269.50 | G119: 263.70 | H119: 259.55 | I119: 279.45 | J119: 283.60 | K119: 289.40 | L119: 277.8 | M119: 267.85 | N119: 76732800 | O119: -2.82%
A120: 113 | B120: Others | C120: JETAIRWAYS | D120: 200.90 | E120: 200.40 | F120: 195.85 | G120: 190.80 | H120: 186.25 | I120: 205.45 | J120: 210.00 | K120: 215.05 | L120: 204.95 | M120: 195.35 | N120: 6681600 | O120: 2.05%
A121: 114 | B121: Metals | C121: JINDALSTEL | D121: 178.55 | E121: 176.07 | F121: 171.23 | G121: 163.92 | H121: 159.08 | I121: 183.38 | J121: 188.22 | K121: 195.53 | L121: 180.9 | M121: 168.75 | N121: 28464750 | O121: -7.48%
A122: 115 | B122: Others | C122: JISLJALEQS | D122: 67.20 | E122: 67.13 | F122: 66.27 | G122: 65.33 | H122: 64.47 | I122: 68.07 | J122: 68.93 | K122: 69.87 | L122: 68 | M122: 66.2 | N122: 35910000 | O122: -1.65%
A123: 116 | B123: Realty | C123: JPASSOCIAT | D123: 6.70 | E123: 6.72 | F123: 6.53 | G123: 6.37 | H123: 6.18 | I123: 6.88 | J123: 7.07 | K123: 7.23 | L123: 6.9 | M123: 6.55 | N123: 103700000 | O123: 2.45%
A124: 117 | B124: Metals | C124: JSWSTEEL | D124: 379.70 | E124: 375.02 | F124: 368.68 | G124: 357.67 | H124: 351.33 | I124: 386.03 | J124: 392.37 | K124: 403.38 | L124: 381.35 | M124: 364 | N124: 50334000 | O124: -0.67%
A125: 118 | B125: Others | C125: JUBLFOOD | D125: 1191.10 | E125: 1181.15 | F125: 1163.00 | G125: 1134.90 | H125: 1116.75 | I125: 1209.25 | J125: 1227.40 | K125: 1255.50 | L125: 1199.3 | M125: 1153.05 | N125: 3189500 | O125: -0.39%
A126: 119 | B126: Others | C126: JUSTDIAL | D126: 483.45 | E126: 474.90 | F126: 456.70 | G126: 429.95 | H126: 411.75 | I126: 501.65 | J126: 519.85 | K126: 546.60 | L126: 493.1 | M126: 448.15 | N126: 2536800 | O126: -8.72%
A127: 120 | B127: Others | C127: KAJARIACER | D127: 354.10 | E127: 359.08 | F127: 346.27 | G127: 338.43 | H127: 325.62 | I127: 366.92 | J127: 379.73 | K127: 387.57 | L127: 371.9 | M127: 351.25 | N127: 2299000 | O127: 4.17%
A128: 121 | B128: Banking | C128: KOTAKBANK | D128: 1164.75 | E128: 1152.23 | F128: 1134.57 | G128: 1104.38 | H128: 1086.72 | I128: 1182.42 | J128: 1200.08 | K128: 1230.27 | L128: 1169.9 | M128: 1122.05 | N128: 10274400 | O128: 0.26%
A129: 122 | B129: Technology | C129: KPIT | D129: 202.60 | E129: 201.60 | F129: 197.50 | G129: 192.40 | H129: 188.30 | I129: 206.70 | J129: 210.80 | K129: 215.90 | L129: 205.7 | M129: 196.5 | N129: 10476000 | O129: 1.00%
A130: 123 | B130: Others | C130: KSCL | D130: 516.00 | E130: 515.17 | F130: 505.33 | G130: 494.67 | H130: 484.83 | I130: 525.83 | J130: 535.67 | K130: 546.33 | L130: 525 | M130: 504.5 | N130: 1125000 | O130: -6.37%
A131: 124 | B131: Banking | C131: KTKBANK | D131: 98.40 | E131: 100.63 | F131: 93.92 | G131: 89.43 | H131: 82.72 | I131: 105.12 | J131: 111.83 | K131: 116.32 | L131: 107.35 | M131: 96.15 | N131: 19593000 | O131: 18.38%
A132: 125 | B132: Finance | C132: L&TFH | D132: 133.00 | E132: 133.47 | F132: 130.53 | G132: 128.07 | H132: 125.13 | I132: 135.93 | J132: 138.87 | K132: 141.33 | L132: 136.4 | M132: 131 | N132: 29794500 | O132: 1.64%
A133: 126 | B133: Finance | C133: LICHSGFIN | D133: 432.10 | E133: 428.12 | F133: 421.13 | G133: 410.17 | H133: 403.18 | I133: 439.08 | J133: 446.07 | K133: 457.03 | L133: 435.1 | M133: 417.15 | N133: 9419300 | O133: -1.40%
A134: 127 | B134: Capital_Goods | C134: LT | D134: 1238.45 | E134: 1235.45 | F134: 1223.25 | G134: 1208.05 | H134: 1195.85 | I134: 1250.65 | J134: 1262.85 | K134: 1278.05 | L134: 1247.65 | M134: 1220.25 | N134: 12636750 | O134: -1.36%
A135: 128 | B135: Pharma | C135: LUPIN | D135: 847.50 | E135: 847.95 | F135: 836.05 | G135: 824.60 | H135: 812.70 | I135: 859.40 | J135: 871.30 | K135: 882.75 | L135: 859.85 | M135: 836.5 | N135: 8743000 | O135: -3.30%
A136: 129 | B136: Automobile | C136: M&M | D136: 769.40 | E136: 762.63 | F136: 747.77 | G136: 726.13 | H136: 711.27 | I136: 784.27 | J136: 799.13 | K136: 820.77 | L136: 777.5 | M136: 741 | N136: 18150000 | O136: 0.06%
A137: 130 | B137: Finance | C137: M&MFIN | D137: 386.60 | E137: 386.82 | F137: 376.83 | G137: 367.07 | H137: 357.08 | I137: 396.58 | J137: 406.57 | K137: 416.33 | L137: 396.8 | M137: 377.05 | N137: 10652500 | O137: -3.55%
A138: 131 | B138: Others | C138: MANAPPURAM | D138: 73.35 | E138: 74.37 | F138: 71.78 | G138: 70.22 | H138: 67.63 | I138: 75.93 | J138: 78.52 | K138: 80.08 | L138: 76.95 | M138: 72.8 | N138: 19506000 | O138: 1.94%
A139: 132 | B139: FMCG | C139: MARICO | D139: 314.15 | E139: 314.55 | F139: 306.70 | G139: 299.25 | H139: 291.40 | I139: 322.00 | J139: 329.85 | K139: 337.30 | L139: 322.4 | M139: 307.1 | N139: 8665800 | O139: -0.89%
A140: 133 | B140: Automobile | C140: MARUTI | D140: 7290.20 | E140: 7192.60 | F140: 7066.80 | G140: 6843.40 | H140: 6717.60 | I140: 7416.00 | J140: 7541.80 | K140: 7765.20 | L140: 7318.4 | M140: 6969.2 | N140: 2786775 | O140: -5.25%
A141: 134 | B141: FMCG | C141: MCDOWELL-N | D141: 523.00 | E141: 517.15 | F141: 504.05 | G141: 485.10 | H141: 472.00 | I141: 536.10 | J141: 549.20 | K141: 568.15 | L141: 530.25 | M141: 498.2 | N141: 11455000 | O141: 2.40%
A142: 135 | B142: Others | C142: MCX | D142: 745.05 | E142: 746.25 | F142: 734.00 | G142: 722.95 | H142: 710.70 | I142: 757.30 | J142: 769.55 | K142: 780.60 | L142: 758.5 | M142: 735.2 | N142: 3960600 | O142: -4.13%
A143: 136 | B143: Finance | C143: MFSL | D143: 373.10 | E143: 374.98 | F143: 368.47 | G143: 363.83 | H143: 357.32 | I143: 379.62 | J143: 386.13 | K143: 390.77 | L143: 381.5 | M143: 370.35 | N143: 2391600 | O143: 0.91%
A144: 137 | B144: Others | C144: MGL | D144: 826.20 | E144: 821.55 | F144: 805.10 | G144: 784.00 | H144: 767.55 | I144: 842.65 | J144: 859.10 | K144: 880.20 | L144: 838 | M144: 800.45 | N144: 1871400 | O144: -0.10%
A145: 138 | B145: Technology | C145: MINDTREE | D145: 951.30 | E145: 963.68 | F145: 927.62 | G145: 903.93 | H145: 867.87 | I145: 987.37 | J145: 1023.43 | K145: 1047.12 | L145: 999.75 | M145: 940 | N145: 4638000 | O145: 2.71%
A146: 139 | B146: Automobile | C146: MOTHERSUMI | D146: 239.15 | E146: 237.08 | F146: 233.62 | G146: 228.08 | H146: 224.62 | I146: 242.62 | J146: 246.08 | K146: 251.62 | L146: 240.55 | M146: 231.55 | N146: 17028800 | O146: -2.05%
A147: 140 | B147: Automobile | C147: MRF | D147: 64235.45 | E147: 64335.00 | F147: 63570.50 | G147: 62905.55 | H147: 62141.05 | I147: 64999.95 | J147: 65764.45 | K147: 66429.40 | L147: 65099.5 | M147: 63670.05 | N147: 25620 | O147: 1.22%
A148: 141 | B148: Others | C148: MRPL | D148: 83.55 | E148: 82.22 | F148: 79.33 | G148: 75.12 | H148: 72.23 | I148: 86.43 | J148: 89.32 | K148: 93.53 | L148: 85.1 | M148: 78 | N148: 4644000 | O148: 3.93%
A149: 142 | B149: Finance | C149: MUTHOOTFIN | D149: 397.60 | E149: 399.55 | F149: 391.10 | G149: 384.60 | H149: 376.15 | I149: 406.05 | J149: 414.50 | K149: 421.00 | L149: 408 | M149: 393.05 | N149: 2472000 | O149: 3.97%
A150: 143 | B150: Others | C150: NATIONALUM | D150: 66.90 | E150: 67.22 | F150: 66.03 | G150: 65.17 | H150: 63.98 | I150: 68.08 | J150: 69.27 | K150: 70.13 | L150: 68.4 | M150: 66.35 | N150: 42448000 | O150: 0.44%
A151: 144 | B151: Others | C151: NBCC | D151: 53.70 | E151: 54.05 | F151: 52.85 | G151: 52.00 | H151: 50.80 | I151: 54.90 | J151: 56.10 | K151: 56.95 | L151: 55.25 | M151: 53.2 | N151: 24342000 | O151: 5.24%
A152: 145 | B152: Infrastructure | C152: NCC | D152: 73.40 | E152: 73.12 | F152: 71.68 | G152: 69.97 | H152: 68.53 | I152: 74.83 | J152: 76.27 | K152: 77.98 | L152: 74.55 | M152: 71.4 | N152: 47760000 | O152: 0.05%
A153: 146 | B153: Others | C153: NESTLEIND | D153: 9720.75 | E153: 9639.88 | F153: 9480.92 | G153: 9241.08 | H153: 9082.12 | I153: 9879.72 | J153: 10038.68 | K153: 10278.52 | L153: 9798.85 | M153: 9400.05 | N153: 368400 | O153: 0.46%
A154: 147 | B154: Power | C154: NHPC | D154: 23.95 | E154: 23.90 | F154: 23.60 | G154: 23.25 | H154: 22.95 | I154: 24.25 | J154: 24.55 | K154: 24.90 | L154: 24.2 | M154: 23.55 | N154: 22653000 | O154: 0.24%
A155: 148 | B155: Technology | C155: NIITTECH | D155: 1050.05 | E155: 1060.48 | F155: 1033.87 | G155: 1017.68 | H155: 991.07 | I155: 1076.67 | J155: 1103.28 | K155: 1119.47 | L155: 1087.1 | M155: 1044.3 | N155: 1841250 | O155: 27.40%
A156: 149 | B156: Metals | C156: NMDC | D156: 111.80 | E156: 111.55 | F156: 110.10 | G156: 108.40 | H156: 106.95 | I156: 113.25 | J156: 114.70 | K156: 116.40 | L156: 113 | M156: 109.85 | N156: 20862000 | O156: 0.35%
A157: 150 | B157: Power | C157: NTPC | D157: 165.00 | E157: 164.92 | F157: 163.78 | G157: 162.57 | H157: 161.43 | I157: 166.13 | J157: 167.27 | K157: 168.48 | L157: 166.05 | M157: 163.7 | N157: 35956000 | O157: 0.86%
A158: 151 | B158: Technology | C158: OFSS | D158: 3940.35 | E158: 3946.28 | F158: 3911.32 | G158: 3882.28 | H158: 3847.32 | I158: 3975.32 | J158: 4010.28 | K158: 4039.32 | L158: 3981.25 | M158: 3917.25 | N158: 301200 | O158: -1.23%
A159: 152 | B159: Oil_Gas | C159: OIL | D159: 203.05 | E159: 201.35 | F159: 198.70 | G159: 194.35 | H159: 191.70 | I159: 205.70 | J159: 208.35 | K159: 212.70 | L159: 204 | M159: 197 | N159: 3466980 | O159: -1.16%
A160: 153 | B160: Oil_Gas | C160: ONGC | D160: 157.80 | E160: 156.88 | F160: 155.32 | G160: 152.83 | H160: 151.27 | I160: 159.37 | J160: 160.93 | K160: 163.42 | L160: 158.45 | M160: 154.4 | N160: 47865000 | O160: -1.02%
A161: 154 | B161: Banking | C161: ORIENTBANK | D161: 64.00 | E161: 63.93 | F161: 62.87 | G161: 61.73 | H161: 60.67 | I161: 65.07 | J161: 66.13 | K161: 67.27 | L161: 65 | M161: 62.8 | N161: 12990000 | O161: -0.14%
A162: 155 | B162: Textile | C162: PAGEIND | D162: 29112.75 | E162: 28724.42 | F162: 28198.83 | G162: 27284.92 | H162: 26759.33 | I162: 29638.33 | J162: 30163.92 | K162: 31077.83 | L162: 29250 | M162: 27810.5 | N162: 122300 | O162: -3.72%
A163: 156 | B163: Others | C163: PCJEWELLER | D163: 57.00 | E163: 57.17 | F163: 56.23 | G163: 55.47 | H163: 54.53 | I163: 57.93 | J163: 58.87 | K163: 59.63 | L163: 58.1 | M163: 56.4 | N163: 9096000 | O163: 0.31%
A164: 157 | B164: Pharma | C164: PEL | D164: 2257.35 | E164: 2288.65 | F164: 2212.30 | G164: 2167.25 | H164: 2090.90 | I164: 2333.70 | J164: 2410.05 | K164: 2455.10 | L164: 2365 | M164: 2243.6 | N164: 3186704 | O164: -1.29%
A165: 158 | B165: Oil_Gas | C165: PETRONET | D165: 218.30 | E165: 217.47 | F165: 214.93 | G165: 211.57 | H165: 209.03 | I165: 220.83 | J165: 223.37 | K165: 226.73 | L165: 220 | M165: 214.1 | N165: 15171000 | O165: 3.25%
A166: 159 | B166: Finance | C166: PFC | D166: 78.90 | E166: 78.48 | F166: 76.57 | G166: 74.23 | H166: 72.32 | I166: 80.82 | J166: 82.73 | K166: 85.07 | L166: 80.4 | M166: 76.15 | N166: 83280000 | O166: 0.54%
A167: 160 | B167: FMCG | C167: PIDILITIND | D167: 991.60 | E167: 987.52 | F167: 973.03 | G167: 954.47 | H167: 939.98 | I167: 1006.08 | J167: 1020.57 | K167: 1039.13 | L167: 1002 | M167: 968.95 | N167: 3092000 | O167: 0.62%
A168: 161 | B168: Banking | C168: PNB | D168: 66.50 | E168: 66.50 | F168: 65.20 | G168: 63.90 | H168: 62.60 | I168: 67.80 | J168: 69.10 | K168: 70.40 | L168: 67.8 | M168: 65.2 | N168: 109521500 | O168: -2.68%
A169: 162 | B169: Power | C169: POWERGRID | D169: 189.20 | E169: 188.77 | F169: 187.08 | G169: 184.97 | H169: 183.28 | I169: 190.88 | J169: 192.57 | K169: 194.68 | L169: 190.45 | M169: 186.65 | N169: 41000000 | O169: -0.84%
A170: 163 | B170: Power | C170: PTC | D170: 75.10 | E170: 73.65 | F170: 71.90 | G170: 68.70 | H170: 66.95 | I170: 76.85 | J170: 78.60 | K170: 81.80 | L170: 75.4 | M170: 70.45 | N170: 9784000 | O170: 3.21%
A171: 164 | B171: Others | C171: PVR | D171: 1329.40 | E171: 1316.47 | F171: 1282.93 | G171: 1236.47 | H171: 1202.93 | I171: 1362.93 | J171: 1396.47 | K171: 1442.93 | L171: 1350 | M171: 1270 | N171: 1154000 | O171: -0.65%
A172: 165 | B172: Cement | C172: RAMCOCEM | D172: 585.15 | E172: 585.38 | F172: 579.77 | G172: 574.38 | H172: 568.77 | I172: 590.77 | J172: 596.38 | K172: 601.77 | L172: 591 | M172: 580 | N172: 1083200 | O172: -0.95%
A173: 166 | B173: Others | C173: RAYMOND | D173: 665.00 | E173: 658.47 | F173: 645.48 | G173: 625.97 | H173: 612.98 | I173: 677.98 | J173: 690.97 | K173: 710.48 | L173: 671.45 | M173: 638.95 | N173: 4742400 | O173: -0.89%
A174: 167 | B174: Banking | C174: RBLBANK | D174: 526.25 | E174: 532.75 | F174: 517.75 | G174: 509.25 | H174: 494.25 | I174: 541.25 | J174: 556.25 | K174: 564.75 | L174: 547.75 | M174: 524.25 | N174: 4737600 | O174: 5.11%
A175: 168 | B175: Telecom | C175: RCOM | D175: 11.70 | E175: 11.80 | F175: 11.35 | G175: 11.00 | H175: 10.55 | I175: 12.15 | J175: 12.60 | K175: 12.95 | L175: 12.25 | M175: 11.45 | N175: 94556000 | O175: 1.56%
A176: 169 | B176: Power | C176: RECLTD | D176: 102.75 | E176: 102.28 | F176: 100.47 | G176: 98.18 | H176: 96.37 | I176: 104.57 | J176: 106.38 | K176: 108.67 | L176: 104.1 | M176: 100 | N176: 38952000 | O176: 0.03%
A177: 170 | B177: Finance | C177: RELCAPITAL | D177: 262.55 | E177: 258.65 | F177: 250.20 | G177: 237.85 | H177: 229.40 | I177: 271.00 | J177: 279.45 | K177: 291.80 | L177: 267.1 | M177: 246.3 | N177: 10893000 | O177: 2.01%
A178: 171 | B178: Oil_Gas | C178: RELIANCE | D178: 1128.50 | E178: 1121.53 | F178: 1111.12 | G178: 1093.73 | H178: 1083.32 | I178: 1138.92 | J178: 1149.33 | K178: 1166.72 | L178: 1131.95 | M178: 1104.15 | N178: 48369000 | O178: -0.03%
A179: 172 | B179: Power | C179: RELINFRA | D179: 328.85 | E179: 323.32 | F179: 312.73 | G179: 296.62 | H179: 286.03 | I179: 339.43 | J179: 350.02 | K179: 366.13 | L179: 333.9 | M179: 307.2 | N179: 7764900 | O179: -4.32%
A180: 173 | B180: Others | C180: REPCOHOME | D180: 378.85 | E180: 380.98 | F180: 371.97 | G180: 365.08 | H180: 356.07 | I180: 387.87 | J180: 396.88 | K180: 403.77 | L180: 390 | M180: 374.1 | N180: 595800 | O180: 3.76%
A181: 174 | B181: Power | C181: RPOWER | D181: 28.20 | E181: 27.83 | F181: 26.72 | G181: 25.23 | H181: 24.12 | I181: 29.32 | J181: 30.43 | K181: 31.92 | L181: 28.95 | M181: 26.35 | N181: 45591000 | O181: -2.61%
A182: 175 | B182: Metals | C182: SAIL | D182: 66.70 | E182: 66.43 | F182: 65.57 | G182: 64.43 | H182: 63.57 | I182: 67.57 | J182: 68.43 | K182: 69.57 | L182: 67.3 | M182: 65.3 | N182: 72096000 | O182: 2.47%
A183: 176 | B183: Banking | C183: SBIN | D183: 264.30 | E183: 264.98 | F183: 261.62 | G183: 258.93 | H183: 255.57 | I183: 267.67 | J183: 271.03 | K183: 273.72 | L183: 268.35 | M183: 262.3 | N183: 96927000 | O183: 3.85%
A184: 177 | B184: Cement | C184: SHREECEM | D184: 15394.95 | E184: 15277.60 | F184: 15087.35 | G184: 14779.75 | H184: 14589.50 | I184: 15585.20 | J184: 15775.45 | K184: 16083.05 | L184: 15467.85 | M184: 14970 | N184: 112750 | O184: -0.09%
A185: 178 | B185: Capital_Goods | C185: SIEMENS | D185: 917.35 | E185: 912.52 | F185: 902.83 | G185: 888.32 | H185: 878.63 | I185: 927.03 | J185: 936.72 | K185: 951.23 | L185: 922.2 | M185: 898 | N185: 1297500 | O185: -1.37%
A186: 179 | B186: Banking | C186: SOUTHBANK | D186: 12.75 | E186: 12.72 | F186: 12.53 | G186: 12.32 | H186: 12.13 | I186: 12.93 | J186: 13.12 | K186: 13.33 | L186: 12.9 | M186: 12.5 | N186: 137767137 | O186: 4.79%
A187: 180 | B187: Others | C187: SREINFRA | D187: 33.95 | E187: 34.35 | F187: 33.00 | G187: 32.05 | H187: 30.70 | I187: 35.30 | J187: 36.65 | K187: 37.60 | L187: 35.7 | M187: 33.4 | N187: 14525000 | O187: 1.22%
A188: 181 | B188: Textile | C188: SRF | D188: 1777.65 | E188: 1776.12 | F188: 1737.13 | G188: 1696.62 | H188: 1657.63 | I188: 1816.63 | J188: 1855.62 | K188: 1896.13 | L188: 1815.1 | M188: 1735.6 | N188: 623000 | O188: 10.27%
A189: 182 | B189: Finance | C189: SRTRANSFIN | D189: 1043.05 | E189: 1072.57 | F189: 1000.73 | G189: 958.42 | H189: 886.58 | I189: 1114.88 | J189: 1186.72 | K189: 1229.03 | L189: 1144.4 | M189: 1030.25 | N189: 4066800 | O189: 1.51%
A190: 183 | B190: Pharma | C190: STAR | D190: 430.75 | E190: 428.98 | F190: 421.97 | G190: 413.18 | H190: 406.17 | I190: 437.77 | J190: 444.78 | K190: 453.57 | L190: 436 | M190: 420.2 | N190: 4390400 | O190: -1.61%
A191: 184 | B191: Pharma | C191: SUNPHARMA | D191: 593.30 | E191: 592.23 | F191: 585.47 | G191: 577.63 | H191: 570.87 | I191: 600.07 | J191: 606.83 | K191: 614.67 | L191: 599 | M191: 584.4 | N191: 32170600 | O191: 1.01%
A192: 185 | B192: Media | C192: SUNTV | D192: 655.15 | E192: 652.80 | F192: 646.60 | G192: 638.05 | H192: 631.85 | I192: 661.35 | J192: 667.55 | K192: 676.10 | L192: 659 | M192: 644.25 | N192: 6899000 | O192: 0.39%
A193: 186 | B193: Power | C193: SUZLON | D193: 5.85 | E193: 5.83 | F193: 5.62 | G193: 5.38 | H193: 5.17 | I193: 6.07 | J193: 6.28 | K193: 6.52 | L193: 6.05 | M193: 5.6 | N193: 314100000 | O193: -0.85%
A194: 187 | B194: Banking | C194: SYNDIBANK | D194: 31.70 | E194: 31.57 | F194: 31.23 | G194: 30.77 | H194: 30.43 | I194: 32.03 | J194: 32.37 | K194: 32.83 | L194: 31.9 | M194: 31.1 | N194: 25902000 | O194: 1.23%
A195: 188 | B195: Fertilisers | C195: TATACHEM | D195: 656.85 | E195: 653.42 | F195: 645.83 | G195: 634.82 | H195: 627.23 | I195: 664.43 | J195: 672.02 | K195: 683.03 | L195: 661 | M195: 642.4 | N195: 2988000 | O195: 0.78%
A196: 189 | B196: Telecom | C196: TATACOMM | D196: 486.45 | E196: 488.42 | F196: 480.23 | G196: 474.02 | H196: 465.83 | I196: 494.63 | J196: 502.82 | K196: 509.03 | L196: 496.6 | M196: 482.2 | N196: 2824800 | O196: -0.31%
A197: 190 | B197: Technology | C197: TATAELXSI | D197: 977.10 | E197: 986.42 | F197: 962.83 | G197: 948.57 | H197: 924.98 | I197: 1000.68 | J197: 1024.27 | K197: 1038.53 | L197: 1010 | M197: 972.15 | N197: 2044000 | O197: 0.71%
A198: 191 | B198: FMCG | C198: TATAGLOBAL | D198: 229.40 | E198: 229.27 | F198: 226.03 | G198: 222.67 | H198: 219.43 | I198: 232.63 | J198: 235.87 | K198: 239.23 | L198: 232.5 | M198: 225.9 | N198: 10874250 | O198: -0.82%
A199: 192 | B199: Automobile | C199: TATAMOTORS | D199: 184.20 | E199: 185.23 | F199: 181.62 | G199: 179.03 | H199: 175.42 | I199: 187.82 | J199: 191.43 | K199: 194.02 | L199: 188.85 | M199: 182.65 | N199: 70756500 | O199: -0.49%
A200: 193 | B200: Automobile | C200: TATAMTRDVR | D200: 101.35 | E200: 101.98 | F200: 100.37 | G200: 99.38 | H200: 97.77 | I200: 102.97 | J200: 104.58 | K200: 105.57 | L200: 103.6 | M200: 101 | N200: 28800800 | O200: 2.58%
A201: 194 | B201: Power | C201: TATAPOWER | D201: 68.95 | E201: 68.10 | F201: 64.05 | G201: 59.15 | H201: 55.10 | I201: 73.00 | J201: 77.05 | K201: 81.95 | L201: 72.15 | M201: 63.2 | N201: 44703000 | O201: 0.55%
A202: 195 | B202: Metals | C202: TATASTEEL | D202: 576.80 | E202: 570.58 | F202: 562.57 | G202: 548.33 | H202: 540.32 | I202: 584.82 | J202: 592.83 | K202: 607.07 | L202: 578.6 | M202: 556.35 | N202: 29613571 | O202: -1.25%
A203: 196 | B203: Technology | C203: TCS | D203: 1922.35 | E203: 1934.28 | F203: 1893.57 | G203: 1864.78 | H203: 1824.07 | I203: 1963.07 | J203: 2003.78 | K203: 2032.57 | L203: 1975 | M203: 1905.5 | N203: 10031500 | O203: 9.84%
A204: 197 | B204: Technology | C204: TECHM | D204: 695.05 | E204: 695.40 | F204: 688.30 | G204: 681.55 | H204: 674.45 | I204: 702.15 | J204: 709.25 | K204: 716.00 | L204: 702.5 | M204: 688.65 | N204: 14874000 | O204: -1.52%
A205: 198 | B205: FMCG | C205: TITAN | D205: 808.00 | E205: 800.05 | F205: 788.05 | G205: 768.10 | H205: 756.10 | I205: 820.00 | J205: 832.00 | K205: 851.95 | L205: 812.05 | M205: 780.1 | N205: 15391500 | O205: 0.63%
A206: 199 | B206: Pharma | C206: TORNTPHARM | D206: 1588.10 | E206: 1590.40 | F206: 1555.80 | G206: 1523.50 | H206: 1488.90 | I206: 1622.70 | J206: 1657.30 | K206: 1689.60 | L206: 1625 | M206: 1558.1 | N206: 478000 | O206: 0.21%
... 33 more rows

Sheet Cash Intra
M5: Back to Main Page
A6: FOR INTRA DAY TRADING | K6: =Main!B10 -> 2018-10-15
A8: Sr.no | B8: Scrip | C8: CLOSE RATE | D8: Pivot Point | E8: Supports | H8: Resistances
C9: Point | E9: S1 | F9: S2 | G9: S3 | H9: R1 | I9: R2 | J9: R3 | K9: HIGH | L9: LOW | M9: Total Trade Quanity in Lakhs
A10: 1 | B10: Nifty 50 | C10: 10472.5 | D10: 10429.03 | E10: 10365.62 | F10: 10258.73 | G10: 10195.32 | H10: 10535.92 | I10: 10599.33 | J10: 10706.22 | K10: 10492.45 | L10: 10322.15
A11: 2 | B11: Nifty Bank | C11: 25395.85 | D11: 25285.17 | E11: 25086.13 | F11: 24776.42 | G11: 24577.38 | H11: 25594.88 | I11: 25793.92 | J11: 26103.63 | K11: 25484.2 | L11: 24975.45
A12: 3 | B12: Nifty CPSE | C12: 2167.1 | D12: 2156.68 | E12: 2140.82 | F12: 2114.53 | G12: 2098.67 | H12: 2182.97 | I12: 2198.83 | J12: 2225.12 | K12: 2172.55 | L12: 2130.4
A13: 4 | B13: Nifty Infra | C13: 2894.65 | D13: 2882.67 | E13: 2862.38 | F13: 2830.12 | G13: 2809.83 | H13: 2914.93 | I13: 2935.22 | J13: 2967.48 | K13: 2902.95 | L13: 2850.4
A14: 5 | B14: Nifty IT | C14: 14539.2 | D14: 14556.53 | E14: 14391.12 | F14: 14243.03 | G14: 14077.62 | H14: 14704.62 | I14: 14870.03 | J14: 15018.12 | K14: 14721.95 | L14: 14408.45
A15: 6 | B15: Nifty PSE | C15: 3383.45 | D15: 3375.22 | E15: 3355.58 | F15: 3327.72 | G15: 3308.08 | H15: 3403.08 | I15: 3422.72 | J15: 3450.58 | K15: 3394.85 | L15: 3347.35
A16: 7 | B16: Nifty Midcap 50 | C16: 4561.4 | D16: 4541.55 | E16: 4499.75 | F16: 4438.10 | G16: 4396.30 | H16: 4603.20 | I16: 4645.00 | J16: 4706.65 | K16: 4583.35 | L16: 4479.9
A17: 8 | B17: ABB | C17: 1308.75 | D17: 1311.10 | E17: 1293.20 | F17: 1277.65 | G17: 1259.75 | H17: 1326.65 | I17: 1344.55 | J17: 1360.10 | K17: 1329 | L17: 1295.55 | M17: 2.37468
A18: 9 | B18: ACC | C18: 1503.2 | D18: 1486.75 | E18: 1463.75 | F18: 1424.30 | G18: 1401.30 | H18: 1526.20 | I18: 1549.20 | J18: 1588.65 | K18: 1509.75 | L18: 1447.3 | M18: 6.61327
A19: 10 | B19: AIAENG | C19: 1518.4 | D19: 1515.03 | E19: 1495.12 | F19: 1471.83 | G19: 1451.92 | H19: 1538.32 | I19: 1558.23 | J19: 1581.52 | K19: 1534.95 | L19: 1491.75 | M19: 1.00833
A20: 11 | B20: AUBANK | C20: 617.85 | D20: 607.68 | E20: 593.47 | F20: 569.08 | G20: 554.87 | H20: 632.07 | I20: 646.28 | J20: 670.67 | K20: 621.9 | L20: 583.3 | M20: 4.65033
A21: 12 | B21: ADANIENT | C21: 143.85 | D21: 143.12 | E21: 140.83 | F21: 137.82 | G21: 135.53 | H21: 146.13 | I21: 148.42 | J21: 151.43 | K21: 145.4 | L21: 140.1 | M21: 63.38784
A22: 13 | B22: ADANIPORTS | C22: 323.15 | D22: 322.67 | E22: 317.48 | F22: 311.82 | G22: 306.63 | H22: 328.33 | I22: 333.52 | J22: 339.18 | K22: 327.85 | L22: 317 | M22: 24.28109
A23: 14 | B23: ADANIPOWER | C23: 32.55 | D23: 32.37 | E23: 30.58 | F23: 28.62 | G23: 26.83 | H23: 34.33 | I23: 36.12 | J23: 38.08 | K23: 34.15 | L23: 30.4 | M23: 945.25849
A24: 15 | B24: ABFRL | C24: 185.65 | D24: 184.72 | E24: 177.28 | F24: 168.92 | G24: 161.48 | H24: 193.08 | I24: 200.52 | J24: 208.88 | K24: 192.15 | L24: 176.35 | M24: 17.23121
A25: 16 | B25: AJANTPHARM | C25: 1024.6 | D25: 1025.93 | E25: 1007.67 | F25: 990.73 | G25: 972.47 | H25: 1042.87 | I25: 1061.13 | J25: 1078.07 | K25: 1044.2 | L25: 1009 | M25: 2.40575
A26: 17 | B26: ALKEM | C26: 1966.4 | D26: 1964.78 | E26: 1952.62 | F26: 1938.83 | G26: 1926.67 | H26: 1978.57 | I26: 1990.73 | J26: 2004.52 | K26: 1976.95 | L26: 1951 | M26: 0.12031
A27: 18 | B27: AMARAJABAT | C27: 735.85 | D27: 733.97 | E27: 726.93 | F27: 718.02 | G27: 710.98 | H27: 742.88 | I27: 749.92 | J27: 758.83 | K27: 741 | L27: 725.05 | M27: 5.65933
A28: 19 | B28: AMBUJACEM | C28: 219.6 | D28: 216.43 | E28: 212.07 | F28: 204.53 | G28: 200.17 | H28: 223.97 | I28: 228.33 | J28: 235.87 | K28: 220.8 | L28: 208.9 | M28: 56.95694
A29: 20 | B29: APOLLOHOSP | C29: 1132 | D29: 1124.83 | E29: 1111.22 | F29: 1090.43 | G29: 1076.82 | H29: 1145.62 | I29: 1159.23 | J29: 1180.02 | K29: 1138.45 | L29: 1104.05 | M29: 5.5389
A30: 21 | B30: APOLLOTYRE | C30: 217.05 | D30: 215.02 | E30: 211.03 | F30: 205.02 | G30: 201.03 | H30: 221.03 | I30: 225.02 | J30: 231.03 | K30: 219 | L30: 209 | M30: 37.47478
A31: 22 | B31: ARVIND | C31: 329.8 | D31: 330.18 | E31: 324.62 | F31: 319.43 | G31: 313.87 | H31: 335.37 | I31: 340.93 | J31: 346.12 | K31: 335.75 | L31: 325 | M31: 15.50882
A32: 23 | B32: ASHOKLEY | C32: 115.8 | D32: 115.62 | E32: 112.73 | F32: 109.67 | G32: 106.78 | H32: 118.68 | I32: 121.57 | J32: 124.63 | K32: 118.5 | L32: 112.55 | M32: 220.21483
A33: 24 | B33: ASIANPAINT | C33: 1261.2 | D33: 1253.68 | E33: 1241.42 | F33: 1221.63 | G33: 1209.37 | H33: 1273.47 | I33: 1285.73 | J33: 1305.52 | K33: 1265.95 | L33: 1233.9 | M33: 10.0095
A34: 25 | B34: AUROPHARMA | C34: 735.5 | D34: 744.05 | E34: 723.45 | F34: 711.40 | G34: 690.80 | H34: 756.10 | I34: 776.70 | J34: 788.75 | K34: 764.65 | L34: 732 | M34: 35.41637
A35: 26 | B35: DMART | C35: 1411.7 | D35: 1391.23 | E35: 1361.47 | F35: 1311.23 | G35: 1281.47 | H35: 1441.47 | I35: 1471.23 | J35: 1521.47 | K35: 1421 | L35: 1341 | M35: 8.99147
A36: 27 | B36: AXISBANK | C36: 584.9 | D36: 589.30 | E36: 576.35 | F36: 567.80 | G36: 554.85 | H36: 597.85 | I36: 610.80 | J36: 619.35 | K36: 602.25 | L36: 580.75 | M36: 106.89006
A37: 28 | B37: BAJAJ-AUTO | C37: 2623.05 | D37: 2600.70 | E37: 2552.45 | F37: 2481.85 | G37: 2433.60 | H37: 2671.30 | I37: 2719.55 | J37: 2790.15 | K37: 2648.95 | L37: 2530.1 | M37: 5.10424
A38: 29 | B38: BAJFINANCE | C38: 2287.35 | D38: 2278.20 | E38: 2236.40 | F38: 2185.45 | G38: 2143.65 | H38: 2329.15 | I38: 2370.95 | J38: 2421.90 | K38: 2320 | L38: 2227.25 | M38: 36.65577
A39: 30 | B39: BAJAJFINSV | C39: 5813.55 | D39: 5801.28 | E39: 5692.37 | F39: 5571.18 | G39: 5462.27 | H39: 5922.47 | I39: 6031.38 | J39: 6152.57 | K39: 5910.2 | L39: 5680.1 | M39: 2.97224
A40: 31 | B40: BALKRISIND | C40: 1054.75 | D40: 1047.27 | E40: 1026.73 | F40: 998.72 | G40: 978.18 | H40: 1075.28 | I40: 1095.82 | J40: 1123.83 | K40: 1067.8 | L40: 1019.25 | M40: 7.08237
A41: 32 | B41: BANKBARODA | C41: 96.5 | D41: 96.35 | E41: 94.95 | F41: 93.40 | G41: 92.00 | H41: 97.90 | I41: 99.30 | J41: 100.85 | K41: 97.75 | L41: 94.8 | M41: 237.68732
A42: 33 | B42: BANKINDIA | C42: 77.15 | D42: 77.40 | E42: 76.25 | F42: 75.35 | G42: 74.20 | H42: 78.30 | I42: 79.45 | J42: 80.35 | K42: 78.55 | L42: 76.5 | M42: 47.33008
A43: 34 | B43: BATAINDIA | C43: 921.05 | D43: 924.98 | E43: 906.12 | F43: 891.18 | G43: 872.32 | H43: 939.92 | I43: 958.78 | J43: 973.72 | K43: 943.85 | L43: 910.05 | M43: 15.03189
A44: 35 | B44: BERGEPAINT | C44: 283.95 | D44: 283.00 | E44: 280.10 | F44: 276.25 | G44: 273.35 | H44: 286.85 | I44: 289.75 | J44: 293.60 | K44: 285.9 | L44: 279.15 | M44: 8.75819
A45: 36 | B45: BEL | C45: 85.55 | D45: 85.92 | E45: 84.43 | F45: 83.32 | G45: 81.83 | H45: 87.03 | I45: 88.52 | J45: 89.63 | K45: 87.4 | L45: 84.8 | M45: 76.73912
A46: 37 | B46: BHARATFIN | C46: 1021.2 | D46: 1012.75 | E46: 999.70 | F46: 978.20 | G46: 965.15 | H46: 1034.25 | I46: 1047.30 | J46: 1068.80 | K46: 1025.8 | L46: 991.25 | M46: 12.54699
A47: 38 | B47: BHARATFORG | C47: 573.6 | D47: 572.23 | E47: 560.47 | F47: 547.33 | G47: 535.57 | H47: 585.37 | I47: 597.13 | J47: 610.27 | K47: 584 | L47: 559.1 | M47: 14.20975
A48: 39 | B48: BHEL | C48: 75.15 | D48: 75.20 | E48: 73.95 | F48: 72.75 | G48: 71.50 | H48: 76.40 | I48: 77.65 | J48: 78.85 | K48: 76.45 | L48: 74 | M48: 76.55675
A49: 40 | B49: BPCL | C49: 288.9 | D49: 288.23 | E49: 280.77 | F49: 272.63 | G49: 265.17 | H49: 296.37 | I49: 303.83 | J49: 311.97 | K49: 295.7 | L49: 280.1 | M49: 112.68098
A50: 41 | B50: BHARTIARTL | C50: 290.05 | D50: 289.10 | E50: 285.60 | F50: 281.15 | G50: 277.65 | H50: 293.55 | I50: 297.05 | J50: 301.50 | K50: 292.6 | L50: 284.65 | M50: 90.08275
A51: 42 | B51: INFRATEL | C51: 265.55 | D51: 263.68 | E51: 259.87 | F51: 254.18 | G51: 250.37 | H51: 269.37 | I51: 273.18 | J51: 278.87 | K51: 267.5 | L51: 258 | M51: 25.0262
A52: 43 | B52: BIOCON | C52: 606.4 | D52: 608.55 | E52: 597.10 | F52: 587.80 | G52: 576.35 | H52: 617.85 | I52: 629.30 | J52: 638.60 | K52: 620 | L52: 599.25 | M52: 18.11899
A53: 44 | B53: BOSCHLTD | C53: 18605.2 | D53: 18633.35 | E53: 18398.00 | F53: 18190.80 | G53: 17955.45 | H53: 18840.55 | I53: 19075.90 | J53: 19283.10 | K53: 18868.7 | L53: 18426.15 | M53: 0.1688
A54: 45 | B54: BRITANNIA | C54: 5757.5 | D54: 5722.60 | E54: 5656.20 | F54: 5554.90 | G54: 5488.50 | H54: 5823.90 | I54: 5890.30 | J54: 5991.60 | K54: 5789 | L54: 5621.3 | M54: 2.17736
A55: 46 | B55: CRISIL | C55: 1623.85 | D55: 1626.38 | E55: 1609.32 | F55: 1594.78 | G55: 1577.72 | H55: 1640.92 | I55: 1657.98 | J55: 1672.52 | K55: 1643.45 | L55: 1611.85 | M55: 0.05188
A56: 47 | B56: CADILAHC | C56: 376.9 | D56: 377.72 | E56: 373.48 | F56: 370.07 | G56: 365.83 | H56: 381.13 | I56: 385.37 | J56: 388.78 | K56: 381.95 | L56: 374.3 | M56: 7.61788
A57: 48 | B57: CANBK | C57: 230.8 | D57: 231.17 | E57: 228.18 | F57: 225.57 | G57: 222.58 | H57: 233.78 | I57: 236.77 | J57: 239.38 | K57: 234.15 | L57: 228.55 | M57: 49.38108
A58: 49 | B58: CASTROLIND | C58: 144.35 | D58: 144.05 | E58: 141.85 | F58: 139.35 | G58: 137.15 | H58: 146.55 | I58: 148.75 | J58: 151.25 | K58: 146.25 | L58: 141.55 | M58: 14.97021
A59: 50 | B59: CENTRALBK | C59: 28.6 | D59: 28.30 | E59: 27.80 | F59: 27.00 | G59: 26.50 | H59: 29.10 | I59: 29.60 | J59: 30.40 | K59: 28.8 | L59: 27.5 | M59: 22.61976
A60: 51 | B60: CENTURYTEX | C60: 812.45 | D60: 793.65 | E60: 764.30 | F60: 716.15 | G60: 686.80 | H60: 841.80 | I60: 871.15 | J60: 919.30 | K60: 823 | L60: 745.5 | M60: 16.23158
A61: 52 | B61: CHOLAFIN | C61: 1189.2 | D61: 1169.72 | E61: 1134.43 | F61: 1079.67 | G61: 1044.38 | H61: 1224.48 | I61: 1259.77 | J61: 1314.53 | K61: 1205 | L61: 1114.95 | M61: 5.54714
A62: 53 | B62: CIPLA | C62: 622.9 | D62: 620.90 | E62: 614.60 | F62: 606.30 | G62: 600.00 | H62: 629.20 | I62: 635.50 | J62: 643.80 | K62: 627.2 | L62: 612.6 | M62: 20.8536
A63: 54 | B63: COALINDIA | C63: 278.6 | D63: 275.67 | E63: 271.43 | F63: 264.27 | G63: 260.03 | H63: 282.83 | I63: 287.07 | J63: 294.23 | K63: 279.9 | L63: 268.5 | M63: 29.24606
A64: 55 | B64: COLPAL | C64: 1099.85 | D64: 1099.13 | E64: 1091.27 | F64: 1082.68 | G64: 1074.82 | H64: 1107.72 | I64: 1115.58 | J64: 1124.17 | K64: 1107 | L64: 1090.55 | M64: 3.19018
A65: 56 | B65: CONCOR | C65: 607.3 | D65: 605.10 | E65: 597.20 | F65: 587.10 | G65: 579.20 | H65: 615.20 | I65: 623.10 | J65: 633.20 | K65: 613 | L65: 595 | M65: 4.48595
A66: 57 | B66: COROMANDEL | C66: 377.7 | D66: 380.20 | E66: 373.35 | F66: 369.00 | G66: 362.15 | H66: 384.55 | I66: 391.40 | J66: 395.75 | K66: 387.05 | L66: 375.85 | M66: 2.30155
A67: 58 | B67: CROMPTON | C67: 207.25 | D67: 204.58 | E67: 200.72 | F67: 194.18 | G67: 190.32 | H67: 211.12 | I67: 214.98 | J67: 221.52 | K67: 208.45 | L67: 198.05 | M67: 9.995
A68: 59 | B68: CUMMINSIND | C68: 680.25 | D68: 680.58 | E68: 672.17 | F68: 664.08 | G68: 655.67 | H68: 688.67 | I68: 697.08 | J68: 705.17 | K68: 689 | L68: 672.5 | M68: 0.81501
A69: 60 | B69: DLF | C69: 157.65 | D69: 158.13 | E69: 155.22 | F69: 152.78 | G69: 149.87 | H69: 160.57 | I69: 163.48 | J69: 165.92 | K69: 161.05 | L69: 155.7 | M69: 70.37376
A70: 61 | B70: DABUR | C70: 407.85 | D70: 405.52 | E70: 399.63 | F70: 391.42 | G70: 385.53 | H70: 413.73 | I70: 419.62 | J70: 427.83 | K70: 411.4 | L70: 397.3 | M70: 36.80197
A71: 62 | B71: DALMIABHA | C71: 2105.3 | D71: 2113.73 | E71: 2057.67 | F71: 2010.03 | G71: 1953.97 | H71: 2161.37 | I71: 2217.43 | J71: 2265.07 | K71: 2169.8 | L71: 2066.1 | M71: 0.72016
A72: 63 | B72: DHFL | C72: 292.25 | D72: 298.08 | E72: 284.17 | F72: 276.08 | G72: 262.17 | H72: 306.17 | I72: 320.08 | J72: 328.17 | K72: 312 | L72: 290 | M72: 198.63839
A73: 64 | B73: DISHTV | C73: 55.4 | D73: 55.68 | E73: 54.52 | F73: 53.63 | G73: 52.47 | H73: 56.57 | I73: 57.73 | J73: 58.62 | K73: 56.85 | L73: 54.8 | M73: 37.45717
A74: 65 | B74: DIVISLAB | C74: 1282.3 | D74: 1279.65 | E74: 1262.55 | F74: 1242.80 | G74: 1225.70 | H74: 1299.40 | I74: 1316.50 | J74: 1336.25 | K74: 1296.75 | L74: 1259.9 | M74: 8.2558
A75: 66 | B75: LALPATHLAB | C75: 966.4 | D75: 962.87 | E75: 953.48 | F75: 940.57 | G75: 931.18 | H75: 975.78 | I75: 985.17 | J75: 998.08 | K75: 972.25 | L75: 949.95 | M75: 0.09182
A76: 67 | B76: DRREDDY | C76: 2450.5 | D76: 2457.97 | E76: 2424.98 | F76: 2399.47 | G76: 2366.48 | H76: 2483.48 | I76: 2516.47 | J76: 2541.98 | K76: 2490.95 | L76: 2432.45 | M76: 9.25386
A77: 68 | B77: EDELWEISS | C77: 179.75 | D77: 176.92 | E77: 173.83 | F77: 167.92 | G77: 164.83 | H77: 182.83 | I77: 185.92 | J77: 191.83 | K77: 180 | L77: 171 | M77: 39.14094
A78: 69 | B78: EICHERMOT | C78: 23903.75 | D78: 23534.58 | E78: 22870.17 | F78: 21836.58 | G78: 21172.17 | H78: 24568.17 | I78: 25232.58 | J78: 26266.17 | K78: 24199 | L78: 22501 | M78: 1.76103
A79: 70 | B79: EMAMILTD | C79: 443.8 | D79: 442.93 | E79: 433.37 | F79: 422.93 | G79: 413.37 | H79: 453.37 | I79: 462.93 | J79: 473.37 | K79: 452.5 | L79: 432.5 | M79: 5.76261
A80: 71 | B80: ENDURANCE | C80: 1184 | D80: 1184.98 | E80: 1170.97 | F80: 1157.93 | G80: 1143.92 | H80: 1198.02 | I80: 1212.03 | J80: 1225.07 | K80: 1199 | L80: 1171.95 | M80: 0.3983
A81: 72 | B81: ENGINERSIN | C81: 116.15 | D81: 116.12 | E81: 112.43 | F81: 108.72 | G81: 105.03 | H81: 119.83 | I81: 123.52 | J81: 127.23 | K81: 119.8 | L81: 112.4 | M81: 33.86892
A82: 73 | B82: EXIDEIND | C82: 256.3 | D82: 256.17 | E82: 253.58 | F82: 250.87 | G82: 248.28 | H82: 258.88 | I82: 261.47 | J82: 264.18 | K82: 258.75 | L82: 253.45 | M82: 10.23941
A83: 74 | B83: FEDERALBNK | C83: 73.75 | D83: 73.33 | E83: 72.42 | F83: 71.08 | G83: 70.17 | H83: 74.67 | I83: 75.58 | J83: 76.92 | K83: 74.25 | L83: 72 | M83: 97.48912
A84: 75 | B84: GAIL | C84: 359.3 | D84: 357.17 | E84: 353.33 | F84: 347.37 | G84: 343.53 | H84: 363.13 | I84: 366.97 | J84: 372.93 | K84: 361 | L84: 351.2 | M84: 50.62781
A85: 76 | B85: GMRINFRA | C85: 16.6 | D85: 16.47 | E85: 16.08 | F85: 15.57 | G85: 15.18 | H85: 16.98 | I85: 17.37 | J85: 17.88 | K85: 16.85 | L85: 15.95 | M85: 266.87874
A86: 77 | B86: GSKCONS | C86: 6981.9 | D86: 6963.95 | E86: 6917.95 | F86: 6854.00 | G86: 6808.00 | H86: 7027.90 | I86: 7073.90 | J86: 7137.85 | K86: 7009.95 | L86: 6900 | M86: 0.06217
A87: 78 | B87: GLAXO | C87: 1407.1 | D87: 1397.80 | E87: 1382.50 | F87: 1357.90 | G87: 1342.60 | H87: 1422.40 | I87: 1437.70 | J87: 1462.30 | K87: 1413.1 | L87: 1373.2 | M87: 0.12111
A88: 79 | B88: GLENMARK | C88: 602.25 | D88: 599.18 | E88: 592.37 | F88: 582.48 | G88: 575.67 | H88: 609.07 | I88: 615.88 | J88: 625.77 | K88: 606 | L88: 589.3 | M88: 5.55685
A89: 80 | B89: GODREJCP | C89: 716.35 | D89: 720.48 | E89: 701.97 | F89: 687.58 | G89: 669.07 | H89: 734.87 | I89: 753.38 | J89: 767.77 | K89: 739 | L89: 706.1 | M89: 9.27076
A90: 81 | B90: GODREJIND | C90: 477.8 | D90: 482.27 | E90: 469.53 | F90: 461.27 | G90: 448.53 | H90: 490.53 | I90: 503.27 | J90: 511.53 | K90: 495 | L90: 474 | M90: 2.97543
A91: 82 | B91: GRUH | C91: 281.3 | D91: 279.20 | E91: 273.00 | F91: 264.70 | G91: 258.50 | H91: 287.50 | I91: 293.70 | J91: 302.00 | K91: 285.4 | L91: 270.9 | M91: 4.71429
A92: 83 | B92: GPPL | C92: 102.2 | D92: 102.83 | E92: 99.87 | F92: 97.53 | G92: 94.57 | H92: 105.17 | I92: 108.13 | J92: 110.47 | K92: 105.8 | L92: 100.5 | M92: 3.5751
A93: 84 | B93: GSPL | C93: 171 | D93: 171.50 | E93: 169.25 | F93: 167.50 | G93: 165.25 | H93: 173.25 | I93: 175.50 | J93: 177.25 | K93: 173.75 | L93: 169.75 | M93: 1.91078
A94: 85 | B94: HCLTECH | C94: 985.15 | D94: 988.88 | E94: 970.77 | F94: 956.38 | G94: 938.27 | H94: 1003.27 | I94: 1021.38 | J94: 1035.77 | K94: 1007 | L94: 974.5 | M94: 23.25874
A95: 86 | B95: HDFCBANK | C95: 1981.85 | D95: 1973.65 | E95: 1950.20 | F95: 1918.55 | G95: 1895.10 | H95: 2005.30 | I95: 2028.75 | J95: 2060.40 | K95: 1997.1 | L95: 1942 | M95: 24.0008
A96: 87 | B96: HAVELLS | C96: 595.75 | D96: 594.03 | E96: 586.72 | F96: 577.68 | G96: 570.37 | H96: 603.07 | I96: 610.38 | J96: 619.42 | K96: 601.35 | L96: 585 | M96: 12.07151
A97: 88 | B97: HEROMOTOCO | C97: 2893.95 | D97: 2902.92 | E97: 2866.03 | F97: 2838.12 | G97: 2801.23 | H97: 2930.83 | I97: 2967.72 | J97: 2995.63 | K97: 2939.8 | L97: 2875 | M97: 3.84692
A98: 89 | B98: HEXAWARE | C98: 388.75 | D98: 387.05 | E98: 378.95 | F98: 369.15 | G98: 361.05 | H98: 396.85 | I98: 404.95 | J98: 414.75 | K98: 395.15 | L98: 377.25 | M98: 14.746
A99: 90 | B99: HINDALCO | C99: 226.7 | D99: 224.28 | E99: 220.42 | F99: 214.13 | G99: 210.27 | H99: 230.57 | I99: 234.43 | J99: 240.72 | K99: 228.15 | L99: 218 | M99: 72.63391
A100: 91 | B100: HINDPETRO | C100: 218.4 | D100: 217.90 | E100: 213.80 | F100: 209.20 | G100: 205.10 | H100: 222.50 | I100: 226.60 | J100: 231.20 | K100: 222 | L100: 213.3 | M100: 188.6014
A101: 92 | B101: HINDUNILVR | C101: 1569.6 | D101: 1562.40 | E101: 1547.30 | F101: 1525.00 | G101: 1509.90 | H101: 1584.70 | I101: 1599.80 | J101: 1622.10 | K101: 1577.5 | L101: 1540.1 | M101: 17.28063
A102: 93 | B102: HINDZINC | C102: 277.55 | D102: 275.58 | E102: 272.57 | F102: 267.58 | G102: 264.57 | H102: 280.57 | I102: 283.58 | J102: 288.57 | K102: 278.6 | L102: 270.6 | M102: 11.00768
A103: 94 | B103: HUDCO | C103: 42.7 | D103: 42.45 | E103: 41.70 | F103: 40.70 | G103: 39.95 | H103: 43.45 | I103: 44.20 | J103: 45.20 | K103: 43.2 | L103: 41.45 | M103: 12.96606
A104: 95 | B104: HDFC | C104: 1730.3 | D104: 1722.10 | E104: 1702.70 | F104: 1675.10 | G104: 1655.70 | H104: 1749.70 | I104: 1769.10 | J104: 1796.70 | K104: 1741.5 | L104: 1694.5 | M104: 27.31113
A105: 96 | B105: ITC | C105: 275.2 | D105: 273.38 | E105: 269.12 | F105: 263.03 | G105: 258.77 | H105: 279.47 | I105: 283.73 | J105: 289.82 | K105: 277.65 | L105: 267.3 | M105: 134.25871
A106: 97 | B106: ICICIBANK | C106: 319.4 | D106: 319.08 | E106: 313.92 | F106: 308.43 | G106: 303.27 | H106: 324.57 | I106: 329.73 | J106: 335.22 | K106: 324.25 | L106: 313.6 | M106: 259.30022
A107: 98 | B107: ICICIPRULI | C107: 318.4 | D107: 321.57 | E107: 313.68 | F107: 308.97 | G107: 301.08 | H107: 326.28 | I107: 334.17 | J107: 338.88 | K107: 329.45 | L107: 316.85 | M107: 13.87309
A108: 99 | B108: IDBI | C108: 59.05 | D108: 59.05 | E108: 58.60 | F108: 58.15 | G108: 57.70 | H108: 59.50 | I108: 59.95 | J108: 60.40 | K108: 59.5 | L108: 58.6 | M108: 87.042
A109: 100 | B109: IDFCBANK | C109: 36.5 | D109: 36.25 | E109: 35.75 | F109: 35.00 | G109: 34.50 | H109: 37.00 | I109: 37.50 | J109: 38.25 | K109: 36.75 | L109: 35.5 | M109: 94.34139
A110: 101 | B110: IDFC | C110: 38.75 | D110: 38.47 | E110: 37.93 | F110: 37.12 | G110: 36.58 | H110: 39.28 | I110: 39.82 | J110: 40.63 | K110: 39 | L110: 37.65 | M110: 21.27108
A111: 102 | B111: IRB | C111: 133.3 | D111: 133.52 | E111: 130.78 | F111: 128.27 | G111: 125.53 | H111: 136.03 | I111: 138.77 | J111: 141.28 | K111: 136.25 | L111: 131 | M111: 13.27327
A112: 103 | B112: IDEA | C112: 35.95 | D112: 35.80 | E112: 35.10 | F112: 34.25 | G112: 33.55 | H112: 36.65 | I112: 37.35 | J112: 38.20 | K112: 36.5 | L112: 34.95 | M112: 149.07369
A113: 104 | B113: IBULHSGFIN | C113: 931.95 | D113: 928.62 | E113: 915.33 | F113: 898.72 | G113: 885.43 | H113: 945.23 | I113: 958.52 | J113: 975.13 | K113: 941.9 | L113: 912 | M113: 48.335
A114: 105 | B114: INDIANB | C114: 236.85 | D114: 236.43 | E114: 232.57 | F114: 228.28 | G114: 224.42 | H114: 240.72 | I114: 244.58 | J114: 248.87 | K114: 240.3 | L114: 232.15 | M114: 11.11021
A115: 106 | B115: INDHOTEL | C115: 125.2 | D115: 124.52 | E115: 122.63 | F115: 120.07 | G115: 118.18 | H115: 127.08 | I115: 128.97 | J115: 131.53 | K115: 126.4 | L115: 121.95 | M115: 9.71435
A116: 107 | B116: IOC | C116: 133.9 | D116: 134.60 | E116: 132.45 | F116: 131.00 | G116: 128.85 | H116: 136.05 | I116: 138.20 | J116: 139.65 | K116: 136.75 | L116: 133.15 | M116: 141.66649
A117: 108 | B117: IGL | C117: 241.7 | D117: 239.88 | E117: 233.22 | F117: 224.73 | G117: 218.07 | H117: 248.37 | I117: 255.03 | J117: 263.52 | K117: 246.55 | L117: 231.4 | M117: 28.5638
A118: 109 | B118: INDUSINDBK | C118: 1652.7 | D118: 1639.40 | E118: 1619.30 | F118: 1585.90 | G118: 1565.80 | H118: 1672.80 | I118: 1692.90 | J118: 1726.30 | K118: 1659.5 | L118: 1606 | M118: 21.6908
A119: 110 | B119: NAUKRI | C119: 1484 | D119: 1482.97 | E119: 1456.03 | F119: 1428.07 | G119: 1401.13 | H119: 1510.93 | I119: 1537.87 | J119: 1565.83 | K119: 1509.9 | L119: 1455 | M119: 0.30001
A120: 111 | B120: INFY | C120: 678.8 | D120: 674.78 | E120: 665.52 | F120: 652.23 | G120: 642.97 | H120: 688.07 | I120: 697.33 | J120: 710.62 | K120: 684.05 | L120: 661.5 | M120: 89.09221
A121: 112 | B121: INDIGO | C121: 808.55 | D121: 798.67 | E121: 780.73 | F121: 752.92 | G121: 734.98 | H121: 826.48 | I121: 844.42 | J121: 872.23 | K121: 816.6 | L121: 770.85 | M121: 22.18133
A122: 113 | B122: IPCALAB | C122: 661.7 | D122: 651.83 | E122: 637.87 | F122: 614.03 | G122: 600.07 | H122: 675.67 | I122: 689.63 | J122: 713.47 | K122: 665.8 | L122: 628 | M122: 0.51339
A123: 114 | B123: JSWENERGY | C123: 63.4 | D123: 62.68 | E123: 60.67 | F123: 57.93 | G123: 55.92 | H123: 65.42 | I123: 67.43 | J123: 70.17 | K123: 64.7 | L123: 59.95 | M123: 12.82696
A124: 115 | B124: JSWSTEEL | C124: 379.7 | D124: 374.77 | E124: 368.28 | F124: 356.87 | G124: 350.38 | H124: 386.18 | I124: 392.67 | J124: 404.08 | K124: 381.25 | L124: 363.35 | M124: 49.70667
A125: 116 | B125: JINDALSTEL | C125: 178.4 | D125: 175.95 | E125: 171.55 | F125: 164.70 | G125: 160.30 | H125: 182.80 | I125: 187.20 | J125: 194.05 | K125: 180.35 | L125: 169.1 | M125: 133.39907
A126: 117 | B126: JUBLFOOD | C126: 1187.3 | D126: 1177.57 | E126: 1159.73 | F126: 1132.17 | G126: 1114.33 | H126: 1205.13 | I126: 1222.97 | J126: 1250.53 | K126: 1195.4 | L126: 1150 | M126: 10.1408
A127: 118 | B127: JUBILANT | C127: 663.8 | D127: 662.23 | E127: 654.47 | F127: 645.13 | G127: 637.37 | H127: 671.57 | I127: 679.33 | J127: 688.67 | K127: 670 | L127: 652.9 | M127: 4.16525
A128: 119 | B128: KARURVYSYA | C128: 74.85 | D128: 75.30 | E128: 73.90 | F128: 72.95 | G128: 71.55 | H128: 76.25 | I128: 77.65 | J128: 78.60 | K128: 76.7 | L128: 74.35 | M128: 10.16642
A129: 120 | B129: KOTAKBANK | C129: 1167.15 | D129: 1154.10 | E129: 1135.05 | F129: 1102.95 | G129: 1083.90 | H129: 1186.20 | I129: 1205.25 | J129: 1237.35 | K129: 1173.15 | L129: 1122 | M129: 62.76615
A130: 121 | B130: L&TFH | C130: 132.8 | D130: 133.18 | E130: 130.02 | F130: 127.23 | G130: 124.07 | H130: 135.97 | I130: 139.13 | J130: 141.92 | K130: 136.35 | L130: 130.4 | M130: 99.18268
A131: 122 | B131: LICHSGFIN | C131: 431.25 | D131: 427.60 | E131: 420.35 | F131: 409.45 | G131: 402.20 | H131: 438.50 | I131: 445.75 | J131: 456.65 | K131: 434.85 | L131: 416.7 | M131: 22.13641
A132: 123 | B132: LT | C132: 1235.25 | D132: 1233.00 | E132: 1221.00 | F132: 1206.75 | G132: 1194.75 | H132: 1247.25 | I132: 1259.25 | J132: 1273.50 | K132: 1245 | L132: 1218.75 | M132: 27.7344
A133: 124 | B133: LUPIN | C133: 846.25 | D133: 845.10 | E133: 837.20 | F133: 828.15 | G133: 820.25 | H133: 854.15 | I133: 862.05 | J133: 871.10 | K133: 853 | L133: 836.05 | M133: 15.54768
A134: 125 | B134: MRF | C134: 63978.35 | D134: 64186.10 | E134: 63412.25 | F134: 62846.15 | G134: 62072.30 | H134: 64752.20 | I134: 65526.05 | J134: 66092.15 | K134: 64959.95 | L134: 63620 | M134: 0.11121
A135: 126 | B135: MGL | C135: 824.55 | D135: 818.87 | E135: 802.73 | F135: 780.92 | G135: 764.78 | H135: 840.68 | I135: 856.82 | J135: 878.63 | K135: 835 | L135: 797.05 | M135: 3.36946
A136: 127 | B136: M&MFIN | C136: 387 | D136: 387.33 | E136: 377.67 | F136: 368.33 | G136: 358.67 | H136: 396.67 | I136: 406.33 | J136: 415.67 | K136: 397 | L136: 378 | M136: 25.57314
A137: 128 | B137: M&M | C137: 768.5 | D137: 759.98 | E137: 744.07 | F137: 719.63 | G137: 703.72 | H137: 784.42 | I137: 800.33 | J137: 824.77 | K137: 775.9 | L137: 735.55 | M137: 44.77653
A138: 129 | B138: MANAPPURAM | C138: 73.1 | D138: 74.18 | E138: 71.52 | F138: 69.93 | G138: 67.27 | H138: 75.77 | I138: 78.43 | J138: 80.02 | K138: 76.85 | L138: 72.6 | M138: 28.09498
A139: 130 | B139: MRPL | C139: 83 | D139: 81.88 | E139: 78.97 | F139: 74.93 | G139: 72.02 | H139: 85.92 | I139: 88.83 | J139: 92.87 | K139: 84.8 | L139: 77.85 | M139: 45.50928
A140: 131 | B140: MARICO | C140: 314.95 | D140: 314.47 | E140: 306.93 | F140: 298.92 | G140: 291.38 | H140: 322.48 | I140: 330.02 | J140: 338.03 | K140: 322 | L140: 306.45 | M140: 47.95317
A141: 132 | B141: MARUTI | C141: 7287.2 | D141: 7187.73 | E141: 7049.47 | F141: 6811.73 | G141: 6673.47 | H141: 7425.47 | I141: 7563.73 | J141: 7801.47 | K141: 7326 | L141: 6950 | M141: 10.53651
A142: 133 | B142: MFSL | C142: 372.2 | D142: 373.97 | E142: 366.48 | F142: 360.77 | G142: 353.28 | H142: 379.68 | I142: 387.17 | J142: 392.88 | K142: 381.45 | L142: 368.25 | M142: 9.47661
A143: 134 | B143: MINDTREE | C143: 953.25 | D143: 964.82 | E143: 929.63 | F143: 906.02 | G143: 870.83 | H143: 988.43 | I143: 1023.62 | J143: 1047.23 | K143: 1000 | L143: 941.2 | M143: 13.23286
A144: 135 | B144: MOTHERSUMI | C144: 238.7 | D144: 236.57 | E144: 233.13 | F144: 227.57 | G144: 224.13 | H144: 242.13 | I144: 245.57 | J144: 251.13 | K144: 240 | L144: 231 | M144: 28.48405
A145: 136 | B145: MPHASIS | C145: 1008.25 | D145: 1020.53 | E145: 986.82 | F145: 965.38 | G145: 931.67 | H145: 1041.97 | I145: 1075.68 | J145: 1097.12 | K145: 1054.25 | L145: 999.1 | M145: 8.79375
A146: 137 | B146: MUTHOOTFIN | C146: 402.8 | D146: 403.37 | E146: 396.58 | F146: 390.37 | G146: 383.58 | H146: 409.58 | I146: 416.37 | J146: 422.58 | K146: 410.15 | L146: 397.15 | M146: 8.26244
A147: 138 | B147: NATCOPHARM | C147: 677.85 | D147: 673.32 | E147: 664.63 | F147: 651.42 | G147: 642.73 | H147: 686.53 | I147: 695.22 | J147: 708.43 | K147: 682 | L147: 660.1 | M147: 1.55969
A148: 139 | B148: NBCC | C148: 53.4 | D148: 53.82 | E148: 52.63 | F148: 51.87 | G148: 50.68 | H148: 54.58 | I148: 55.77 | J148: 56.53 | K148: 55 | L148: 53.05 | M148: 67.73089
A149: 140 | B149: NHPC | C149: 23.8 | D149: 23.87 | E149: 23.58 | F149: 23.37 | G149: 23.08 | H149: 24.08 | I149: 24.37 | J149: 24.58 | K149: 24.15 | L149: 23.65 | M149: 19.22651
A150: 141 | B150: NMDC | C150: 111.25 | D150: 111.10 | E150: 109.75 | F150: 108.25 | G150: 106.90 | H150: 112.60 | I150: 113.95 | J150: 115.45 | K150: 112.45 | L150: 109.6 | M150: 21.67092
A151: 142 | B151: NTPC | C151: 164.2 | D151: 164.20 | E151: 163.05 | F151: 161.90 | G151: 160.75 | H151: 165.35 | I151: 166.50 | J151: 167.65 | K151: 165.35 | L151: 163.05 | M151: 34.56586
A152: 143 | B152: NATIONALUM | C152: 66.95 | D152: 67.27 | E152: 66.08 | F152: 65.22 | G152: 64.03 | H152: 68.13 | I152: 69.32 | J152: 70.18 | K152: 68.45 | L152: 66.4 | M152: 90.79999
A153: 144 | B153: OBEROIRLTY | C153: 385.35 | D153: 381.83 | E153: 373.97 | F153: 362.58 | G153: 354.72 | H153: 393.22 | I153: 401.08 | J153: 412.47 | K153: 389.7 | L153: 370.45 | M153: 4.44732
A154: 145 | B154: ONGC | C154: 157.4 | D154: 156.60 | E154: 154.85 | F154: 152.30 | G154: 150.55 | H154: 159.15 | I154: 160.90 | J154: 163.45 | K154: 158.35 | L154: 154.05 | M154: 60.89606
A155: 146 | B155: OIL | C155: 202.6 | D155: 201.07 | E155: 198.73 | F155: 194.87 | G155: 192.53 | H155: 204.93 | I155: 207.27 | J155: 211.13 | K155: 203.4 | L155: 197.2 | M155: 9.90446
A156: 147 | B156: OFSS | C156: 3930.8 | D156: 3938.57 | E156: 3902.23 | F156: 3873.67 | G156: 3837.33 | H156: 3967.13 | I156: 4003.47 | J156: 4032.03 | K156: 3974.9 | L156: 3910 | M156: 0.1937
A157: 148 | B157: PCJEWELLER | C157: 56.95 | D157: 57.03 | E157: 56.22 | F157: 55.48 | G157: 54.67 | H157: 57.77 | I157: 58.58 | J157: 59.32 | K157: 57.85 | L157: 56.3 | M157: 55.53261
A158: 149 | B158: PIIND | C158: 770.9 | D158: 768.58 | E158: 747.17 | F158: 723.43 | G158: 702.02 | H158: 792.32 | I158: 813.73 | J158: 837.47 | K158: 790 | L158: 744.85 | M158: 1.01273
A159: 150 | B159: PNBHOUSING | C159: 899 | D159: 898.35 | E159: 872.25 | F159: 845.50 | G159: 819.40 | H159: 925.10 | I159: 951.20 | J159: 977.95 | K159: 924.45 | L159: 871.6 | M159: 2.68731
A160: 151 | B160: PAGEIND | C160: 29032.1 | D160: 28644.97 | E160: 28100.53 | F160: 27168.97 | G160: 26624.53 | H160: 29576.53 | I160: 30120.97 | J160: 31052.53 | K160: 29189.4 | L160: 27713.4 | M160: 0.38326
A161: 152 | B161: PETRONET | C161: 217.9 | D161: 216.80 | E161: 214.35 | F161: 210.80 | G161: 208.35 | H161: 220.35 | I161: 222.80 | J161: 226.35 | K161: 219.25 | L161: 213.25 | M161: 22.18732
A162: 153 | B162: PIDILITIND | C162: 993.3 | D162: 988.68 | E162: 973.92 | F162: 954.53 | G162: 939.77 | H162: 1008.07 | I162: 1022.83 | J162: 1042.22 | K162: 1003.45 | L162: 969.3 | M162: 6.26145
A163: 154 | B163: PEL | C163: 2246 | D163: 2280.82 | E163: 2201.58 | F163: 2157.17 | G163: 2077.93 | H163: 2325.23 | I163: 2404.47 | J163: 2448.88 | K163: 2360.05 | L163: 2236.4 | M163: 8.04149
A164: 155 | B164: PFC | C164: 78.7 | D164: 78.23 | E164: 76.47 | F164: 74.23 | G164: 72.47 | H164: 80.47 | I164: 82.23 | J164: 84.47 | K164: 80 | L164: 76 | M164: 55.48867
A165: 156 | B165: POWERGRID | C165: 188.45 | D165: 188.10 | E165: 186.45 | F165: 184.45 | G165: 182.80 | H165: 190.10 | I165: 191.75 | J165: 193.75 | K165: 189.75 | L165: 186.1 | M165: 38.56539
A166: 157 | B166: PRESTIGE | C166: 176.8 | D166: 174.77 | E166: 167.63 | F166: 158.47 | G166: 151.33 | H166: 183.93 | I166: 191.07 | J166: 200.23 | K166: 181.9 | L166: 165.6 | M166: 15.42214
A167: 158 | B167: PGHH | C167: 8971.9 | D167: 9043.05 | E167: 8836.10 | F167: 8700.30 | G167: 8493.35 | H167: 9178.85 | I167: 9385.80 | J167: 9521.60 | K167: 9250 | L167: 8907.25 | M167: 0.02653
A168: 159 | B168: PNB | C168: 66.5 | D168: 66.40 | E168: 65.15 | F168: 63.80 | G168: 62.55 | H168: 67.75 | I168: 69.00 | J168: 70.35 | K168: 67.65 | L168: 65.05 | M168: 221.88888
A169: 160 | B169: RBLBANK | C169: 526.85 | D169: 533.88 | E169: 517.97 | F169: 509.08 | G169: 493.17 | H169: 542.77 | I169: 558.68 | J169: 567.57 | K169: 549.8 | L169: 525 | M169: 14.93753
A170: 161 | B170: RAJESHEXPO | C170: 607.9 | D170: 622.97 | E170: 587.93 | F170: 567.97 | G170: 532.93 | H170: 642.93 | I170: 677.97 | J170: 697.93 | K170: 658 | L170: 603 | M170: 4.95926
A171: 162 | B171: RELCAPITAL | C171: 261.8 | D171: 257.47 | E171: 248.33 | F171: 234.87 | G171: 225.73 | H171: 270.93 | I171: 280.07 | J171: 293.53 | K171: 266.6 | L171: 244 | M171: 107.37147
A172: 163 | B172: RCOM | C172: 11.65 | D172: 11.73 | E172: 11.27 | F172: 10.88 | G172: 10.42 | H172: 12.12 | I172: 12.58 | J172: 12.97 | K172: 12.2 | L172: 11.35 | M172: 812.4135
A173: 164 | B173: RELIANCE | C173: 1126.55 | D173: 1119.15 | E173: 1109.30 | F173: 1092.05 | G173: 1082.20 | H173: 1136.40 | I173: 1146.25 | J173: 1163.50 | K173: 1129 | L173: 1101.9 | M173: 90.58536
A174: 165 | B174: RELINFRA | C174: 329.2 | D174: 324.53 | E174: 309.67 | F174: 290.13 | G174: 275.27 | H174: 344.07 | I174: 358.93 | J174: 378.47 | K174: 339.4 | L174: 305 | M174: 59.57121
A175: 166 | B175: RPOWER | C175: 28.1 | D175: 27.72 | E175: 26.58 | F175: 25.07 | G175: 23.93 | H175: 29.23 | I175: 30.37 | J175: 31.88 | K175: 28.85 | L175: 26.2 | M175: 141.32888
A176: 167 | B176: RECLTD | C176: 102.25 | D176: 101.97 | E176: 100.23 | F176: 98.22 | G176: 96.48 | H176: 103.98 | I176: 105.72 | J176: 107.73 | K176: 103.7 | L176: 99.95 | M176: 47.33081
A177: 168 | B177: SRF | C177: 1773.1 | D177: 1770.37 | E177: 1727.73 | F177: 1682.37 | G177: 1639.73 | H177: 1815.73 | I177: 1858.37 | J177: 1903.73 | K177: 1813 | L177: 1725 | M177: 5.69394
A178: 169 | B178: SHREECEM | C178: 15348.05 | D178: 15221.48 | E178: 14983.02 | F178: 14617.98 | G178: 14379.52 | H178: 15586.52 | I178: 15824.98 | J178: 16190.02 | K178: 15459.95 | L178: 14856.45 | M178: 0.30967
A179: 170 | B179: SRTRANSFIN | C179: 1039.95 | D179: 1070.35 | E179: 995.70 | F179: 951.45 | G179: 876.80 | H179: 1114.60 | I179: 1189.25 | J179: 1233.50 | K179: 1145 | L179: 1026.1 | M179: 20.93839
A180: 171 | B180: SIEMENS | C180: 913.7 | D180: 907.60 | E180: 896.65 | F180: 879.60 | G180: 868.65 | H180: 924.65 | I180: 935.60 | J180: 952.65 | K180: 918.55 | L180: 890.55 | M180: 1.84583
A181: 172 | B181: SBIN | C181: 263.75 | D181: 264.38 | E181: 260.87 | F181: 257.98 | G181: 254.47 | H181: 267.27 | I181: 270.78 | J181: 273.67 | K181: 267.9 | L181: 261.5 | M181: 429.67696
A182: 173 | B182: SAIL | C182: 66.55 | D182: 66.27 | E182: 65.33 | F182: 64.12 | G182: 63.18 | H182: 67.48 | I182: 68.42 | J182: 69.63 | K182: 67.2 | L182: 65.05 | M182: 144.56332
A183: 174 | B183: SPARC | C183: 312.05 | D183: 311.87 | E183: 307.83 | F183: 303.62 | G183: 299.58 | H183: 316.08 | I183: 320.12 | J183: 324.33 | K183: 315.9 | L183: 307.65 | M183: 1.31034
A184: 175 | B184: SUNPHARMA | C184: 590.6 | D184: 590.33 | E184: 582.92 | F184: 575.23 | G184: 567.82 | H184: 598.02 | I184: 605.43 | J184: 613.12 | K184: 597.75 | L184: 582.65 | M184: 57.95641
A185: 176 | B185: SUNTV | C185: 653.95 | D185: 649.90 | E185: 642.80 | F185: 631.65 | G185: 624.55 | H185: 661.05 | I185: 668.15 | J185: 679.30 | K185: 657 | L185: 638.75 | M185: 8.95866
A186: 177 | B186: SUZLON | C186: 5.8 | D186: 5.78 | E186: 5.52 | F186: 5.23 | G186: 4.97 | H186: 6.07 | I186: 6.33 | J186: 6.62 | K186: 6.05 | L186: 5.5 | M186: 442.81458
A187: 178 | B187: SYNDIBANK | C187: 31.5 | D187: 31.43 | E187: 31.07 | F187: 30.63 | G187: 30.27 | H187: 31.87 | I187: 32.23 | J187: 32.67 | K187: 31.8 | L187: 31 | M187: 19.37018
A188: 179 | B188: SYNGENE | C188: 586.15 | D188: 590.50 | E188: 580.05 | F188: 573.95 | G188: 563.50 | H188: 596.60 | I188: 607.05 | J188: 613.15 | K188: 600.95 | L188: 584.4 | M188: 0.22578
A189: 180 | B189: TV18BRDCST | C189: 35.15 | D189: 35.30 | E189: 34.55 | F189: 33.95 | G189: 33.20 | H189: 35.90 | I189: 36.65 | J189: 37.25 | K189: 36.05 | L189: 34.7 | M189: 64.70777
A190: 181 | B190: TVSMOTOR | C190: 534.1 | D190: 528.80 | E190: 520.55 | F190: 507.00 | G190: 498.75 | H190: 542.35 | I190: 550.60 | J190: 564.15 | K190: 537.05 | L190: 515.25 | M190: 10.34777
A191: 182 | B191: TATACHEM | C191: 655.95 | D191: 651.02 | E191: 642.23 | F191: 628.52 | G191: 619.73 | H191: 664.73 | I191: 673.52 | J191: 687.23 | K191: 659.8 | L191: 637.3 | M191: 4.16494
A192: 183 | B192: TATACOMM | C192: 484.65 | D192: 487.00 | E192: 477.40 | F192: 470.15 | G192: 460.55 | H192: 494.25 | I192: 503.85 | J192: 511.10 | K192: 496.6 | L192: 479.75 | M192: 1.43395
A193: 184 | B193: TCS | C193: 1918.3 | D193: 1933.10 | E193: 1888.20 | F193: 1858.10 | G193: 1813.20 | H193: 1963.20 | I193: 2008.10 | J193: 2038.20 | K193: 1978 | L193: 1903 | M193: 93.73289
A194: 185 | B194: TATAGLOBAL | C194: 229.1 | D194: 228.98 | E194: 225.62 | F194: 222.13 | G194: 218.77 | H194: 232.47 | I194: 235.83 | J194: 239.32 | K194: 232.35 | L194: 225.5 | M194: 11.65527
A195: 186 | B195: TATAMTRDVR | C195: 100.9 | D195: 101.63 | E195: 99.77 | F195: 98.63 | G195: 96.77 | H195: 102.77 | I195: 104.63 | J195: 105.77 | K195: 103.5 | L195: 100.5 | M195: 42.2748
A196: 187 | B196: TATAMOTORS | C196: 183.75 | D196: 184.92 | E196: 181.43 | F196: 179.12 | G196: 175.63 | H196: 187.23 | I196: 190.72 | J196: 193.03 | K196: 188.4 | L196: 182.6 | M196: 180.14894
A197: 188 | B197: TATAPOWER | C197: 68.85 | D197: 67.97 | E197: 63.83 | F197: 58.82 | G197: 54.68 | H197: 72.98 | I197: 77.12 | J197: 82.13 | K197: 72.1 | L197: 62.95 | M197: 290.93448
A198: 189 | B198: TATASTEEL | C198: 576.5 | D198: 571.13 | E198: 563.47 | F198: 550.43 | G198: 542.77 | H198: 584.17 | I198: 591.83 | J198: 604.87 | K198: 578.8 | L198: 558.1 | M198: 57.33407
A199: 190 | B199: TECHM | C199: 693.8 | D199: 694.78 | E199: 687.02 | F199: 680.23 | G199: 672.47 | H199: 701.57 | I199: 709.33 | J199: 716.12 | K199: 702.55 | L199: 688 | M199: 27.27205
A200: 191 | B200: RAMCOCEM | C200: 585.25 | D200: 585.95 | E200: 579.70 | F200: 574.15 | G200: 567.90 | H200: 591.50 | I200: 597.75 | J200: 603.30 | K200: 592.2 | L200: 580.4 | M200: 1.82671
A201: 192 | B201: TITAN | C201: 805.15 | D201: 797.33 | E201: 784.92 | F201: 764.68 | G201: 752.27 | H201: 817.57 | I201: 829.98 | J201: 850.22 | K201: 809.75 | L201: 777.1 | M201: 43.22158
A202: 193 | B202: TORNTPHARM | C202: 1580.25 | D202: 1586.02 | E202: 1546.18 | F202: 1512.12 | G202: 1472.28 | H202: 1620.08 | I202: 1659.92 | J202: 1693.98 | K202: 1625.85 | L202: 1551.95 | M202: 2.43142
A203: 194 | B203: TORNTPOWER | C203: 236 | D203: 234.23 | E203: 230.57 | F203: 225.13 | G203: 221.47 | H203: 239.67 | I203: 243.33 | J203: 248.77 | K203: 237.9 | L203: 228.8 | M203: 14.23951
A204: 195 | B204: UPL | C204: 627.95 | D204: 624.02 | E204: 613.03 | F204: 598.12 | G204: 587.13 | H204: 638.93 | I204: 649.92 | J204: 664.83 | K204: 635 | L204: 609.1 | M204: 16.02515
A205: 196 | B205: ULTRACEMCO | C205: 3795.15 | D205: 3771.77 | E205: 3728.53 | F205: 3661.92 | G205: 3618.68 | H205: 3838.38 | I205: 3881.62 | J205: 3948.23 | K205: 3815 | L205: 3705.15 | M205: 2.89631
... 30 more rows

Sheet MidCap Intra
L5: Back To Main Page
A6: FOR INTRA DAY TRADING | K6: =Main!B10 -> 2018-10-15
A9: Sr.no | B9: Scrip | C9: CLOSE RATE | D9: Pivot Point | E9: Supports | H9: Resistances
C10: Point | E10: S1 | F10: S2 | G10: S3 | H10: R1 | I10: R2 | J10: R3 | K10: HIGH | L10: LOW | M10: Total Trade Quanity in Lakhs
A11: 1 | B11: 3MINDIA | C11: 22557.65 | D11: 22424.15 | E11: 22128.30 | F11: 21698.95 | G11: 21403.10 | H11: 22853.50 | I11: 23149.35 | J11: 23578.70 | K11: 22720 | L11: 21994.8 | M11: 0.04226
A12: 2 | B12: 8KMILES | C12: 133.1 | D12: 129.13 | E12: 124.77 | F12: 116.43 | G12: 112.07 | H12: 137.47 | I12: 141.83 | J12: 150.17 | K12: 133.5 | L12: 120.8 | M12: 7.75234
A13: 3 | B13: AARTIIND | C13: 1294.4 | D13: 1294.82 | E13: 1264.63 | F13: 1234.87 | G13: 1204.68 | H13: 1324.58 | I13: 1354.77 | J13: 1384.53 | K13: 1325 | L13: 1265.05 | M13: 0.22066
A14: 4 | B14: ABAN | C14: 83.95 | D14: 83.53 | E14: 79.07 | F14: 74.18 | G14: 69.72 | H14: 88.42 | I14: 92.88 | J14: 97.77 | K14: 88 | L14: 78.65 | M14: 13.27474
A15: 5 | B15: ABB | C15: 1308.75 | D15: 1311.10 | E15: 1293.20 | F15: 1277.65 | G15: 1259.75 | H15: 1326.65 | I15: 1344.55 | J15: 1360.10 | K15: 1329 | L15: 1295.55 | M15: 2.37468
A16: 6 | B16: ABCAPITAL | C16: 107.8 | D16: 108.18 | E16: 106.67 | F16: 105.53 | G16: 104.02 | H16: 109.32 | I16: 110.83 | J16: 111.97 | K16: 109.7 | L16: 107.05 | M16: 14.8807
A17: 7 | B17: ABFRL | C17: 185.65 | D17: 184.72 | E17: 177.28 | F17: 168.92 | G17: 161.48 | H17: 193.08 | I17: 200.52 | J17: 208.88 | K17: 192.15 | L17: 176.35 | M17: 17.23121
A18: 8 | B18: ACC | C18: 1503.2 | D18: 1486.75 | E18: 1463.75 | F18: 1424.30 | G18: 1401.30 | H18: 1526.20 | I18: 1549.20 | J18: 1588.65 | K18: 1509.75 | L18: 1447.3 | M18: 6.61327
A19: 9 | B19: ADANIPORTS | C19: 323.15 | D19: 322.67 | E19: 317.48 | F19: 311.82 | G19: 306.63 | H19: 328.33 | I19: 333.52 | J19: 339.18 | K19: 327.85 | L19: 317 | M19: 24.28109
A20: 10 | B20: ADANIPOWER | C20: 32.55 | D20: 32.37 | E20: 30.58 | F20: 28.62 | G20: 26.83 | H20: 34.33 | I20: 36.12 | J20: 38.08 | K20: 34.15 | L20: 30.4 | M20: 945.25849
A21: 11 | B21: ADANITRANS | C21: 156.3 | D21: 154.20 | E21: 152.10 | F21: 147.90 | G21: 145.80 | H21: 158.40 | I21: 160.50 | J21: 164.70 | K21: 156.3 | L21: 150 | M21: 0.28648
A22: 12 | B22: ADVENZYMES | C22: 192.15 | D22: 188.70 | E22: 181.40 | F22: 170.65 | G22: 163.35 | H22: 199.45 | I22: 206.75 | J22: 217.50 | K22: 196 | L22: 177.95 | M22: 62.64569
A23: 13 | B23: AEGISCHEM | C23: 187.5 | D23: 186.27 | E23: 183.03 | F23: 178.57 | G23: 175.33 | H23: 190.73 | I23: 193.97 | J23: 198.43 | K23: 189.5 | L23: 181.8 | M23: 1.18462
A24: 14 | B24: AIAENG | C24: 1518.4 | D24: 1515.03 | E24: 1495.12 | F24: 1471.83 | G24: 1451.92 | H24: 1538.32 | I24: 1558.23 | J24: 1581.52 | K24: 1534.95 | L24: 1491.75 | M24: 1.00833
A25: 15 | B25: AJANTPHARM | C25: 1024.6 | D25: 1025.93 | E25: 1007.67 | F25: 990.73 | G25: 972.47 | H25: 1042.87 | I25: 1061.13 | J25: 1078.07 | K25: 1044.2 | L25: 1009 | M25: 2.40575
A26: 16 | B26: AKZOINDIA | C26: 1610.3 | D26: 1605.10 | E26: 1590.20 | F26: 1570.10 | G26: 1555.20 | H26: 1625.20 | I26: 1640.10 | J26: 1660.20 | K26: 1620 | L26: 1585 | M26: 0.13615
A27: 17 | B27: ALBK | C27: 36.35 | D27: 36.20 | E27: 35.60 | F27: 34.85 | G27: 34.25 | H27: 36.95 | I27: 37.55 | J27: 38.30 | K27: 36.8 | L27: 35.45 | M27: 25.13089
A28: 18 | B28: ALKEM | C28: 1966.4 | D28: 1964.78 | E28: 1952.62 | F28: 1938.83 | G28: 1926.67 | H28: 1978.57 | I28: 1990.73 | J28: 2004.52 | K28: 1976.95 | L28: 1951 | M28: 0.12031
A29: 19 | B29: ALLCARGO | C29: 98.75 | D29: 99.83 | E29: 96.77 | F29: 94.78 | G29: 91.72 | H29: 101.82 | I29: 104.88 | J29: 106.87 | K29: 102.9 | L29: 97.85 | M29: 5.53255
A30: 20 | B30: AMARAJABAT | C30: 735.85 | D30: 733.97 | E30: 726.93 | F30: 718.02 | G30: 710.98 | H30: 742.88 | I30: 749.92 | J30: 758.83 | K30: 741 | L30: 725.05 | M30: 5.65933
A31: 21 | B31: AMBUJACEM | C31: 219.6 | D31: 216.43 | E31: 212.07 | F31: 204.53 | G31: 200.17 | H31: 223.97 | I31: 228.33 | J31: 235.87 | K31: 220.8 | L31: 208.9 | M31: 56.95694
A32: 22 | B32: ANDHRABANK | C32: 26.15 | D32: 26.22 | E32: 25.78 | F32: 25.42 | G32: 24.98 | H32: 26.58 | I32: 27.02 | J32: 27.38 | K32: 26.65 | L32: 25.85 | M32: 12.73216
A33: 23 | B33: APLAPOLLO | C33: 1250.05 | D33: 1254.87 | E33: 1205.68 | F33: 1161.32 | G33: 1112.13 | H33: 1299.23 | I33: 1348.42 | J33: 1392.78 | K33: 1304.05 | L33: 1210.5 | M33: 1.16267
A34: 24 | B34: APLLTD | C34: 584.2 | D34: 587.17 | E34: 567.03 | F34: 549.87 | G34: 529.73 | H34: 604.33 | I34: 624.47 | J34: 641.63 | K34: 607.3 | L34: 570 | M34: 1.24483
A35: 25 | B35: APOLLOHOSP | C35: 1132 | D35: 1124.83 | E35: 1111.22 | F35: 1090.43 | G35: 1076.82 | H35: 1145.62 | I35: 1159.23 | J35: 1180.02 | K35: 1138.45 | L35: 1104.05 | M35: 5.5389
A36: 26 | B36: APOLLOTYRE | C36: 217.05 | D36: 215.02 | E36: 211.03 | F36: 205.02 | G36: 201.03 | H36: 221.03 | I36: 225.02 | J36: 231.03 | K36: 219 | L36: 209 | M36: 37.47478
A37: 27 | B37: ARVIND | C37: 329.8 | D37: 330.18 | E37: 324.62 | F37: 319.43 | G37: 313.87 | H37: 335.37 | I37: 340.93 | J37: 346.12 | K37: 335.75 | L37: 325 | M37: 15.50882
A38: 28 | B38: ASAHIINDIA | C38: 300.8 | D38: 301.50 | E38: 295.30 | F38: 289.80 | G38: 283.60 | H38: 307.00 | I38: 313.20 | J38: 318.70 | K38: 307.7 | L38: 296 | M38: 0.09876
A39: 29 | B39: ASHOKA | C39: 115.35 | D39: 113.77 | E39: 110.53 | F39: 105.72 | G39: 102.48 | H39: 118.58 | I39: 121.82 | J39: 126.63 | K39: 117 | L39: 108.95 | M39: 6.45717
A40: 30 | B40: ASHOKLEY | C40: 115.8 | D40: 115.62 | E40: 112.73 | F40: 109.67 | G40: 106.78 | H40: 118.68 | I40: 121.57 | J40: 124.63 | K40: 118.5 | L40: 112.55 | M40: 220.21483
A41: 31 | B41: ASIANPAINT | C41: 1261.2 | D41: 1253.68 | E41: 1241.42 | F41: 1221.63 | G41: 1209.37 | H41: 1273.47 | I41: 1285.73 | J41: 1305.52 | K41: 1265.95 | L41: 1233.9 | M41: 10.0095
A42: 32 | B42: ASTRAL | C42: 888 | D42: 884.78 | E42: 874.92 | F42: 861.83 | G42: 851.97 | H42: 897.87 | I42: 907.73 | J42: 920.82 | K42: 894.65 | L42: 871.7 | M42: 0.27944
A43: 33 | B43: ATUL | C43: 3207.6 | D43: 3185.87 | E43: 3141.73 | F43: 3075.87 | G43: 3031.73 | H43: 3251.73 | I43: 3295.87 | J43: 3361.73 | K43: 3230 | L43: 3120 | M43: 0.09481
A44: 34 | B44: AUBANK | C44: 617.85 | D44: 607.68 | E44: 593.47 | F44: 569.08 | G44: 554.87 | H44: 632.07 | I44: 646.28 | J44: 670.67 | K44: 621.9 | L44: 583.3 | M44: 4.65033
A45: 35 | B45: AUROPHARMA | C45: 735.5 | D45: 744.05 | E45: 723.45 | F45: 711.40 | G45: 690.80 | H45: 756.10 | I45: 776.70 | J45: 788.75 | K45: 764.65 | L45: 732 | M45: 35.41637
A46: 36 | B46: AVANTIFEED | C46: 391.25 | D46: 389.05 | E46: 381.30 | F46: 371.35 | G46: 363.60 | H46: 399.00 | I46: 406.75 | J46: 416.70 | K46: 396.8 | L46: 379.1 | M46: 3.75159
A47: 37 | B47: AXISBANK | C47: 584.9 | D47: 589.30 | E47: 576.35 | F47: 567.80 | G47: 554.85 | H47: 597.85 | I47: 610.80 | J47: 619.35 | K47: 602.25 | L47: 580.75 | M47: 106.89006
A48: 38 | B48: BAJAJ-AUTO | C48: 2623.05 | D48: 2600.70 | E48: 2552.45 | F48: 2481.85 | G48: 2433.60 | H48: 2671.30 | I48: 2719.55 | J48: 2790.15 | K48: 2648.95 | L48: 2530.1 | M48: 5.10424
A49: 39 | B49: BAJAJCORP | C49: 398.5 | D49: 406.38 | E49: 387.12 | F49: 375.73 | G49: 356.47 | H49: 417.77 | I49: 437.03 | J49: 448.42 | K49: 425.65 | L49: 395 | M49: 0.40487
A50: 40 | B50: BAJAJELEC | C50: 498.65 | D50: 500.73 | E50: 493.47 | F50: 488.28 | G50: 481.02 | H50: 505.92 | I50: 513.18 | J50: 518.37 | K50: 508 | L50: 495.55 | M50: 1.50556
A51: 41 | B51: BAJAJFINSV | C51: 5813.55 | D51: 5801.28 | E51: 5692.37 | F51: 5571.18 | G51: 5462.27 | H51: 5922.47 | I51: 6031.38 | J51: 6152.57 | K51: 5910.2 | L51: 5680.1 | M51: 2.97224
A52: 42 | B52: BAJAJHIND | C52: 10.35 | D52: 10.40 | E52: 10.10 | F52: 9.85 | G52: 9.55 | H52: 10.65 | I52: 10.95 | J52: 11.20 | K52: 10.7 | L52: 10.15 | M52: 67.74152
A53: 43 | B53: BAJAJHLDNG | C53: 2635.35 | D53: 2648.35 | E53: 2602.05 | F53: 2568.75 | G53: 2522.45 | H53: 2681.65 | I53: 2727.95 | J53: 2761.25 | K53: 2694.65 | L53: 2615.05 | M53: 0.05835
A54: 44 | B54: BAJFINANCE | C54: 2287.35 | D54: 2278.20 | E54: 2236.40 | F54: 2185.45 | G54: 2143.65 | H54: 2329.15 | I54: 2370.95 | J54: 2421.90 | K54: 2320 | L54: 2227.25 | M54: 36.65577
A55: 45 | B55: BALKRISIND | C55: 1054.75 | D55: 1047.27 | E55: 1026.73 | F55: 998.72 | G55: 978.18 | H55: 1075.28 | I55: 1095.82 | J55: 1123.83 | K55: 1067.8 | L55: 1019.25 | M55: 7.08237
A56: 46 | B56: BALLARPUR | C56: 6.3 | D56: 6.27 | E56: 6.18 | F56: 6.07 | G56: 5.98 | H56: 6.38 | I56: 6.47 | J56: 6.58 | K56: 6.35 | L56: 6.15 | M56: 4.99561
A57: 47 | B57: BALMLAWRIE | C57: 189.8 | D57: 189.57 | E57: 187.23 | F57: 184.67 | G57: 182.33 | H57: 192.13 | I57: 194.47 | J57: 197.03 | K57: 191.9 | L57: 187 | M57: 0.37705
A58: 48 | B58: BALRAMCHIN | C58: 95.35 | D58: 94.93 | E58: 92.47 | F58: 89.58 | G58: 87.12 | H58: 97.82 | I58: 100.28 | J58: 103.17 | K58: 97.4 | L58: 92.05 | M58: 92.60997
A59: 49 | B59: BANKBARODA | C59: 96.5 | D59: 96.35 | E59: 94.95 | F59: 93.40 | G59: 92.00 | H59: 97.90 | I59: 99.30 | J59: 100.85 | K59: 97.75 | L59: 94.8 | M59: 237.68732
A60: 50 | B60: BANKINDIA | C60: 77.15 | D60: 77.40 | E60: 76.25 | F60: 75.35 | G60: 74.20 | H60: 78.30 | I60: 79.45 | J60: 80.35 | K60: 78.55 | L60: 76.5 | M60: 47.33008
A61: 51 | B61: BASF | C61: 1699.8 | D61: 1687.75 | E61: 1666.50 | F61: 1633.20 | G61: 1611.95 | H61: 1721.05 | I61: 1742.30 | J61: 1775.60 | K61: 1709 | L61: 1654.45 | M61: 0.17652
A62: 52 | B62: BATAINDIA | C62: 921.05 | D62: 924.98 | E62: 906.12 | F62: 891.18 | G62: 872.32 | H62: 939.92 | I62: 958.78 | J62: 973.72 | K62: 943.85 | L62: 910.05 | M62: 15.03189
A63: 53 | B63: BBTC | C63: 1325.6 | D63: 1325.53 | E63: 1285.07 | F63: 1244.53 | G63: 1204.07 | H63: 1366.07 | I63: 1406.53 | J63: 1447.07 | K63: 1366 | L63: 1285 | M63: 2.95654
A64: 54 | B64: BEL | C64: 85.55 | D64: 85.92 | E64: 84.43 | F64: 83.32 | G64: 81.83 | H64: 87.03 | I64: 88.52 | J64: 89.63 | K64: 87.4 | L64: 84.8 | M64: 76.73912
A65: 55 | B65: BEML | C65: 594.8 | D65: 596.95 | E65: 586.40 | F65: 578.00 | G65: 567.45 | H65: 605.35 | I65: 615.90 | J65: 624.30 | K65: 607.5 | L65: 588.55 | M65: 10.25434
A66: 56 | B66: BERGEPAINT | C66: 283.95 | D66: 283.00 | E66: 280.10 | F66: 276.25 | G66: 273.35 | H66: 286.85 | I66: 289.75 | J66: 293.60 | K66: 285.9 | L66: 279.15 | M66: 8.75819
A67: 57 | B67: BFUTILITIE | C67: 213.1 | D67: 211.42 | E67: 205.68 | F67: 198.27 | G67: 192.53 | H67: 218.83 | I67: 224.57 | J67: 231.98 | K67: 217.15 | L67: 204 | M67: 3.21418
A68: 58 | B68: BGRENERGY | C68: 56.65 | D68: 56.15 | E68: 53.00 | F68: 49.35 | G68: 46.20 | H68: 59.80 | I68: 62.95 | J68: 66.60 | K68: 59.3 | L68: 52.5 | M68: 1.74831
A69: 59 | B69: BHARATFIN | C69: 1021.2 | D69: 1012.75 | E69: 999.70 | F69: 978.20 | G69: 965.15 | H69: 1034.25 | I69: 1047.30 | J69: 1068.80 | K69: 1025.8 | L69: 991.25 | M69: 12.54699
A70: 60 | B70: BHARATFORG | C70: 573.6 | D70: 572.23 | E70: 560.47 | F70: 547.33 | G70: 535.57 | H70: 585.37 | I70: 597.13 | J70: 610.27 | K70: 584 | L70: 559.1 | M70: 14.20975
A71: 61 | B71: BHARTIARTL | C71: 290.05 | D71: 289.10 | E71: 285.60 | F71: 281.15 | G71: 277.65 | H71: 293.55 | I71: 297.05 | J71: 301.50 | K71: 292.6 | L71: 284.65 | M71: 90.08275
A72: 62 | B72: BHEL | C72: 75.15 | D72: 75.20 | E72: 73.95 | F72: 72.75 | G72: 71.50 | H72: 76.40 | I72: 77.65 | J72: 78.85 | K72: 76.45 | L72: 74 | M72: 76.55675
A73: 63 | B73: BHUSANSTL | C73: 27.6 | D73: 27.57 | E73: 27.18 | F73: 26.77 | G73: 26.38 | H73: 27.98 | I73: 28.37 | J73: 28.78 | K73: 27.95 | L73: 27.15 | M73: 5.73672
A74: 64 | B74: BIOCON | C74: 606.4 | D74: 608.55 | E74: 597.10 | F74: 587.80 | G74: 576.35 | H74: 617.85 | I74: 629.30 | J74: 638.60 | K74: 620 | L74: 599.25 | M74: 18.11899
A75: 65 | B75: BIRLACORPN | C75: 560.15 | D75: 558.42 | E75: 544.83 | F75: 529.52 | G75: 515.93 | H75: 573.73 | I75: 587.32 | J75: 602.63 | K75: 572 | L75: 543.1 | M75: 1.08237
A76: 66 | B76: BLISSGVS | C76: 165.05 | D76: 165.92 | E76: 163.13 | F76: 161.22 | G76: 158.43 | H76: 167.83 | I76: 170.62 | J76: 172.53 | K76: 168.7 | L76: 164 | M76: 1.87385
A77: 67 | B77: BLUEDART | C77: 2795.25 | D77: 2828.42 | E77: 2756.83 | F77: 2718.42 | G77: 2646.83 | H77: 2866.83 | I77: 2938.42 | J77: 2976.83 | K77: 2900 | L77: 2790 | M77: 0.02191
A78: 68 | B78: BLUESTARCO | C78: 566.6 | D78: 566.38 | E78: 557.97 | F78: 549.33 | G78: 540.92 | H78: 575.02 | I78: 583.43 | J78: 592.07 | K78: 574.8 | L78: 557.75 | M78: 0.28459
A79: 69 | B79: BOMDYEING | C79: 117.05 | D79: 113.35 | E79: 109.65 | F79: 102.25 | G79: 98.55 | H79: 120.75 | I79: 124.45 | J79: 131.85 | K79: 117.05 | L79: 105.95 | M79: 68.00013
A80: 70 | B80: BOSCHLTD | C80: 18605.2 | D80: 18633.35 | E80: 18398.00 | F80: 18190.80 | G80: 17955.45 | H80: 18840.55 | I80: 19075.90 | J80: 19283.10 | K80: 18868.7 | L80: 18426.15 | M80: 0.1688
A81: 71 | B81: BPCL | C81: 288.9 | D81: 288.23 | E81: 280.77 | F81: 272.63 | G81: 265.17 | H81: 296.37 | I81: 303.83 | J81: 311.97 | K81: 295.7 | L81: 280.1 | M81: 112.68098
A82: 72 | B82: BRFL | C82: 16.55 | D82: 16.17 | E82: 15.78 | F82: 15.02 | G82: 14.63 | H82: 16.93 | I82: 17.32 | J82: 18.08 | K82: 16.55 | L82: 15.4 | M82: 0.34893
A83: 73 | B83: BRIGADE | C83: 190.1 | D83: 190.65 | E83: 187.05 | F83: 184.00 | G83: 180.40 | H83: 193.70 | I83: 197.30 | J83: 200.35 | K83: 194.25 | L83: 187.6 | M83: 0.31992
A84: 74 | B84: BRITANNIA | C84: 5757.5 | D84: 5722.60 | E84: 5656.20 | F84: 5554.90 | G84: 5488.50 | H84: 5823.90 | I84: 5890.30 | J84: 5991.60 | K84: 5789 | L84: 5621.3 | M84: 2.17736
A85: 75 | B85: BSE | C85: 634.7 | D85: 636.95 | E85: 629.75 | F85: 624.80 | G85: 617.60 | H85: 641.90 | I85: 649.10 | J85: 654.05 | K85: 644.15 | L85: 632 | M85: 0.88279
A86: 77 | B86: CADILAHC | C86: 376.9 | D86: 377.72 | E86: 373.48 | F86: 370.07 | G86: 365.83 | H86: 381.13 | I86: 385.37 | J86: 388.78 | K86: 381.95 | L86: 374.3 | M86: 7.61788
A87: 78 | B87: CANBK | C87: 230.8 | D87: 231.17 | E87: 228.18 | F87: 225.57 | G87: 222.58 | H87: 233.78 | I87: 236.77 | J87: 239.38 | K87: 234.15 | L87: 228.55 | M87: 49.38108
A88: 79 | B88: CANFINHOME | C88: 245.15 | D88: 248.05 | E88: 237.10 | F88: 229.05 | G88: 218.10 | H88: 256.10 | I88: 267.05 | J88: 275.10 | K88: 259 | L88: 240 | M88: 28.03952
A89: 80 | B89: CAPF | C89: 491.8 | D89: 486.98 | E89: 477.42 | F89: 463.03 | G89: 453.47 | H89: 501.37 | I89: 510.93 | J89: 525.32 | K89: 496.55 | L89: 472.6 | M89: 4.63623
A90: 81 | B90: CAPLIPOINT | C90: 426.1 | D90: 423.22 | E90: 417.73 | F90: 409.37 | G90: 403.88 | H90: 431.58 | I90: 437.07 | J90: 445.43 | K90: 428.7 | L90: 414.85 | M90: 0.20697
A91: 82 | B91: CARBORUNIV | C91: 370.5 | D91: 365.90 | E91: 359.80 | F91: 349.10 | G91: 343.00 | H91: 376.60 | I91: 382.70 | J91: 393.40 | K91: 372 | L91: 355.2 | M91: 0.82889
A92: 83 | B92: CARERATING | C92: 1068 | D92: 1072.67 | E92: 1055.43 | F92: 1042.87 | G92: 1025.63 | H92: 1085.23 | I92: 1102.47 | J92: 1115.03 | K92: 1089.9 | L92: 1060.1 | M92: 0.15117
A93: 84 | B93: CASTROLIND | C93: 144.35 | D93: 144.05 | E93: 141.85 | F93: 139.35 | G93: 137.15 | H93: 146.55 | I93: 148.75 | J93: 151.25 | K93: 146.25 | L93: 141.55 | M93: 14.97021
A94: 85 | B94: CCL | C94: 244 | D94: 242.23 | E94: 239.47 | F94: 234.93 | G94: 232.17 | H94: 246.77 | I94: 249.53 | J94: 254.07 | K94: 245 | L94: 237.7 | M94: 0.24247
A95: 86 | B95: CDSL | C95: 236.35 | D95: 236.30 | E95: 232.60 | F95: 228.85 | G95: 225.15 | H95: 240.05 | I95: 243.75 | J95: 247.50 | K95: 240 | L95: 232.55 | M95: 1.79911
A96: 87 | B96: CEATLTD | C96: 1097.3 | D96: 1095.32 | E96: 1077.08 | F96: 1056.87 | G96: 1038.63 | H96: 1115.53 | I96: 1133.77 | J96: 1153.98 | K96: 1113.55 | L96: 1075.1 | M96: 4.9238
A97: 88 | B97: CENTRALBK | C97: 28.6 | D97: 28.30 | E97: 27.80 | F97: 27.00 | G97: 26.50 | H97: 29.10 | I97: 29.60 | J97: 30.40 | K97: 28.8 | L97: 27.5 | M97: 22.61976
A98: 89 | B98: CENTURYPLY | C98: 176.4 | D98: 174.98 | E98: 171.47 | F98: 166.53 | G98: 163.02 | H98: 179.92 | I98: 183.43 | J98: 188.37 | K98: 178.5 | L98: 170.05 | M98: 2.17337
A99: 90 | B99: CENTURYTEX | C99: 812.45 | D99: 793.65 | E99: 764.30 | F99: 716.15 | G99: 686.80 | H99: 841.80 | I99: 871.15 | J99: 919.30 | K99: 823 | L99: 745.5 | M99: 16.23158
A100: 91 | B100: CERA | C100: 2458.25 | D100: 2469.42 | E100: 2438.83 | F100: 2419.42 | G100: 2388.83 | H100: 2488.83 | I100: 2519.42 | J100: 2538.83 | K100: 2500 | L100: 2450 | M100: 0.02269
A101: 92 | B101: CGPOWER | C101: 40.6 | D101: 40.40 | E101: 39.95 | F101: 39.30 | G101: 38.85 | H101: 41.05 | I101: 41.50 | J101: 42.15 | K101: 40.85 | L101: 39.75 | M101: 29.84102
A102: 93 | B102: CHAMBLFERT | C102: 138.5 | D102: 139.67 | E102: 136.83 | F102: 135.17 | G102: 132.33 | H102: 141.33 | I102: 144.17 | J102: 145.83 | K102: 142.5 | L102: 138 | M102: 0.86041
A103: 94 | B103: CHENNPETRO | C103: 258.35 | D103: 257.13 | E103: 251.72 | F103: 245.08 | G103: 239.67 | H103: 263.77 | I103: 269.18 | J103: 275.82 | K103: 262.55 | L103: 250.5 | M103: 14.28988
A104: 95 | B104: CHOLAFIN | C104: 1189.2 | D104: 1169.72 | E104: 1134.43 | F104: 1079.67 | G104: 1044.38 | H104: 1224.48 | I104: 1259.77 | J104: 1314.53 | K104: 1205 | L104: 1114.95 | M104: 5.54714
A105: 96 | B105: CIPLA | C105: 622.9 | D105: 620.90 | E105: 614.60 | F105: 606.30 | G105: 600.00 | H105: 629.20 | I105: 635.50 | J105: 643.80 | K105: 627.2 | L105: 612.6 | M105: 20.8536
A106: 97 | B106: COALINDIA | C106: 278.6 | D106: 275.67 | E106: 271.43 | F106: 264.27 | G106: 260.03 | H106: 282.83 | I106: 287.07 | J106: 294.23 | K106: 279.9 | L106: 268.5 | M106: 29.24606
A107: 98 | B107: COCHINSHIP | C107: 395.15 | D107: 392.32 | E107: 385.83 | F107: 376.52 | G107: 370.03 | H107: 401.63 | I107: 408.12 | J107: 417.43 | K107: 398.8 | L107: 383 | M107: 1.68336
A108: 99 | B108: COFFEEDAY | C108: 248.9 | D108: 250.27 | E108: 245.68 | F108: 242.47 | G108: 237.88 | H108: 253.48 | I108: 258.07 | J108: 261.28 | K108: 254.85 | L108: 247.05 | M108: 1.08822
A109: 100 | B109: COLPAL | C109: 1099.85 | D109: 1099.13 | E109: 1091.27 | F109: 1082.68 | G109: 1074.82 | H109: 1107.72 | I109: 1115.58 | J109: 1124.17 | K109: 1107 | L109: 1090.55 | M109: 3.19018
A110: 101 | B110: CONCOR | C110: 607.3 | D110: 605.10 | E110: 597.20 | F110: 587.10 | G110: 579.20 | H110: 615.20 | I110: 623.10 | J110: 633.20 | K110: 613 | L110: 595 | M110: 4.48595
A111: 102 | B111: COROMANDEL | C111: 377.7 | D111: 380.20 | E111: 373.35 | F111: 369.00 | G111: 362.15 | H111: 384.55 | I111: 391.40 | J111: 395.75 | K111: 387.05 | L111: 375.85 | M111: 2.30155
A112: 103 | B112: COX&KINGS | C112: 197.4 | D112: 196.08 | E112: 193.17 | F112: 188.93 | G112: 186.02 | H112: 200.32 | I112: 203.23 | J112: 207.47 | K112: 199 | L112: 191.85 | M112: 0.87963
A113: 104 | B113: CRISIL | C113: 1623.85 | D113: 1626.38 | E113: 1609.32 | F113: 1594.78 | G113: 1577.72 | H113: 1640.92 | I113: 1657.98 | J113: 1672.52 | K113: 1643.45 | L113: 1611.85 | M113: 0.05188
A114: 105 | B114: CROMPTON | C114: 207.25 | D114: 204.58 | E114: 200.72 | F114: 194.18 | G114: 190.32 | H114: 211.12 | I114: 214.98 | J114: 221.52 | K114: 208.45 | L114: 198.05 | M114: 9.995
A115: 106 | B115: CUB | C115: 170.4 | D115: 170.35 | E115: 168.05 | F115: 165.70 | G115: 163.40 | H115: 172.70 | I115: 175.00 | J115: 177.35 | K115: 172.65 | L115: 168 | M115: 18.99473
A116: 107 | B116: CUMMINSIND | C116: 680.25 | D116: 680.58 | E116: 672.17 | F116: 664.08 | G116: 655.67 | H116: 688.67 | I116: 697.08 | J116: 705.17 | K116: 689 | L116: 672.5 | M116: 0.81501
A117: 108 | B117: CYIENT | C117: 657.05 | D117: 647.38 | E117: 629.77 | F117: 602.48 | G117: 584.87 | H117: 674.67 | I117: 692.28 | J117: 719.57 | K117: 665 | L117: 620.1 | M117: 1.9305
A118: 109 | B118: DABUR | C118: 407.85 | D118: 405.52 | E118: 399.63 | F118: 391.42 | G118: 385.53 | H118: 413.73 | I118: 419.62 | J118: 427.83 | K118: 411.4 | L118: 397.3 | M118: 36.80197
A119: 110 | B119: DBCORP | C119: 189.05 | D119: 190.68 | E119: 186.37 | F119: 183.68 | G119: 179.37 | H119: 193.37 | I119: 197.68 | J119: 200.37 | K119: 195 | L119: 188 | M119: 0.32903
A120: 111 | B120: DBL | C120: 524.3 | D120: 533.25 | E120: 511.90 | F120: 499.50 | G120: 478.15 | H120: 545.65 | I120: 567.00 | J120: 579.40 | K120: 554.6 | L120: 520.85 | M120: 3.29838
A121: 112 | B121: DBREALTY | C121: 20.15 | D121: 20.27 | E121: 19.88 | F121: 19.62 | G121: 19.23 | H121: 20.53 | I121: 20.92 | J121: 21.18 | K121: 20.65 | L121: 20 | M121: 3.1228
A122: 113 | B122: DCAL | C122: 231.85 | D122: 233.28 | E122: 228.07 | F122: 224.28 | G122: 219.07 | H122: 237.07 | I122: 242.28 | J122: 246.07 | K122: 238.5 | L122: 229.5 | M122: 2.69578
A123: 114 | B123: DCBBANK | C123: 162.25 | D123: 158.52 | E123: 153.08 | F123: 143.92 | G123: 138.48 | H123: 167.68 | I123: 173.12 | J123: 182.28 | K123: 163.95 | L123: 149.35 | M123: 16.70989
A124: 115 | B124: DCMSHRIRAM | C124: 374.75 | D124: 373.28 | E124: 366.57 | F124: 358.38 | G124: 351.67 | H124: 381.47 | I124: 388.18 | J124: 396.37 | K124: 380 | L124: 365.1 | M124: 1.51368
A125: 116 | B125: DEEPAKFERT | C125: 198 | D125: 195.42 | E125: 191.03 | F125: 184.07 | G125: 179.68 | H125: 202.38 | I125: 206.77 | J125: 213.73 | K125: 199.8 | L125: 188.45 | M125: 0.61212
A126: 117 | B126: DELTACORP | C126: 220.55 | D126: 218.72 | E126: 215.43 | F126: 210.32 | G126: 207.03 | H126: 223.83 | I126: 227.12 | J126: 232.23 | K126: 222 | L126: 213.6 | M126: 13.45132
A127: 118 | B127: DEN | C127: 68.35 | D127: 69.35 | E127: 66.70 | F127: 65.05 | G127: 62.40 | H127: 71.00 | I127: 73.65 | J127: 75.30 | K127: 72 | L127: 67.7 | M127: 3.05212
A128: 119 | B128: DENABANK | C128: 14.85 | D128: 14.75 | E128: 14.50 | F128: 14.15 | G128: 13.90 | H128: 15.10 | I128: 15.35 | J128: 15.70 | K128: 15 | L128: 14.4 | M128: 14.28169
A129: 120 | B129: DHFL | C129: 292.25 | D129: 298.08 | E129: 284.17 | F129: 276.08 | G129: 262.17 | H129: 306.17 | I129: 320.08 | J129: 328.17 | K129: 312 | L129: 290 | M129: 198.63839
A130: 121 | B130: DISHTV | C130: 55.4 | D130: 55.68 | E130: 54.52 | F130: 53.63 | G130: 52.47 | H130: 56.57 | I130: 57.73 | J130: 58.62 | K130: 56.85 | L130: 54.8 | M130: 37.45717
A131: 122 | B131: DIVISLAB | C131: 1282.3 | D131: 1279.65 | E131: 1262.55 | F131: 1242.80 | G131: 1225.70 | H131: 1299.40 | I131: 1316.50 | J131: 1336.25 | K131: 1296.75 | L131: 1259.9 | M131: 8.2558
A132: 123 | B132: DIXON | C132: 2429.3 | D132: 2419.10 | E132: 2390.20 | F132: 2351.10 | G132: 2322.20 | H132: 2458.20 | I132: 2487.10 | J132: 2526.20 | K132: 2448 | L132: 2380 | M132: 0.12119
A133: 124 | B133: DLF | C133: 157.65 | D133: 158.13 | E133: 155.22 | F133: 152.78 | G133: 149.87 | H133: 160.57 | I133: 163.48 | J133: 165.92 | K133: 161.05 | L133: 155.7 | M133: 70.37376
A134: 125 | B134: DMART | C134: 1411.7 | D134: 1391.23 | E134: 1361.47 | F134: 1311.23 | G134: 1281.47 | H134: 1441.47 | I134: 1471.23 | J134: 1521.47 | K134: 1421 | L134: 1341 | M134: 8.99147
A135: 126 | B135: DREDGECORP | C135: 337.4 | D135: 341.52 | E135: 330.03 | F135: 322.67 | G135: 311.18 | H135: 348.88 | I135: 360.37 | J135: 367.73 | K135: 353 | L135: 334.15 | M135: 3.73572
A136: 127 | B136: DRREDDY | C136: 2450.5 | D136: 2457.97 | E136: 2424.98 | F136: 2399.47 | G136: 2366.48 | H136: 2483.48 | I136: 2516.47 | J136: 2541.98 | K136: 2490.95 | L136: 2432.45 | M136: 9.25386
A137: 128 | B137: ECLERX | C137: 1055.9 | D137: 1054.05 | E137: 1036.90 | F137: 1017.90 | G137: 1000.75 | H137: 1073.05 | I137: 1090.20 | J137: 1109.20 | K137: 1071.2 | L137: 1035.05 | M137: 0.04594
A138: 129 | B138: EDELWEISS | C138: 179.75 | D138: 176.92 | E138: 173.83 | F138: 167.92 | G138: 164.83 | H138: 182.83 | I138: 185.92 | J138: 191.83 | K138: 180 | L138: 171 | M138: 39.14094
A139: 130 | B139: EICHERMOT | C139: 23903.75 | D139: 23534.58 | E139: 22870.17 | F139: 21836.58 | G139: 21172.17 | H139: 24568.17 | I139: 25232.58 | J139: 26266.17 | K139: 24199 | L139: 22501 | M139: 1.76103
A140: 131 | B140: EIDPARRY | C140: 202.15 | D140: 202.42 | E140: 198.83 | F140: 195.52 | G140: 191.93 | H140: 205.73 | I140: 209.32 | J140: 212.63 | K140: 206 | L140: 199.1 | M140: 1.70159
A141: 132 | B141: EIHOTEL | C141: 149.8 | D141: 149.05 | E141: 145.80 | F141: 141.80 | G141: 138.55 | H141: 153.05 | I141: 156.30 | J141: 160.30 | K141: 152.3 | L141: 145.05 | M141: 0.48096
A142: 133 | B142: EMAMILTD | C142: 443.8 | D142: 442.93 | E142: 433.37 | F142: 422.93 | G142: 413.37 | H142: 453.37 | I142: 462.93 | J142: 473.37 | K142: 452.5 | L142: 432.5 | M142: 5.76261
A143: 134 | B143: ENDURANCE | C143: 1184 | D143: 1184.98 | E143: 1170.97 | F143: 1157.93 | G143: 1143.92 | H143: 1198.02 | I143: 1212.03 | J143: 1225.07 | K143: 1199 | L143: 1171.95 | M143: 0.3983
A144: 135 | B144: ENGINERSIN | C144: 116.15 | D144: 116.12 | E144: 112.43 | F144: 108.72 | G144: 105.03 | H144: 119.83 | I144: 123.52 | J144: 127.23 | K144: 119.8 | L144: 112.4 | M144: 33.86892
A145: 136 | B145: EQUITAS | C145: 128.9 | D145: 130.25 | E145: 125.80 | F145: 122.70 | G145: 118.25 | H145: 133.35 | I145: 137.80 | J145: 140.90 | K145: 134.7 | L145: 127.15 | M145: 18.76454
A146: 137 | B146: ERIS | C146: 674.95 | D146: 674.45 | E146: 667.00 | F146: 659.05 | G146: 651.60 | H146: 682.40 | I146: 689.85 | J146: 697.80 | K146: 681.9 | L146: 666.5 | M146: 0.60015
A147: 138 | B147: EROSMEDIA | C147: 83.55 | D147: 82.53 | E147: 78.67 | F147: 73.78 | G147: 69.92 | H147: 87.42 | I147: 91.28 | J147: 96.17 | K147: 86.4 | L147: 77.65 | M147: 12.29048
A148: 139 | B148: ESCORTS | C148: 601.3 | D148: 595.18 | E148: 578.62 | F148: 555.93 | G148: 539.37 | H148: 617.87 | I148: 634.43 | J148: 657.12 | K148: 611.75 | L148: 572.5 | M148: 18.27076
A149: 140 | B149: EVEREADY | C149: 205.6 | D149: 203.53 | E149: 192.07 | F149: 178.53 | G149: 167.07 | H149: 217.07 | I149: 228.53 | J149: 242.07 | K149: 215 | L149: 190 | M149: 1.69848
A150: 141 | B150: EXIDEIND | C150: 256.3 | D150: 256.17 | E150: 253.58 | F150: 250.87 | G150: 248.28 | H150: 258.88 | I150: 261.47 | J150: 264.18 | K150: 258.75 | L150: 253.45 | M150: 10.23941
A151: 142 | B151: FCONSUMER | C151: 40.55 | D151: 39.98 | E151: 38.47 | F151: 36.38 | G151: 34.87 | H151: 42.07 | I151: 43.58 | J151: 45.67 | K151: 41.5 | L151: 37.9 | M151: 47.72574
A152: 143 | B152: FEDERALBNK | C152: 73.75 | D152: 73.33 | E152: 72.42 | F152: 71.08 | G152: 70.17 | H152: 74.67 | I152: 75.58 | J152: 76.92 | K152: 74.25 | L152: 72 | M152: 97.48912
A153: 144 | B153: FINCABLES | C153: 465.1 | D153: 468.65 | E153: 459.55 | F153: 454.00 | G153: 444.90 | H153: 474.20 | I153: 483.30 | J153: 488.85 | K153: 477.75 | L153: 463.1 | M153: 0.25677
A154: 145 | B154: FINPIPE | C154: 493.95 | D154: 496.67 | E154: 486.33 | F154: 478.72 | G154: 468.38 | H154: 504.28 | I154: 514.62 | J154: 522.23 | K154: 507 | L154: 489.05 | M154: 3.17441
A155: 146 | B155: FLFL | C155: 398 | D155: 398.83 | E155: 389.67 | F155: 381.33 | G155: 372.17 | H155: 407.17 | I155: 416.33 | J155: 424.67 | K155: 408 | L155: 390.5 | M155: 0.60627
A156: 147 | B156: FSL | C156: 62.7 | D156: 62.90 | E156: 61.55 | F156: 60.40 | G156: 59.05 | H156: 64.05 | I156: 65.40 | J156: 66.55 | K156: 64.25 | L156: 61.75 | M156: 54.26738
A157: 148 | B157: GAIL | C157: 359.3 | D157: 357.17 | E157: 353.33 | F157: 347.37 | G157: 343.53 | H157: 363.13 | I157: 366.97 | J157: 372.93 | K157: 361 | L157: 351.2 | M157: 50.62781
A158: 149 | B158: GATI | C158: 75.7 | D158: 75.12 | E158: 73.53 | F158: 71.37 | G158: 69.78 | H158: 77.28 | I158: 78.87 | J158: 81.03 | K158: 76.7 | L158: 72.95 | M158: 6.77383
A159: 150 | B159: GDL | C159: 161.35 | D159: 163.75 | E159: 157.50 | F159: 153.65 | G159: 147.40 | H159: 167.60 | I159: 173.85 | J159: 177.70 | K159: 170 | L159: 159.9 | M159: 0.58159
A160: 151 | B160: GEPIL | C160: 740.05 | D160: 732.47 | E160: 721.93 | F160: 703.82 | G160: 693.28 | H160: 750.58 | I160: 761.12 | J160: 779.23 | K160: 743 | L160: 714.35 | M160: 0.14104
A161: 152 | B161: GESHIP | C161: 297.15 | D161: 304.33 | E161: 288.67 | F161: 280.18 | G161: 264.52 | H161: 312.82 | I161: 328.48 | J161: 336.97 | K161: 320 | L161: 295.85 | M161: 1.2808
A162: 153 | B162: GET&D | C162: 259.35 | D162: 260.58 | E162: 256.77 | F162: 254.18 | G162: 250.37 | H162: 263.17 | I162: 266.98 | J162: 269.57 | K162: 264.4 | L162: 258 | M162: 0.09998
A163: 154 | B163: GHCL | C163: 208.7 | D163: 209.33 | E163: 205.87 | F163: 203.03 | G163: 199.57 | H163: 212.17 | I163: 215.63 | J163: 218.47 | K163: 212.8 | L163: 206.5 | M163: 0.54628
A164: 155 | B164: GICRE | C164: 306.75 | D164: 308.90 | E164: 295.85 | F164: 284.95 | G164: 271.90 | H164: 319.80 | I164: 332.85 | J164: 343.75 | K164: 321.95 | L164: 298 | M164: 1.82593
A165: 156 | B165: GILLETTE | C165: 6541.3 | D165: 6498.97 | E165: 6447.83 | F165: 6354.37 | G165: 6303.23 | H165: 6592.43 | I165: 6643.57 | J165: 6737.03 | K165: 6550.1 | L165: 6405.5 | M165: 0.02942
A166: 157 | B166: GLAXO | C166: 1407.1 | D166: 1397.80 | E166: 1382.50 | F166: 1357.90 | G166: 1342.60 | H166: 1422.40 | I166: 1437.70 | J166: 1462.30 | K166: 1413.1 | L166: 1373.2 | M166: 0.12111
A167: 158 | B167: GLENMARK | C167: 602.25 | D167: 599.18 | E167: 592.37 | F167: 582.48 | G167: 575.67 | H167: 609.07 | I167: 615.88 | J167: 625.77 | K167: 606 | L167: 589.3 | M167: 5.55685
A168: 159 | B168: GMDCLTD | C168: 93.65 | D168: 92.08 | E168: 89.67 | F168: 85.68 | G168: 83.27 | H168: 96.07 | I168: 98.48 | J168: 102.47 | K168: 94.5 | L168: 88.1 | M168: 3.58213
A169: 160 | B169: GMRINFRA | C169: 16.6 | D169: 16.47 | E169: 16.08 | F169: 15.57 | G169: 15.18 | H169: 16.98 | I169: 17.37 | J169: 17.88 | K169: 16.85 | L169: 15.95 | M169: 266.87874
A170: 161 | B170: GNFC | C170: 331.85 | D170: 332.02 | E170: 327.03 | F170: 322.22 | G170: 317.23 | H170: 336.83 | I170: 341.82 | J170: 346.63 | K170: 337 | L170: 327.2 | M170: 3.00702
A171: 162 | B171: GODFRYPHLP | C171: 730.4 | D171: 731.63 | E171: 706.27 | F171: 682.13 | G171: 656.77 | H171: 755.77 | I171: 781.13 | J171: 805.27 | K171: 757 | L171: 707.5 | M171: 3.21243
A172: 163 | B172: GODREJAGRO | C172: 516.45 | D172: 520.00 | E172: 507.00 | F172: 497.55 | G172: 484.55 | H172: 529.45 | I172: 542.45 | J172: 551.90 | K172: 533 | L172: 510.55 | M172: 0.78162
A173: 164 | B173: GODREJCP | C173: 716.35 | D173: 720.48 | E173: 701.97 | F173: 687.58 | G173: 669.07 | H173: 734.87 | I173: 753.38 | J173: 767.77 | K173: 739 | L173: 706.1 | M173: 9.27076
A174: 165 | B174: GODREJIND | C174: 477.8 | D174: 482.27 | E174: 469.53 | F174: 461.27 | G174: 448.53 | H174: 490.53 | I174: 503.27 | J174: 511.53 | K174: 495 | L174: 474 | M174: 2.97543
A175: 166 | B175: GODREJPROP | C175: 504.5 | D175: 504.17 | E175: 494.33 | F175: 484.17 | G175: 474.33 | H175: 514.33 | I175: 524.17 | J175: 534.33 | K175: 514 | L175: 494 | M175: 2.75791
A176: 167 | B176: GPPL | C176: 102.2 | D176: 102.83 | E176: 99.87 | F176: 97.53 | G176: 94.57 | H176: 105.17 | I176: 108.13 | J176: 110.47 | K176: 105.8 | L176: 100.5 | M176: 3.5751
A177: 168 | B177: GRANULES | C177: 92.2 | D177: 91.77 | E177: 90.53 | F177: 88.87 | G177: 87.63 | H177: 93.43 | I177: 94.67 | J177: 96.33 | K177: 93 | L177: 90.1 | M177: 30.69684
A178: 169 | B178: GRAPHITE | C178: 914.9 | D178: 914.90 | E178: 914.90 | F178: 914.90 | G178: 914.90 | H178: 914.90 | I178: 914.90 | J178: 914.90 | K178: 914.9 | L178: 914.9 | M178: 0.86446
A179: 170 | B179: GRASIM | C179: 895.1 | D179: 891.72 | E179: 882.43 | F179: 869.77 | G179: 860.48 | H179: 904.38 | I179: 913.67 | J179: 926.33 | K179: 901 | L179: 879.05 | M179: 13.57907
A180: 171 | B180: GREAVESCOT | C180: 127.15 | D180: 127.05 | E180: 125.50 | F180: 123.85 | G180: 122.30 | H180: 128.70 | I180: 130.25 | J180: 131.90 | K180: 128.6 | L180: 125.4 | M180: 1.70525
A181: 172 | B181: GREENPLY | C181: 143.8 | D181: 145.83 | E181: 139.57 | F181: 135.33 | G181: 129.07 | H181: 150.07 | I181: 156.33 | J181: 160.57 | K181: 152.1 | L181: 141.6 | M181: 1.46401
A182: 173 | B182: GRUH | C182: 281.3 | D182: 279.20 | E182: 273.00 | F182: 264.70 | G182: 258.50 | H182: 287.50 | I182: 293.70 | J182: 302.00 | K182: 285.4 | L182: 270.9 | M182: 4.71429
A183: 174 | B183: GSFC | C183: 93.25 | D183: 92.65 | E183: 91.10 | F183: 88.95 | G183: 87.40 | H183: 94.80 | I183: 96.35 | J183: 98.50 | K183: 94.2 | L183: 90.5 | M183: 13.56822
A184: 175 | B184: GSKCONS | C184: 6981.9 | D184: 6963.95 | E184: 6917.95 | F184: 6854.00 | G184: 6808.00 | H184: 7027.90 | I184: 7073.90 | J184: 7137.85 | K184: 7009.95 | L184: 6900 | M184: 0.06217
A185: 176 | B185: GSPL | C185: 171 | D185: 171.50 | E185: 169.25 | F185: 167.50 | G185: 165.25 | H185: 173.25 | I185: 175.50 | J185: 177.25 | K185: 173.75 | L185: 169.75 | M185: 1.91078
A186: 177 | B186: GUJALKALI | C186: 589.1 | D186: 591.00 | E186: 582.00 | F186: 574.90 | G186: 565.90 | H186: 598.10 | I186: 607.10 | J186: 614.20 | K186: 600 | L186: 583.9 | M186: 0.48079
A187: 178 | B187: GUJFLUORO | C187: 799.55 | D187: 799.58 | E187: 784.67 | F187: 769.78 | G187: 754.87 | H187: 814.47 | I187: 829.38 | J187: 844.27 | K187: 814.5 | L187: 784.7 | M187: 5.71406
A188: 179 | B188: GUJGASLTD | C188: 610.55 | D188: 610.85 | E188: 596.85 | F188: 583.15 | G188: 569.15 | H188: 624.55 | I188: 638.55 | J188: 652.25 | K188: 624.85 | L188: 597.15 | M188: 0.15765
A189: 180 | B189: GULFOILLUB | C189: 728.9 | D189: 730.32 | E189: 719.63 | F189: 710.37 | G189: 699.68 | H189: 739.58 | I189: 750.27 | J189: 759.53 | K189: 741 | L189: 721.05 | M189: 0.07968
A190: 181 | B190: GVKPIL | C190: 7.3 | D190: 7.37 | E190: 7.18 | F190: 7.07 | G190: 6.88 | H190: 7.48 | I190: 7.67 | J190: 7.78 | K190: 7.55 | L190: 7.25 | M190: 16.53145
A191: 182 | B191: HATHWAY | C191: 27.3 | D191: 27.58 | E191: 26.72 | F191: 26.13 | G191: 25.27 | H191: 28.17 | I191: 29.03 | J191: 29.62 | K191: 28.45 | L191: 27 | M191: 15.66599
A192: 183 | B192: HATSUN | C192: 621.35 | D192: 616.37 | E192: 608.23 | F192: 595.12 | G192: 586.98 | H192: 629.48 | I192: 637.62 | J192: 650.73 | K192: 624.5 | L192: 603.25 | M192: 0.02538
A193: 184 | B193: HAVELLS | C193: 595.75 | D193: 594.03 | E193: 586.72 | F193: 577.68 | G193: 570.37 | H193: 603.07 | I193: 610.38 | J193: 619.42 | K193: 601.35 | L193: 585 | M193: 12.07151
A194: 185 | B194: HCC | C194: 12.3 | D194: 12.28 | E194: 11.87 | F194: 11.43 | G194: 11.02 | H194: 12.72 | I194: 13.13 | J194: 13.57 | K194: 12.7 | L194: 11.85 | M194: 63.19712
A195: 186 | B195: HCL-INSYS | C195: 24.85 | D195: 24.87 | E195: 24.33 | F195: 23.82 | G195: 23.28 | H195: 25.38 | I195: 25.92 | J195: 26.43 | K195: 25.4 | L195: 24.35 | M195: 9.96542
A196: 187 | B196: HCLTECH | C196: 985.15 | D196: 988.88 | E196: 970.77 | F196: 956.38 | G196: 938.27 | H196: 1003.27 | I196: 1021.38 | J196: 1035.77 | K196: 1007 | L196: 974.5 | M196: 23.25874
A197: 188 | B197: HDFC | C197: 1730.3 | D197: 1722.10 | E197: 1702.70 | F197: 1675.10 | G197: 1655.70 | H197: 1749.70 | I197: 1769.10 | J197: 1796.70 | K197: 1741.5 | L197: 1694.5 | M197: 27.31113
A198: 189 | B198: HDFCBANK | C198: 1981.85 | D198: 1973.65 | E198: 1950.20 | F198: 1918.55 | G198: 1895.10 | H198: 2005.30 | I198: 2028.75 | J198: 2060.40 | K198: 1997.1 | L198: 1942 | M198: 24.0008
A199: 190 | B199: HDIL | C199: 20.3 | D199: 20.40 | E199: 19.95 | F199: 19.60 | G199: 19.15 | H199: 20.75 | I199: 21.20 | J199: 21.55 | K199: 20.85 | L199: 20.05 | M199: 29.56084
A200: 191 | B200: HEG | C200: 4247.9 | D200: 4285.97 | E200: 4141.93 | F200: 4035.97 | G200: 3891.93 | H200: 4391.93 | I200: 4535.97 | J200: 4641.93 | K200: 4430 | L200: 4180 | M200: 4.59776
A201: 192 | B201: HEIDELBERG | C201: 139.9 | D201: 139.73 | E201: 138.02 | F201: 136.13 | G201: 134.42 | H201: 141.62 | I201: 143.33 | J201: 145.22 | K201: 141.45 | L201: 137.85 | M201: 1.83286
A202: 193 | B202: HERITGFOOD | C202: 514.8 | D202: 510.92 | E202: 501.83 | F202: 488.87 | G202: 479.78 | H202: 523.88 | I202: 532.97 | J202: 545.93 | K202: 520 | L202: 497.95 | M202: 0.49337
A203: 194 | B203: HEROMOTOCO | C203: 2893.95 | D203: 2902.92 | E203: 2866.03 | F203: 2838.12 | G203: 2801.23 | H203: 2930.83 | I203: 2967.72 | J203: 2995.63 | K203: 2939.8 | L203: 2875 | M203: 3.84692
A204: 195 | B204: HEXAWARE | C204: 388.75 | D204: 387.05 | E204: 378.95 | F204: 369.15 | G204: 361.05 | H204: 396.85 | I204: 404.95 | J204: 414.75 | K204: 395.15 | L204: 377.25 | M204: 14.746
A205: 196 | B205: HFCL | C205: 20.65 | D205: 20.42 | E205: 19.63 | F205: 18.62 | G205: 17.83 | H205: 21.43 | I205: 22.22 | J205: 23.23 | K205: 21.2 | L205: 19.4 | M205: 60.55125
A206: 197 | B206: HIMATSEIDE | C206: 241.35 | D206: 238.95 | E206: 233.90 | F206: 226.45 | G206: 221.40 | H206: 246.40 | I206: 251.45 | J206: 258.90 | K206: 244 | L206: 231.5 | M206: 0.29582
... 304 more rows

Sheet Bulk Deals
E6: Back To Main Page
A7: Subject : | B7: BULK DEAL | D7: =Main!B10 -> 2018-10-15
A9: Date | B9: Scrip code | C9: Scrip Name | D9: Client Name | E9: Buy / Sell | F9: Quantity Traded | G9: Trade Price / Wt.Avg.trade price | H9: Exchange
A10: 2018-10-12 | B10: 542012 | C10: AAL | D10: SUNIL KUMAR GUPTA | E10: SELL | F10: 74,000 | G10: 61.3 | H10: BSE
A11: 2018-10-12 | B11: 540024 | C11: ASHARI | D11: MANOJKUMAR GUNVANTRAI SOMANI | E11: SELL | F11: 63,523 | G11: 30.17 | H11: BSE
A12: 2018-10-12 | B12: 540024 | C12: ASHARI | D12: MANOJKUMAR GUNVANTRAI SOMANI | E12: BUY | F12: 62,380 | G12: 30.12 | H12: BSE
A13: 2018-10-12 | B13: 540024 | C13: ASHARI | D13: GYAN CHAND AGGARWAL | E13: SELL | F13: 20 | G13: 30.15 | H13: BSE
A14: 2018-10-12 | B14: 540024 | C14: ASHARI | D14: GYAN CHAND AGGARWAL | E14: BUY | F14: 100,000 | G14: 30.15 | H14: BSE
A15: 2018-10-12 | B15: 540024 | C15: ASHARI | D15: VIJAY KUMAR AGGARWAL | E15: SELL | F15: 176,780 | G15: 30.17 | H15: BSE
A16: 2018-10-12 | B16: 541865 | C16: ASPL | D16: RAJ HARIDUTT SHARMA | E16: BUY | F16: 48,000 | G16: 26.5 | H16: BSE
A17: 2018-10-12 | B17: 539770 | C17: DARJEELING | D17: MEHUL HASMUKH SHAH | E17: BUY | F17: 35,500 | G17: 70.35 | H17: BSE
A18: 2018-10-12 | B18: 542013 | C18: DOLFIN | D18: MACRO COMMODEAL PRIVATE LIMITED | E18: SELL | F18: 76,000 | G18: 26.03 | H18: BSE
A19: 2018-10-12 | B19: 542013 | C19: DOLFIN | D19: MACRO COMMODEAL PRIVATE LIMITED | E19: BUY | F19: 96,000 | G19: 26.5 | H19: BSE
A20: 2018-10-12 | B20: 517288 | C20: GUJARATPOLY | D20: DARSHAN TRADING COMPANY | E20: BUY | F20: 43,393 | G20: 26.44 | H20: BSE
A21: 2018-10-12 | B21: 500467 | C21: HARRMALAYA | D21: VAYU UDAAN AIRCRAFT LLP | E21: BUY | F21: 600,000 | G21: 82.1 | H21: BSE
A22: 2018-10-12 | B22: 500467 | C22: HARRMALAYA | D22: SUMMIT SECURITIES LIMITED | E22: SELL | F22: 600,000 | G22: 82.1 | H22: BSE
A23: 2018-10-12 | B23: 502933 | C23: KATRSPG | D23: RAKESH KATARE | E23: SELL | F23: 75,000 | G23: 6.1 | H23: BSE
A24: 2018-10-12 | B24: 539595 | C24: NATECO | D24: HARISH PRANJIVAN VORA | E24: SELL | F24: 9,568 | G24: 65.7 | H24: BSE
A25: 2018-10-12 | B25: 539595 | C25: NATECO | D25: HARISH PRANJIVAN VORA | E25: BUY | F25: 59,641 | G25: 65.55 | H25: BSE
A26: 2018-10-12 | B26: 539595 | C26: NATECO | D26: Gopinath M | E26: BUY | F26: 16,000 | G26: 66.2 | H26: BSE
A27: 2018-10-12 | B27: 539595 | C27: NATECO | D27: DOLAN PAL | E27: SELL | F27: 29,655 | G27: 64.26 | H27: BSE
A28: 2018-10-12 | B28: 541444 | C28: PALMJEWELS | D28: ALACRITY SECURITIES LIMITED | E28: SELL | F28: 68,000 | G28: 30 | H28: BSE
A29: 2018-10-12 | B29: 541444 | C29: PALMJEWELS | D29: MAHENDRABHAI RAMNIKLAL SHAH | E29: BUY | F29: 68,000 | G29: 30 | H29: BSE
A30: 2018-10-12 | B30: 512217 | C30: PRISMMEDI | D30: AJOONI BIOTECH LIMITED | E30: SELL | F30: 80,000 | G30: 37.04 | H30: BSE
A31: 2018-10-12 | B31: 512217 | C31: PRISMMEDI | D31: MEENU SANGHAL | E31: BUY | F31: 50,000 | G31: 37 | H31: BSE
A32: 2018-10-12 | B32: 512217 | C32: PRISMMEDI | D32: NARESH TALWAR . | E32: BUY | F32: 65,000 | G32: 37.83 | H32: BSE
A33: 2018-10-12 | B33: 541945 | C33: RANJEET | D33: SUNITADEVI HARISHKUMAR BHANSALI | E33: BUY | F33: 66,000 | G33: 36.8 | H33: BSE
A34: 2018-10-12 | B34: 534708 | C34: RCRL | D34: SANGEETA DEVI BAFNA | E34: SELL | F34: 69,000 | G34: 10.66 | H34: BSE
A35: 2018-10-12 | B35: 534708 | C35: RCRL | D35: RATANCHAND LODHA | E35: BUY | F35: 69,000 | G35: 10.66 | H35: BSE
A36: 2018-10-12 | B36: 539760 | C36: RELICAB | D36: PARESHKUMAR SHAH PRATIK | E36: BUY | F36: 30,000 | G36: 28.75 | H36: BSE
A37: 2018-10-12 | B37: 539760 | C37: RELICAB | D37: OVERSKUD MULTI ASSET MANAGEMENT PRIVATE LIMITED | E37: SELL | F37: 33,000 | G37: 28.75 | H37: BSE
A38: 2018-10-12 | B38: 539526 | C38: SCTL | D38: NNM SECURITIES PVT LTD | E38: SELL | F38: 68,000 | G38: 25 | H38: BSE
A39: 2018-10-12 | B39: 539526 | C39: SCTL | D39: NEWEDGE VINIMAY PRIVATE LIMITED | E39: SELL | F39: 52,000 | G39: 25 | H39: BSE
A40: 2018-10-12 | B40: 539526 | C40: SCTL | D40: competent textiles pvt ltd | E40: BUY | F40: 120,000 | G40: 25 | H40: BSE
A41: 2018-10-12 | B41: 541929 | C41: SGIL | D41: AIRAN LIMITED | E41: SELL | F41: 100,000 | G41: 84.24 | H41: BSE
A42: 2018-10-12 | B42: 541929 | C42: SGIL | D42: SALIM SIRAJ KHUNT . | E42: BUY | F42: 100,000 | G42: 84.24 | H42: BSE
A43: 2018-10-12 | B43: 539520 | C43: SHAILJA | D43: SWAMINATHAN KRISHNAN | E43: SELL | F43: 3,930 | G43: 20.34 | H43: BSE
A44: 2018-10-12 | B44: 539520 | C44: SHAILJA | D44: SWAMINATHAN KRISHNAN | E44: BUY | F44: 19,008 | G44: 20.65 | H44: BSE
A45: 2018-10-12 | B45: 542019 | C45: SHUBHAM | D45: SANJAY KUMAR SINGHAL | E45: SELL | F45: 45,000 | G45: 43.85 | H45: BSE
A46: 2018-10-12 | B46: 542019 | C46: SHUBHAM | D46: CHANDAN GARG | E46: BUY | F46: 396,000 | G46: 43.55 | H46: BSE
A47: 2018-10-12 | B47: 542019 | C47: SHUBHAM | D47: ANUJ KATTA | E47: SELL | F47: 30,000 | G47: 43.85 | H47: BSE
A48: 2018-10-12 | B48: 541967 | C48: SKYGOLD | D48: MUKESH BABULAL SHAH | E48: BUY | F48: 67,200 | G48: 182.97 | H48: BSE
A49: 2018-10-12 | B49: 541967 | C49: SKYGOLD | D49: DEVENDRA VIJAY DARDA | E49: SELL | F49: 56,000 | G49: 183 | H49: BSE
A50: 2018-10-12 | B50: 541967 | C50: SKYGOLD | D50: RACHANA DEVENDRA DARDA | E50: SELL | F50: 56,000 | G50: 183 | H50: BSE
A51: 2018-10-12 | B51: 541967 | C51: SKYGOLD | D51: ARYAMAN BROKING LIMITED | E51: BUY | F51: 59,200 | G51: 182.92 | H51: BSE
A52: 2018-10-12 | B52: 519242 | C52: SRDAPRT | D52: ANAND KUMAR KABRA | E52: SELL | F52: 10,000 | G52: 4.75 | H52: BSE
A53: 2018-10-12 | B53: 538607 | C53: TOYAMIND | D53: KUBER EQUITY SERVICES LLP | E53: SELL | F53: 1,064,040 | G53: 5.35 | H53: BSE
A54: 2018-10-12 | B54: 538607 | C54: TOYAMIND | D54: KUBER EQUITY SERVICES LLP | E54: BUY | F54: 56,422 | G54: 5.37 | H54: BSE
A55: 2018-10-12 | B55: 538607 | C55: TOYAMIND | D55: UPESH DHIRAJLAL SHAH | E55: SELL | F55: 1,790,000 | G55: 5.4 | H55: BSE
A56: 2018-10-12 | B56: 538607 | C56: TOYAMIND | D56: UPESH DHIRAJLAL SHAH | E56: BUY | F56: 500,000 | G56: 5.49 | H56: BSE
A57: 2018-10-12 | B57: 538607 | C57: TOYAMIND | D57: PARUL PARIMAL MEHTA | E57: BUY | F57: 1,365,000 | G57: 5.35 | H57: BSE
A58: 2018-10-12 | B58: 538607 | C58: TOYAMIND | D58: KUBER EQUITY SERVICES LLP | E58: SELL | F58: 1,703,282 | G58: 5.38 | H58: BSE
A59: 2018-10-12 | B59: 538607 | C59: TOYAMIND | D59: KUBER EQUITY SERVICES LLP | E59: BUY | F59: 1,541,947 | G59: 5.42 | H59: BSE
A60: 2018-10-12 | B60: 531518 | C60: VIKASPROP | D60: PUNEET | E60: SELL | F60: 1,600,000 | G60: 1.62 | H60: BSE
A61: 2018-10-12 | B61: ADVENZYMES | C61: Advanced Enzyme Tech Ltd | D61: VASANT RATHI | E61: BUY | F61: 5,420,000 | G61: 190 | H61: NSE
A62: 2018-10-12 | B62: AVG | C62: AVG Logistics Limited | D62: SIXTH SENSE INDIA OPPORTUNITIES II | E62: BUY | F62: 105,600 | G62: 76.62 | H62: NSE
A63: 2018-10-12 | B63: DHFL | C63: Dewan Housing Fin Corp | D63: SHAASTRA SECURITIES TRADING PRIVATE LIMITED | E63: BUY | F63: 1,663,521 | G63: 299.49 | H63: NSE
A64: 2018-10-12 | B64: ENERGYDEV | C64: Energy Development Compan | D64: STERLITE MERCHANTS LLP | E64: BUY | F64: 586,174 | G64: 8 | H64: NSE
A65: 2018-10-12 | B65: GOACARBON | C65: Goa Carbon Ltd | D65: ALPHAGREP SECURITIES PRIVATE LIMITED | E65: BUY | F65: 51,433 | G65: 758.6 | H65: NSE
A66: 2018-10-12 | B66: GSS | C66: GSS Infotech Limited | D66: AGARWAL ARCHANA | E66: BUY | F66: 88,987 | G66: 93.59 | H66: NSE
A67: 2018-10-12 | B67: HARRMALAYA | C67: Harrisons Malayalam Ltd | D67: VAYU UDAAN AIRCRAFT LLP | E67: BUY | F67: 128,000 | G67: 82.7 | H67: NSE
A68: 2018-10-12 | B68: JETAIRWAYS | C68: Jet Airways (India) Ltd. | D68: ALPHAGREP SECURITIES PRIVATE LIMITED | E68: BUY | F68: 718,710 | G68: 200.8 | H68: NSE
A69: 2018-10-12 | B69: JETAIRWAYS | C69: Jet Airways (India) Ltd. | D69: SHAASTRA SECURITIES TRADING PRIVATE LIMITED | E69: BUY | F69: 874,229 | G69: 200.62 | H69: NSE
A70: 2018-10-12 | B70: JUSTDIAL | C70: Justdial Ltd. | D70: NEW YORK STATE COMMON RETIREMENT FUND | E70: BUY | F70: 416753 | G70: 471.39 | H70: NSE
A71: 2018-10-12 | B71: JUSTDIAL | C71: Justdial Ltd. | D71: SHAASTRA SECURITIES TRADING PRIVATE LIMITED | E71: BUY | F71: 370878 | G71: 469.58 | H71: NSE
A72: 2018-10-12 | B72: KSHITIJPOL | C72: Kshitij Polyline Limited | D72: VIKAS B AGARWAL | E72: BUY | F72: 72000 | G72: 34.26 | H72: NSE
A73: 2018-10-12 | B73: KTKBANK | C73: Karnataka Bank Limited | D73: CROSSLAND TRADING CO | E73: BUY | F73: 1591977 | G73: 99.6 | H73: NSE
A74: 2018-10-12 | B74: MARINE | C74: Marine Electrical (I) Ltd | D74: SUBHRASHI PROPERTIES PRIVATE LIMITED | E74: BUY | F74: 144000 | G74: 66.75 | H74: NSE
A75: 2018-10-12 | B75: MKPL | C75: M K Proteins Limited | D75: ARUNA HOMES PRIVATE LIMITED | E75: BUY | F75: 26000 | G75: 73.69 | H75: NSE
A76: 2018-10-12 | B76: SANCO | C76: Sanco Industries Ltd. | D76: HANSABEN DIPAKBHAI PUJARA | E76: BUY | F76: 53034 | G76: 16.52 | H76: NSE
A77: 2018-10-12 | B77: SANCO | C77: Sanco Industries Ltd. | D77: POOJA BHAVESH BHAGDEV | E77: BUY | F77: 68100 | G77: 16.44 | H77: NSE
A78: 2018-10-12 | B78: SANCO | C78: Sanco Industries Ltd. | D78: VRAJ ENTERPRISES | E78: BUY | F78: 109000 | G78: 15.74 | H78: NSE
A79: 2018-10-12 | B79: SILGO | C79: Silgo Retail Limited | D79: FESTINO VINCOM LIMITED | E79: BUY | F79: 57000 | G79: 36.25 | H79: NSE
A80: 2018-10-12 | B80: SUULD | C80: Suumaya Lifestyle Limited | D80: ARC AGROBASKET LLP | E80: BUY | F80: 144000 | G80: 25.5 | H80: NSE
A81: 2018-10-12 | B81: VINNY | C81: Vinny Overseas Limited | D81: HARISHKUMAR JITMAL HUF | E81: BUY | F81: 120000 | G81: 42.62 | H81: NSE
A82: 2018-10-12 | B82: VINNY | C82: Vinny Overseas Limited | D82: MAHENDRAKUMAR JITMAL HUF | E82: BUY | F82: 141000 | G82: 42.51 | H82: NSE
A83: 2018-10-12 | B83: VINNY | C83: Vinny Overseas Limited | D83: MOHINIDEVI MAHENDRAKUMAR BHANSALI | E83: BUY | F83: 90000 | G83: 43.45 | H83: NSE
A84: 2018-10-12 | B84: 8KMILES | C84: 8K Miles Soft Serv Ltd | D84: KIRIT NANJI GOGRI | E84: SELL | F84: 159400 | G84: 120.8 | H84: NSE
A85: 2018-10-12 | B85: ADVENZYMES | C85: Advanced Enzyme Tech Ltd | D85: ATHARVA GREEN ECOTECH LLP | E85: SELL | F85: 5500000 | G85: 190 | H85: NSE
A86: 2018-10-12 | B86: AVG | C86: AVG Logistics Limited | D86: SYSTEMATIX SHARES & STOCKS (INDIA) LTD. | E86: SELL | F86: 66000 | G86: 77.48 | H86: NSE
A87: 2018-10-12 | B87: BOMDYEING | C87: BOMBAY DYEING & MFG. CO L | D87: MINESH JORMALBHAI MEHTA | E87: SELL | F87: 1683581 | G87: 105.95 | H87: NSE
A88: 2018-10-12 | B88: DHFL | C88: Dewan Housing Fin Corp | D88: SHAASTRA SECURITIES TRADING PRIVATE LIMITED | E88: SELL | F88: 1663521 | G88: 299.6 | H88: NSE
A89: 2018-10-12 | B89: ENERGYDEV | C89: Energy Development Compan | D89: PRAFULLA SUBHASHCHANDRA BHAT | E89: SELL | F89: 639698 | G89: 8 | H89: NSE
A90: 2018-10-12 | B90: GOACARBON | C90: Goa Carbon Ltd | D90: ALPHAGREP SECURITIES PRIVATE LIMITED | E90: SELL | F90: 51433 | G90: 759.02 | H90: NSE
A91: 2018-10-12 | B91: GSS | C91: GSS Infotech Limited | D91: AGARWAL ARCHANA | E91: SELL | F91: 88987 | G91: 94.3 | H91: NSE
A92: 2018-10-12 | B92: HARRMALAYA | C92: Harrisons Malayalam Ltd | D92: SUMMIT SECURITIES LIMITED | E92: SELL | F92: 128000 | G92: 82.7 | H92: NSE
A93: 2018-10-12 | B93: JETAIRWAYS | C93: Jet Airways (India) Ltd. | D93: ALPHAGREP SECURITIES PRIVATE LIMITED | E93: SELL | F93: 718710 | G93: 200.86 | H93: NSE
A94: 2018-10-12 | B94: JETAIRWAYS | C94: Jet Airways (India) Ltd. | D94: SHAASTRA SECURITIES TRADING PRIVATE LIMITED | E94: SELL | F94: 874229 | G94: 200.6 | H94: NSE
A95: 2018-10-12 | B95: JUSTDIAL | C95: Justdial Ltd. | D95: SHAASTRA SECURITIES TRADING PRIVATE LIMITED | E95: SELL | F95: 370878 | G95: 470.34 | H95: NSE
A96: 2018-10-12 | B96: KSHITIJPOL | C96: Kshitij Polyline Limited | D96: JAY MANSUKHLAL KOTAK HUF | E96: SELL | F96: 48000 | G96: 34.25 | H96: NSE
A97: 2018-10-12 | B97: KSHITIJPOL | C97: Kshitij Polyline Limited | D97: KOTAK MANSUKHLAL JAMNADAS | E97: SELL | F97: 48000 | G97: 34.33 | H97: NSE
A98: 2018-10-12 | B98: KTKBANK | C98: Karnataka Bank Limited | D98: CROSSLAND TRADING CO | E98: SELL | F98: 1591977 | G98: 99.74 | H98: NSE
A99: 2018-10-12 | B99: KWALITY | C99: Kwality Limited | D99: SANJAY DHINGRA | E99: SELL | F99: 1500000 | G99: 11.41 | H99: NSE
A100: 2018-10-12 | B100: NANDANI | C100: Nandani Creation Limited | D100: ARVIND SHANTILAL SHAH | E100: SELL | F100: 36000 | G100: 41.38 | H100: NSE
A101: 2018-10-12 | B101: SANCO | C101: Sanco Industries Ltd. | D101: BHIKAMCHAND RAJESH HUF | E101: SELL | F101: 54800 | G101: 15.91 | H101: NSE
A102: 2018-10-12 | B102: SANCO | C102: Sanco Industries Ltd. | D102: HANSABEN DIPAKBHAI PUJARA | E102: SELL | F102: 53034 | G102: 15.17 | H102: NSE
A103: 2018-10-12 | B103: SANCO | C103: Sanco Industries Ltd. | D103: POOJA BHAVESH BHAGDEV | E103: SELL | F103: 68100 | G103: 14.49 | H103: NSE
A104: 2018-10-12 | B104: SANCO | C104: Sanco Industries Ltd. | D104: PREMLATHA | E104: SELL | F104: 53000 | G104: 15.75 | H104: NSE
A105: 2018-10-12 | B105: SANCO | C105: Sanco Industries Ltd. | D105: VRAJ ENTERPRISES | E105: SELL | F105: 100000 | G105: 16 | H105: NSE
A106: 2018-10-12 | B106: SILGO | C106: Silgo Retail Limited | D106: HITESH ANANTRAI DOSHI | E106: SELL | F106: 57000 | G106: 36.25 | H106: NSE

Sheet Call Tracker (Equity & F&O)
M5: Back To Main Page
A6: Retail Research Technical Calls & Fundamental Performance Report for the month of October -2018
M7: =Main!B10 -> 2018-10-15
B8: Positional Call
A9: Sr.no | B9: Date | D9: Company | E9: Rec | F9: Rec Price | G9: Stop Loss*** | H9: Call Closed At | I9: Target | J9: Remark | K9: Profit / Loss per Share | L9: Gain / Loss % | M9: Status | N9: Closed Date | O9: NSE Closed Price
A10: 1 | B10: 2018-09-24 | D10: SUNPHARMA | E10: Buy | F10: 632.5 | G10: 610 | H10: 605 | I10: 670-680 | J10: Loss of Rs. 27.50/- | K10: =H10-F10 -> -27.5 | L10: =K10/F10 -> -4.35% | M10: Unsuccessful | N10: 2018-10-04 | R10: H
A11: 2 | B11: 2018-09-26 | D11: SBIN | E11: Buy | F11: 266 | G11: 249.7 | H11: 274.5 | I11: 285-295 | J11: Profit of Rs. 8.50/- | K11: =H11-F11 -> 8.5 | L11: =K11/F11 -> 3.20% | M11: Successful | N11: 2018-10-01 | R11: R
A12: 3 | B12: 2018-09-27 | D12: ITC | E12: Buy | F12: 291.5 | G12: 278 | H12: 301.5 | I12: 320 | J12: Profit of Rs. 10/- | K12: 10 | L12: =K12/F12 -> 3.43% | M12: Successful | N12: 2018-10-01 | R12: H
A13: 4 | B13: 2018-09-28 | D13: RBLBANK | E13: Buy | F13: 520 | G13: 499 | H13: 538 | I13: 570-580 | J13: Profit of Rs. 18/- | K13: 18 | L13: =K13/F13 -> 3.46% | M13: Successful | N13: 2018-10-03 | R13: H
A14: 5 | B14: 2018-09-28 | D14: PIDILITIND | E14: Buy | F14: 1049.5 | G14: 1017.7 | H14: 998 | I14: 1100-1120 | J14: Loss of Rs. 51.50/- | K14: -51.5 | L14: =K14/F14 -> -4.91% | M14: Unsuccessful | N14: 2018-10-03 | R14: R
A15: 6 | B15: 2018-10-01 | D15: M&MFIN | E15: Buy | F15: 400 | G15: 379 | H15: 414 | I15: 440 | J15: Profit of Rs. 14/- | K15: 14 | L15: =K15/F15 -> 3.50% | M15: Successful | N15: 2018-10-01 | R15: H
A16: 7 | B16: 2018-10-01 | D16: CONCOR | E16: Buy | F16: 634 | G16: 598.7 | H16: 659 | I16: 690-700 | J16: Profit of Rs. 25/- | K16: 25 | L16: 3.94% | M16: Successful | N16: 2018-10-01 | R16: R
A17: 8 | B17: 2018-10-03 | D17: SUDARSCHEM | E17: Buy | F17: 402 | G17: 384.4 | H17: 384.4 | I17: 430-440 | J17: Loss of Rs. 17.60/- | K17: =H17-F17 -> -17.6 | L17: -4.38% | M17: Unsuccessful | N17: 2018-10-04 | R17: R
A18: 9 | B18: 2018-10-03 | D18: CEATLTD | E18: Buy | F18: 1133 | G18: 1078 | H18: 1073 | I18: 1200-1220 | J18: Loss of Rs. 60/- | K18: =H18-F18 -> -60 | L18: =K18/F18 -> -5.30% | M18: Unsuccessful | N18: 2018-10-04 | R18: H
A19: 10 | B19: 2018-10-03 | D19: INDUSINDBK | E19: Buy | F19: 1655 | G19: 1597.7 | H19: 1570 | I19: 1760-1780 | J19: Loss of Rs. 85/- | K19: =H19-F19 -> -85 | L19: =K19/F19 -> -5.14% | M19: Unsuccessful | N19: 2018-10-04 | R19: R
A20: 11 | B20: 2018-10-04 | D20: RBLBANK | E20: Buy | F20: 512.55 | G20: 489 | H20: 492 | I20: 550-560 | J20: Loss of Rs. 20.55/- | K20: =H20-F20 -> -20.55 | L20: =K20/F20 -> -4.01% | M20: Unsuccessful | N20: 2018-10-05 | R20: H
A21: 12 | B21: 2018-10-05 | D21: ITC | E21: Buy | F21: 283 | G21: 274 | H21: 270 | I21: 300 | J21: Loss of Rs. 13/- | K21: =H21-F21 -> -13 | L21: =K21/F21 -> -4.59% | M21: Unsuccessful | N21: 2018-10-09 | R21: H
A22: 13 | B22: 2018-10-08 | D22: RBLBANK | E22: Buy | F22: 498.5 | G22: 479 | H22: 514.5 | I22: 540-550 | J22: Profit of Rs. 16/- | K22: 16 | L22: 3.21% | M22: Successful | N22: 2018-10-10 | R22: H
A23: 14 | B23: 2018-10-10 | D23: SBIN | E23: Buy | F23: 263 | G23: 249.7 | H23: 272.5 | I23: 285-290 | J23: Profit of Rs. 9.5/- | K23: =H23-F23 -> 9.5 | L23: =K23/F23 -> 3.61% | M23: Successful | N23: 2018-10-10 | R23: R
A24: 15 | B24: 2018-10-10 | D24: KPIT | E24: Buy | F24: 200-201 | G24: 189.7 | I24: 218-222 | J24: Open | O24: =VLOOKUP(D24,[1]EQ!$A$1:$M$1636,6,0) -> 199.6 | R24: R
A25: 16 | B25: 2018-10-10 | D25: ASIANPAINT | E25: Buy | F25: 1207.5 | G25: 1148 | H25: 1249 | I25: 1280-1300 | J25: Profit of Rs. 41.5/- | K25: =H25-F25 -> 41.5 | L25: =K25/F25 -> 3.44% | M25: Successful | N25: 2018-10-12 | R25: H
A26: 17 | B26: 2018-10-10 | D26: MARICO | E26: Buy | F26: 301 | G26: 289.7 | H26: 310.5 | I26: 325-330 | J26: Profit of Rs. 9.5/- | K26: =H26-F26 -> 9.5 | L26: =K26/F26 -> 3.16% | M26: Successful | N26: 2018-10-12 | R26: R
A27: 18 | B27: 2018-10-10 | D27: DABUR | E27: Buy | F27: 405-409 | G27: 389 | I27: 445 | J27: Open | O27: =VLOOKUP(D27,[1]EQ!$A$1:$M$1636,6,0) -> 392.4 | R27: H
A28: 19 | B28: 2018-10-11 | D28: RBLBANK | E28: Buy | F28: 511 | G28: 493 | H28: 525.5 | I28: 545-555 | J28: Profit of Rs. 14.50/- | K28: =H28-F28 -> 14.5 | L28: =K28/F28 -> 2.84% | M28: Successful | N28: 2018-10-11 | R28: H
A29: 20 | B29: 2018-10-11 | D29: MCDOWELL-N | E29: Buy | F29: 462.5 | G29: 436.6 | H29: 478.5 | I29: 500-510 | J29: Profit of Rs. 16/- | K29: =H29-F29 -> 16 | L29: =K29/F29 -> 3.46% | M29: Successful | N29: 2018-10-11 | R29: R
A30: 21 | B30: 2018-10-12 | D30: SIEMENS | E30: Buy | F30: 898-902 | G30: 853 | I30: 980-1000 | J30: Open | O30: =VLOOKUP(D30,[1]EQ!$A$1:$M$1636,6,0) -> 891.85 | R30: R
A38: CLBS = Closing Basis *** | F38: Reinitiated $
A39: Dividend adjusted <> | F39: Revised stoploss #
A40: Part book {}
A41: Master Trade High Risk
A42: Sr.no | B42: Date | D42: Company | E42: Rec | F42: Rec Price | G42: Stop Loss | H42: Call Closed At | I42: Target | J42: Remark | K42: Profit / Loss per share | L42: Gain / Loss per Lot | M42: Lot | N42: Status | O42: Closed Date
A43: 1 | B43: 2018-09-28 | D43: HDFCBANK OCT FUT | E43: Buy | F43: 2020 | G43: 1980 | H43: 2051.5 | I43: 2100 | J43: Profit of Rs 19.50/- | K43: =H43-F43 -> 31.5 | L43: 9750 | M43: 500 | N43: Successful | O43: 2018-10-01 | R43: H
D44: HDFCBANK OCT 2060 CE | E44: Sell | F44: 23 | H44: 35 | K44: =F44-H44 -> -12
A45: 2 | B45: 2018-10-01 | D45: NIFTY OCT FUT | E45: Buy | F45: 10920 | G45: 10780 | H45: 11030 | I45: 11200 | J45: Profit of Rs 85/- | K45: =H45-F45 -> 110 | L45: 6375 | M45: 75 | N45: Successful | O45: 2018-10-01 | R45: H
D46: NIFTY OCT 11100 CE | E46: Sell | F46: 112.5 | H46: 137.5 | K46: =F46-H46 -> -25
A47: 3 | B47: 2018-10-03 | D47: NIFTY OCT FUT | E47: Buy | F47: 10952.5 | G47: 10850 | H47: 10780 | I47: 11150 | J47: Loss of Rs.172.5/- | K47: =H47-F47 -> -172.5 | L47: =M47*K47 -> -12937.5 | M47: 75 | N47: Unsuccessful | O47: 2018-10-04 | R47: H
A48: 4 | B48: 2018-10-03 | D48: MARUTI OCT FUT | E48: Buy | F48: 7310 | G48: 7117 | H48: 7010 | I48: 7650-7700 | J48: Loss of Rs.300/- | K48: =H48-F48 -> -300 | L48: =M48*K48 -> -22500 | M48: 75 | N48: Unsuccessful | O48: 2018-10-05 | R48: R
A49: 5 | B49: 2018-10-03 | D49: RELIANCE OCT FUT | E49: Buy | F49: 1222.5 | G49: 1195 | H49: 1195 | I49: 1270-1280 | J49: Loss of Rs.16/- | K49: =H49-F49 -> -27.5 | L49: =-16*M49 -> -16000 | M49: 1000 | N49: Unsuccessful | O49: 2018-10-04 | R49: H
D50: RELIANCE OCT 1260 CE | E50: Sell | F50: 26 | H50: 14.5 | K50: =F50-H50 -> 11.5
A51: 6 | B51: 2018-10-05 | D51: NIFTY OCT FUT | E51: Buy | F51: 10535 | G51: 10400 | H51: 10410 | I51: 10800 | J51: Loss of Rs.55/- | K51: =H51-F51 -> -125 | L51: =-55*75 -> -4125 | M51: 75 | N51: Unsuccessful | O51: 2018-10-05 | R51: H
D52: NIFTY OCT 10700 CE | E52: Sell | F52: 132.5 | H52: 62.5 | K52: =F52-H52 -> 70
A53: 7 | B53: 2018-10-08 | D53: RECLTD OCT FUT | E53: Buy | F53: 100.25 | G53: 97 | H53: 102.4 | I53: 106 | J53: Profit of Rs 1.8/- | K53: =H53-F53 -> 2.15 | L53: =1.8*6000 -> 10800 | M53: 6000 | N53: Successful | O53: 2018-10-08 | R53: N
D54: RECLTD OCT 10700 CE | E54: Sell | F54: 3.3 | H54: 3.65 | K54: =F54-H54 -> -0.35
A55: 8 | B55: 2018-10-08 | D55: INFRATEL OCT FUT | E55: Sell | F55: 265.5 | G55: 275 | H55: 274.5 | I55: 250 | J55: Loss of Rs.5/- | K55: -9 | L55: =-5*1700 -> -8500 | M55: 1700 | N55: Unsuccessful | O55: 2018-10-10 | R55: H
D56: INFRATEL OCT 255 PE | E56: Sell | F56: 6.5 | H56: 2.5 | K56: 4
A57: 9 | B57: 2018-10-08 | D57: ONGC OCT FUT | E57: Sell | F57: 147.5 | G57: 153.5 | H57: 151 | I57: 140 | J57: Loss of Rs.0.75/- | K57: -3.5 | L57: =-0.75*3750 -> -2812.5 | M57: 3750 | N57: Unsuccessful | O57: 2018-10-11 | R57: H
D58: ONGC OCT 140 PE | E58: Sell | F58: 4.25 | H58: 1.5 | K58: 2.75
A59: 10 | B59: 2018-10-10 | D59: UPL OCT FUT | E59: Sell | F59: 619 | G59: 634 | H59: 600 | I59: 590 | J59: Profit of Rs 18/- | K59: 19 | L59: =18*1200 -> 21600 | M59: 1700 | N59: Successful | O59: 2018-10-11 | R59: N
D60: UPL OCT 580 PE | E60: Sell | F60: 12.5 | H60: 13.5 | K60: -1
A61: 11 | B61: 2018-10-12 | D61: NIFTY OCT FUT | E61: Buy | F61: 10440-10460 | G61: 10615 | I61: 10300 | J61: Open | R61: H
D62: NIFTY OCT 10300 CE | E62: Sell | F62: 90-95
A74: Master Trade Medium Risk
A75: Sr.no | B75: Date | D75: Company | E75: Rec | F75: Rec Price | G75: Stop Loss | H75: Call Closed At | I75: Target | J75: Remark | K75: Profit/ Loss per lot | L75: Gain / Loss per Lot | M75: Lot | N75: Status | O75: Closed Date
A76: 1 | B76: 2018-10-11 | D76: NIFTY OCT 10500 CE | E76: Buy | F76: 42 | G76: 0 | H76: 57 | I76: 100 | J76: Profit of Rs.15/- | K76: =H76-F76 -> 15 | L76: =M76*K76 -> 1125 | M76: 75 | N76: Successful | O76: 2018-10-11 | R76: H
A77: 2 | B77: 2018-10-11 | D77: NIFTY OCT 10500 CE | E77: Buy | F77: 42 | G77: 0 | H77: 55 | I77: 100 | J77: Profit of Rs.13/- | K77: =H77-F77 -> 13 | L77: =M77*K77 -> 975 | M77: 75 | N77: Successful | O77: 2018-10-11 | R77: H
B88: Smart Delivery Trade
A89: Sr.no | B89: Date | D89: Company | E89: Rec | F89: Rec Price | G89: Stop Loss*** | H89: Call Closed At | I89: Target | J89: Remark | K89: Profit / Loss per Share | L89: Gain / Loss % | M89: Status | N89: Closed Date | O89: NSE Closed Price
A90: 1 | B90: 2018-09-27 | D90: COLPAL | E90: Buy | F90: 1094 | G90: 1058 | H90: 1050 | I90: 1140-1160 | J90: Loss of Rs. 44/- | K90: =H90-F90 -> -44 | L90: =K90/F90 -> -4.02% | M90: Unsuccessful | N90: 2018-10-08 | R90: H
A91: 2 | B91: 2018-10-03 | D91: BAJFINACE | E91: Buy | F91: 2210 | G91: 2140 | H91: 2275 | I91: 2300-2350 | J91: Profit of Rs. 65/- | K91: 65 | L91: =K91/F91 -> 2.94% | M91: Successful | N91: 2018-10-03 | R91: H
A92: 3 | B92: 2018-10-03 | D92: ADVENZYMES | E92: Buy | F92: 186 | G92: 179.7 | H92: 174.5 | I92: 197-200 | J92: Loss of Rs. 11.5/- | K92: -11.5 | L92: -6.18% | M92: Unsuccessful | N92: 2018-10-08 | R92: R
A93: 4 | B93: 2018-10-03 | D93: LT | E93: Buy | F93: 1249.5 | G93: 1195 | H93: 1277.5 | I93: 1330-1350 | J93: Profit of Rs. 28/- | K93: 28 | L93: =K93/F93 -> 2.24% | M93: Successful | N93: 2018-10-04 | R93: H
A94: 5 | B94: 2018-10-04 | D94: BAJFINANCE | E94: Buy | F94: 2180 | G94: 2135 | H94: 2135 | I94: 2250-2300 | J94: Loss of Rs. 45/- | K94: -45 | L94: =K94/F94 -> -2.06% | M94: Unsuccessful | N94: 2018-10-05 | R94: H
A95: 6 | B95: 2018-10-08 | D95: BAJFINANCE | E95: Buy | F95: 1980 | G95: 1935 | H95: 2047.5 | I95: 2100 | J95: Profit of Rs. 67/- | K95: 67.5 | L95: 3.41% | M95: Successful | N95: 2018-10-08 | R95: H
A96: 7 | B96: 2018-10-08 | D96: HDFCBANK | E96: Buy | F96: 1955-1965 | G96: 1890 | I96: 2150-2170 | J96: Open | O96: =VLOOKUP(D96,[1]EQ!$A$1:$M$1636,6,0) -> 1940.6 | R96: H
A97: 8 | B97: 2018-10-08 | D97: L&TFH | E97: Buy | F97: 122 | G97: 117 | H97: 117.5 | I97: 130-132 | J97: Loss of Rs. 4.5/- | K97: =H97-F97 -> -4.5 | L97: =K97/F97 -> -3.69% | M97: Unsuccessful | N97: 2018-10-08 | R97: H
A98: 9 | B98: 2018-10-08 | D98: JINDALSTEEL | E98: Sell | F98: 172 | G98: 178 | H98: 167.5 | I98: 160 | J98: Profit of Rs.4.5/- | K98: =F98-H98 -> 4.5 | L98: 2.62% | M98: Successful | N98: 2018-10-08 | R98: H
A99: 10 | B99: 2018-10-09 | D99: BAJFINACE | E99: Buy | F99: 1970 | G99: 1920 | H99: 2015 | I99: 2100 | J99: Profit of Rs. 45/- | K99: =H99-F99 -> 45 | L99: =K99/F99 -> 2.28% | M99: Successful | N99: 2018-10-09 | R99: H
A100: 11 | B100: 2018-10-09 | D100: BALKRISIND | E100: Buy | F100: 994 | G100: 957 | H100: 1028.5 | I100: 1050-1070 | J100: Profit of Rs. 34.5/- | K100: 34.5 | L100: 3.47% | M100: Successful | N100: 2018-10-10 | R100: H
A101: 12 | B101: 2018-10-09 | D101: JINDALSTEEL | E101: Sell | F101: 174 | G101: 182 | H101: 173.5 | I101: 160 | J101: Profit of Rs.0.5/- | K101: =F101-H101 -> 0.5 | L101: =K101/F101 -> 0.29% | M101: Neutral | N101: 2018-10-09 | R101: H
A102: 13 | B102: 2018-10-10 | D102: BIOCON | E102: Buy | F102: 600 | G102: 576 | H102: 617.5 | I102: 640-650 | J102: Profit of Rs. 17.5/- | K102: =H102-F102 -> 17.5 | L102: 2.92% | M102: Successful | N102: 2018-10-10 | R102: R
A103: 12 | B103: 2018-10-11 | D103: BAJFINACE | E103: Buy | F103: 2115 | G103: 2040 | H103: 2195 | I103: 2220-2250 | J103: Profit of Rs. 80/- | K103: =H103-F103 -> 80 | L103: =K103/F103 -> 3.78% | M103: Successful | N103: 2018-10-11 | R103: H
A104: 13 | B104: 2018-10-11 | D104: BALKRISIND | E104: Buy | F104: 1010 | G104: 970 | H104: 1037.5 | I104: 1060-1080 | J104: Profit of Rs. 27.50/- | K104: 27.5 | L104: 2.72% | M104: Successful | N104: 2018-10-11 | R104: R
A105: 14 | B105: 2018-10-11 | D105: EXIDEIND | E105: Buy | F105: 250.5 | G105: 239.7 | H105: 259 | I105: 274-280 | J105: Profit of Rs. 8.50/- | K105: =H105-F105 -> 8.5 | L105: =K105/F105 -> 3.39% | M105: Successful | N105: 2018-10-11 | R105: H
A106: 15 | B106: 2018-10-11 | D106: SUNPHARMA | E106: Buy | F106: 594-598 | G106: 578 | I106: 620-630 | J106: Open | O106: =VLOOKUP(D106,[1]EQ!$A$1:$M$1636,6,0) -> 609.75 | R106: H
A107: 16 | B107: 2018-10-12 | D107: BALKRISIND | E107: Buy | F107: 1020 | G107: 978 | H107: 1047.5 | I107: 1100 | J107: Profit of Rs. 27.50/- | K107: =H107-F107 -> 27.5 | L107: =K107/F107 -> 2.70% | M107: Successful | N107: 2018-10-12 | R107: H
A108: 17 | B108: 2018-10-12 | D108: NIITTECH | E108: Buy | F108: 1055-1065 | G108: 1024.7 | I108: 1140-1160 | J108: Open | R108: R
A115: CLBS = Closing Basis *** | F115: Reinitiated $
A116: Dividend adjusted <> | F116: Revised stoploss #
B119: Momentum Call
A120: Sr.no | B120: Date | D120: Company | E120: Rec | F120: Rec Price | G120: Stop Loss | H120: Call Closed At | I120: Target | J120: Remark | K120: Profit / Loss per Share/Lot | L120: Gain / Loss % | M120: Gain / Loss per Lot | N120: Lot | O120: Status | P120: Closed Date
A121: 1 | B121: 2018-10-01 | D121: INFRATEL OCT FUT | E121: Buy | F121: 268 | G121: 260 | H121: 260 | I121: 282 | J121: Loss of Rs.8/- | K121: =H121-F121 -> -8 | M121: =N121*K121 -> -13600 | N121: 1700 | O121: Unsuccessful | P121: 2018-10-03 | R121: N
A122: 2 | B122: 2018-10-03 | D122: TATASTEEL OCT FUT | E122: Buy | F122: 591.5 | G122: 579 | H122: 578 | I122: 610 | J122: Loss of Rs.13.5/- | K122: =H122-F122 -> -13.5 | M122: -14323.5 | N122: 1061 | O122: Unsuccessful | P122: 2018-10-04 | R122: N
A123: 3 | B123: 2018-10-03 | D123: UPL OCT FUT | E123: Buy | F123: 647 | G123: 636 | H123: 640 | I123: 665-670 | J123: Loss of Rs.7/- | K123: =H123-F123 -> -7 | M123: -8400 | N123: 1200 | O123: Unsuccessful | P123: 2018-10-04 | R123: N
A124: 4 | B124: 2018-10-08 | D124: INFRATEL OCT FUT | E124: Buy | F124: 256.5 | G124: 251 | H124: 262 | I124: 265-270 | J124: Profit of Rs.5.5/- | K124: =H124-F124 -> 5.5 | M124: 9350 | N124: 1700 | O124: Successful | P124: 2018-10-08 | R124: N
A125: 5 | B125: 2018-10-08 | D125: HDFC OCT FUT | E125: Sell | F125: 1672.5 | G125: 1702 | H125: 1659 | I125: 1620 | J125: Profit of Rs.13.5/- | K125: =F125-H125 -> 13.5 | M125: 6750 | N125: 500 | O125: Successful | P125: 2018-10-08 | R125: H
A126: 6 | B126: 2018-10-09 | D126: NIITTECH OCT FUT | E126: Buy | F126: 1132.5 | G126: 1115 | H126: 1115 | I126: 1160 | J126: Loss of Rs.17.50/- | K126: =H126-F126 -> -17.5 | M126: -13125 | N126: 750 | O126: Unsuccessful | P126: 2018-10-09 | R126: R
A127: 7 | B127: 2018-10-09 | D127: DIVISLAB OCT FUT | E127: Buy | F127: 1269 | G127: 1255 | H127: 1255 | I127: 1300 | J127: Loss of Rs.14/- | K127: =H127-F127 -> -14 | M127: -11200 | N127: 800 | O127: Unsuccessful | P127: 2018-10-09 | R127: N
A128: 8 | B128: 2018-10-09 | D128: APOLLOHOSP OCT FUT | E128: Buy | F128: 1087.5 | G128: 1058 | H128: 1106.5 | I128: 1150 | J128: Profit of Rs.19/- | K128: =H128-F128 -> 19 | M128: 9500 | N128: 500 | O128: Successful | P128: 2018-10-09 | R128: R
A129: 9 | B129: 2018-10-09 | D129: DIVISLAB OCT FUT | E129: Buy | F129: 1252.5 | G129: 1238 | H129: 1265 | I129: 1300 | J129: Profit of Rs.12.50/- | K129: =H129-F129 -> 12.5 | M129: 10000 | N129: 800 | O129: Successful | P129: 2018-10-09 | R129: R
A130: 10 | B130: 2018-10-10 | D130: VEDL OCT FUT | E130: Sell | F130: 220.5 | G130: 227.3 | H130: 202 | I130: 208-205 | J130: Profit of Rs.18.50/- | K130: =F130-H130 -> 18.5 | M130: =N130*K130 -> 32375 | N130: 1750 | O130: Successful | P130: 2018-10-11 | R130: R
A131: 11 | B131: 2018-10-10 | D131: KOTAKBANK OCT FUT | E131: Buy | F131: 1139 | G131: 1127 | H131: 1120 | I131: 1170 | J131: Loss of Rs.19/- | K131: =H131-F131 -> -19 | M131: -15200 | N131: 800 | O131: Unsuccessful | P131: 2018-10-11 | R131: H
A132: 12 | B132: 2018-10-10 | D132: HINDUNILVR OCT FUT | E132: Buy | F132: 1520 | G132: 1498.7 | H132: 1533.5 | I132: 1550-1560 | J132: Profit of Rs.13.50/- | K132: 13.5 | M132: =N132*K132 -> 8100 | N132: 600 | O132: Successful | P132: 2018-10-10 | R132: R
A133: 13 | B133: 2018-10-10 | D133: CIPLA OCT FUT | E133: Buy | F133: 639 | G133: 627 | H133: 627.5 | I133: 660 | J133: Loss of Rs.11.50/- | K133: -11.5 | M133: -11500 | N133: 1000 | O133: Unsuccessful | P133: 2018-10-11 | R133: R
A134: 14 | B134: 2018-10-11 | D134: BAJAJ-AUTO OCT FUT | E134: Buy | F134: 2550 | G134: 2497 | H134: 2585 | I134: 2650 | J134: Profit of Rs.35/- | K134: 35 | M134: 8750 | N134: 250 | O134: Successful | P134: 2018-10-12 | R134: R
A135: 15 | B135: 2018-10-11 | D135: RAYMOND OCT FUT | E135: Buy | F135: 638 | G135: 623 | H135: 647.5 | I135: 665 | J135: Profit of Rs.9.50/- | K135: 9.5 | M135: =N135*K135 -> 7600 | N135: 800 | O135: Successful | P135: 2018-10-11 | R135: N
A136: 16 | B136: 2018-10-11 | D136: DIVISLAB OCT FUT | E136: Buy | F136: 1283.5 | G136: 1268 | H136: 1268 | I136: 1310 | J136: Loss of Rs.15.50/- | K136: -15.5 | M136: -12400 | N136: 800 | O136: Unsuccessful | P136: 2018-10-11 | R136: R
A137: 17 | B137: 2018-10-12 | D137: APOLLOHOSP OCT FUT | E137: Buy | F137: 1106.5 | G137: 1080 | H137: 1123 | I137: 1160 | J137: Profit of Rs.16.5/- | K137: 16.5 | M137: 8250 | N137: 500 | O137: Successful | P137: 2018-10-12 | R137: N
A138: 18 | B138: 2018-10-12 | D138: ARVIND OCT FUT | E138: Buy | F138: 329-330 | G138: 323 | I138: 345 | J138: Open | R138: N
A139: 19 | B139: 2018-10-12 | D139: HINDALCO OCT FUT | E139: Sell | F139: 225.50-226.50 | G139: 229.8 | I139: 220-218 | J139: Open | R139: R
A140: 20 | B140: 2018-10-12 | D140: DIVISLAB OCT FUT | E140: Sell | F140: 1288.5 | G140: 1305 | H140: 1281 | I140: 1260 | J140: Profit of Rs.7.50/- | K140: =F140-H140 -> 7.5 | M140: =N140*K140 -> 6000 | N140: 800 | O140: Successful | P140: 2018-10-12 | R140: N
A141: 21 | B141: 2018-10-12 | D141: STAR OCT FUT | E141: Sell | F141: 423-424 | G141: 436 | I141: 405 | J141: Open | R141: H
A161: CLBS = Closing Basis ***
A162: Dividend adjusted <> | F162: Reinitiated $
F163: Revised stoploss #
B164: Quick Pick Intraday
A165: Sr.no | B165: Date | D165: Company | E165: Rec | F165: Rec Price | G165: Stop Loss*** | H165: Call Closed At | I165: Target | J165: Remark | K165: Profit / Loss per Share | L165: Status | M165: Closed Date
A179: Techno -Funda (positional)
A180: Sr.no | B180: Date | D180: Company | E180: Rec | F180: Rec Price | G180: Stop Loss*** | H180: Call Closed At | I180: Target | J180: Remark | K180: Profit / Loss per Share | L180: Gain / Loss % | M180: Status | N180: Closed Date | O180: NSE Closed Price
A183: CLBS = Closing Basis *** | F183: Reinitiated $
A184: Dividend adjusted <> | F184: Revised stoploss #
B189: Investment Idea
A190: Sr.no | B190: Date | D190: Company | E190: Rec | F190: Rec Price | G190: Point of Review | H190: Close Rate | I190: Target | J190: Remark | K190: Profit / Loss per Share | L190: Gain / Loss % | M190: Status | N190: Closed Date
A191: 1 | B191: 2013-11-01 | D191: L&T Finance Holding | E191: Accu | F191: 82.00 | G191: - | H191: 100 | I191: 100.00 | J191: Target Achieved | K191: =H191-F191 -> 18.00 | L191: =K191/F191 -> 21.95% | M191: Successful | N191: 2016-10-14
A192: 2 | B192: 2014-06-04 | D192: Finolex Inds | E192: Buy | F192: 257.00 | G192: - | H192: 300 | I192: 300.00 | J192: Target Achieved | K192: =H192-F192 -> 43.00 | L192: 16.73% | M192: Successful | N192: 2014-07-02
A193: =1+A192 -> 3 | B193: 2014-07-08 | D193: JK Cement | E193: Buy | F193: 393.00 | G193: - | H193: 468 | I193: 468.00 | J193: Target Achieved | K193: =H193-F193 -> 75.00 | L193: 19.08% | M193: Successful | N193: 2014-08-12
A194: 4 | B194: 2014-08-06 | D194: Finolex Cables | E194: Buy | F194: 205.00 | G194: - | H194: 275 | I194: 250.00 | J194: Target Achieved | K194: 70.00 | L194: 34.15% | M194: Successful | N194: 2014-11-19
A195: 5 | B195: 2014-09-04 | D195: Exide Inds | E195: Buy | F195: 162.00 | G195: - | H195: 190 | I195: 190.00 | J195: Target Achieved | K195: 28.00 | L195: 17.28% | M195: Successful | N195: 2015-01-02
A196: 6 | B196: 2014-09-04 | D196: Deepak Nitrite | E196: Buy | F196: 75.00 | G196: - | H196: 91.5 | I196: 95-100 | J196: Profit of Rs.16.50/- | K196: 16.50 | L196: 22.00% | M196: Successful | N196: 2014-11-11
A197: 7 | B197: 2014-10-01 | D197: Mercks | E197: Buy | F197: 850.00 | G197: - | H197: 982.5 | I197: 1050.00 | J197: Profit of Rs.132.50/- | K197: 132.50 | L197: 15.59% | M197: Successful | N197: 2015-02-04
A198: 8 | B198: 2014-10-01 | D198: Grindwell Norton | E198: Buy | F198: 475.00 | G198: - | H198: 515 | I198: 600.00 | J198: Profit of Rs.40/- | K198: 40.00 | L198: 8.42% | M198: Successful | N198: 2014-10-27
A199: 9 | B199: 2014-10-01 | D199: Snowman Logistics | E199: Buy | F199: 86.00 | G199: - | H199: 99 | I199: 140.00 | J199: Profit of Rs.13.00/- | K199: 13.00 | L199: 15.12% | M199: Successful | N199: 2014-10-27
A200: 10 | B200: 2014-10-14 | D200: Birla Corp | E200: Buy | F200: 496.60 | G200: - | H200: 621 | I200: 580.00 | J200: Target Achieved | K200: 124.40 | L200: 25.05% | M200: Successful | N200: 2016-08-23
A201: 11 | B201: 2014-10-14 | D201: Ultratech Cem | E201: Buy | F201: 2481.90 | G201: - | H201: 2840 | I201: 2870.00 | J201: Profit of Rs.358.10/- | K201: 358.10 | L201: 14.43% | M201: Successful | N201: 2015-01-13
A202: =1+A199 -> 10 | B202: 2014-10-16 | D202: Sintex Inds | E202: Buy | F202: 84.50 | G202: - | H202: 93 | I202: 110.00 | J202: Profit of Rs.8.50/- | K202: 8.50 | L202: 10.06% | M202: Successful | N202: 2014-10-27
A203: =1+A202 -> 11 | B203: 2014-10-16 | D203: HSIL | E203: Buy | F203: 401.00 | G203: - | H203: 428 | I203: 450.00 | J203: Profit of Rs.27.00/- | K203: 27.00 | L203: 6.73% | M203: Successful | N203: 2015-01-16
A204: 12 | B204: 2014-10-16 | D204: Eveready Inds | E204: Buy | F204: 101.00 | G204: - | H204: 112 | I204: 120.00 | J204: Profit of Rs.11.00/- | K204: 11.00 | L204: 10.89% | M204: Successful | N204: 2014-10-27
A205: 13 | B205: 2014-11-11 | D205: Pennar Inds | E205: Buy | F205: 59.00 | G205: - | H205: 76 | I205: 76.00 | J205: Target Achieved | K205: 17.00 | L205: 28.81% | M205: Successful | N205: 2017-10-24
A206: 14 | B206: 2014-11-11 | D206: Snowman Logistics | E206: Buy | F206: 99.00 | G206: - | H206: 120 | I206: 120.00 | J206: Profit of Rs.21/- | K206: 21.00 | L206: 21.21% | M206: Successful | N206: 2014-11-17
A207: 15 | B207: 2014-11-13 | D207: Dharamsi Morarji Chem | E207: Buy | F207: 22.00 | G207: - | H207: 33.55 | I207: 32.00 | J207: Profit of Rs 11.55/- | K207: 11.55 | L207: 52.50% | M207: Successful | N207: 2015-07-03
A208: 16 | B208: 2014-12-03 | D208: Tatachem | E208: Buy | F208: 440.00 | G208: - | H208: 520 | I208: 520.00 | J208: Profit of Rs 80.00/- | K208: 80.00 | L208: 18.18% | M208: Successful | N208: 2015-07-23
A209: 17 | B209: 2014-12-03 | D209: Advanta | E209: Buy | F209: 360.00 | G209: - | H209: 427 | I209: 425.00 | J209: Profit of Rs.67.00/- | K209: 67.00 | L209: 18.61% | M209: Successful | N209: 2015-02-23
A210: 18 | B210: 2015-01-08 | D210: GDL | E210: Buy | F210: 360.00 | G210: - | H210: 455 | I210: 420.00 | J210: Profit of Rs.95.00/- | K210: 95.00 | L210: 26.39% | M210: Successful | N210: 2015-01-20
A211: 19 | B211: 2015-01-08 | D211: NRB Bearing | E211: Buy | F211: 130.00 | H211: 175.5 | I211: 165.00 | J211: Profit of Rs 45.50/- | K211: 45.50 | L211: 35.00% | M211: Successful | N211: 2017-12-19
A212: 20 | B212: 2015-02-05 | D212: GSFC | E212: Accu | F212: 98.00 | H212: 120 | I212: 120.00 | J212: Target Achieved | K212: 22.00 | L212: 22.45% | M212: Successful | N212: 2017-01-18
A213: 21 | B213: 2015-02-05 | D213: Sundrmfast | E213: Accu | F213: 196.00 | H213: 262 | I213: 255.00 | J213: Target Achieved | K213: 66.00 | L213: 33.67% | M213: Successful | N213: 2016-08-17
A214: 22 | B214: 2015-03-04 | D214: GPPL | E214: Accu | F214: 230-240 | I214: 280-285 | J214: Open
A215: 23 | B215: 2015-03-04 | D215: ORIENTCEM | E215: Accu | F215: 185.00 | H215: 224 | I215: 220-225 | J215: Target Achieved | K215: 39.00 | L215: =K215/F215 -> 21.08% | M215: Successful | N215: 2016-10-04
A216: 24 | B216: 2015-03-27 | D216: PFS | E216: Accu | F216: 49-50 | I216: 67.00 | J216: Open
A217: 25 | B217: 2015-03-30 | D217: Walchandnagar Ind Ltd | E217: Accu | F217: 183.50 | H217: 219 | I217: 218.00 | J217: Profit of Rs.35.50/- | K217: 35.50 | L217: =K217/F217 -> 19.35% | M217: Successful | N217: 2015-04-09
A218: 26 | B218: 2015-04-20 | D218: Kalpataru Power Transmission Ltd | E218: Accu | F218: =(227+237)/2 -> 232.00 | H218: 298 | I218: 298.00 | J218: Target Achieved | K218: 66.00 | L218: 28.45% | M218: Successful | N218: 2017-03-29
A219: 27 | B219: 2015-05-04 | D219: Mastek Ltd | E219: Buy | F219: 385.00 | H219: =212.5+331 -> 543.5 | I219: 510.00 | J219: Profit of Rs 158.50/- | K219: 158.50 | L219: 41.17% | M219: Successful | N219: 2015-08-19
A220: 28 | B220: 2015-05-04 | D220: Suprajit Eng | E220: Buy | F220: 115.50 | H220: 146 | I220: 142.00 | J220: Profit of Rs 30.50/- | K220: 30.50 | L220: 26.41% | M220: Successful | N220: 2015-07-17
A221: 29 | B221: 2015-05-27 | D221: TCI | E221: Buy | F221: 237.50 | H221: 279.5 | I221: 278.00 | J221: Target Achieved | K221: 42.00 | L221: 17.68% | M221: Successful | N221: 2015-08-06
A222: 30 | B222: 2015-06-19 | D222: HSIL | E222: Accu | F222: 340.00 | H222: 448 | I222: 448.00 | J222: Target Achieved | K222: 108.00 | L222: 31.76% | M222: Successful | N222: 2017-10-10
A223: 31 | B223: 2015-07-06 | D223: Capital First | E223: Accu | F223: 390.00 | H223: 460 | I223: 460.00 | J223: Target Achieved | K223: 70.00 | L223: 17.95% | M223: Successful | N223: 2016-04-18
A224: 32 | B224: 2015-07-10 | D224: Dolphin OffShore | E224: Accu | F224: 122.5 | H224: 61.00 | I224: 172.00 | J224: Loss of Rs.61.50/- | K224: -61.50 | L224: -50.20% | M224: Unsuccessful | N224: 2018-08-21
A225: 33 | B225: 2015-08-03 | D225: Allcargo logistics | E225: Accu | F225: 297.50 | H225: 350 | I225: 360.00 | J225: Profit of Rs 52.50/- | K225: 52.50 | L225: =K225/F225 -> 17.65% | M225: Successful | N225: 2015-08-16
A226: 34 | B226: 2015-08-03 | D226: Camline Fine | E226: Accu | F226: 115.50 | H226: 149 | I226: 140.00 | J226: Profit of Rs 33.50/- | K226: 33.50 | L226: 29.00% | M226: Successful | N226: 2017-01-05
A227: 35 | B227: 2015-09-04 | D227: TCI | E227: Accu | F227: 226.00 | H227: 292 | I227: 292.00 | J227: Target Achieved | K227: 66.00 | L227: 29.20% | M227: Successful | N227: 2015-10-09
A228: 36 | B228: 2015-09-07 | D228: Kalpataru Power Transmission Ltd | E228: Accu | F228: 232.50 | H228: 312.5 | I228: 310.00 | J228: Target Achieved | K228: 80.00 | L228: 34.41% | M228: Successful | N228: 2017-03-29
A229: 37 | B229: 2015-09-21 | D229: LLOYD ELECTRIC & ENG LTD | E229: Accu | F229: 196.50 | H229: 238 | I229: 238.00 | J229: Target Achieved | K229: 41.50 | L229: 21.12% | M229: Successful | N229: 2015-10-14
A230: 38 | B230: 2015-09-24 | D230: L&T Finance Holding | E230: Accu | F230: 65.00 | H230: 82 | I230: 82.00 | J230: Target Achieved | K230: 17.00 | L230: 26.15% | M230: Successful | N230: 2016-07-27
A231: 39 | B231: 2015-10-14 | D231: KEC International ltd | E231: Accu | F231: 144.00 | H231: 182.5 | I231: 181.00 | J231: Target Achieved | K231: 38.50 | L231: 26.74% | M231: Successful | N231: 2017-03-23
A232: 40 | B232: 2015-10-14 | D232: Gruh Finance | E232: Accu | F232: 264.00 | H232: 311 | I232: 311.00 | J232: Target Achieved | K232: 47.00 | L232: 17.80% | M232: Successful | N232: 2016-08-22
A233: 41 | B233: 2015-11-10 | D233: Pidilitind | E233: Buy | F233: 549.50 | H233: 630 | I233: 630.00 | J233: Target Achieved | K233: 80.50 | L233: 14.65% | M233: Successful | N233: 2016-02-19
A234: 42 | B234: 2015-12-04 | D234: Zensar Technology | E234: Accu | F234: 1027.50 | H234: 1315 | I234: 1250.00 | J234: Target Achieved | K234: =H234-F234 -> 287.50 | L234: 27.98% | M234: Successful | N234: 2018-05-24
A235: 43 | B235: 2015-12-29 | D235: Vinati Organics Ltd | E235: Accu | F235: 465.00 | H235: 540 | I235: 540.00 | J235: Target Achieved | K235: 75.00 | L235: =K235/F235 -> 16.13% | M235: Successful | N235: 2016-06-09
A236: 44 | B236: 2016-01-11 | D236: GSFC | E236: Buy | F236: 81.00 | H236: 110 | I236: 110.00 | J236: Target Achieved | K236: 29.00 | L236: 35.80% | M236: Successful | N236: 2017-01-10
A237: 45 | B237: 2016-01-13 | D237: SSWL | E237: Buy | F237: 417.50 | H237: 547 | I237: 535.00 | J237: Target Achieved | K237: 129.50 | L237: 31.02% | M237: Successful | N237: 2016-07-27
A238: 46 | B238: 2016-02-08 | D238: Persistent System Ltd | E238: Accu | F238: 650.00 | H238: 800 | I238: 800.00 | J238: Target Achieved | K238: 150.00 | L238: 23.08% | M238: Successful | N238: 2018-02-23
A239: 47 | B239: 2016-03-04 | D239: UPL | E239: Accu | F239: 437.50 | H239: 504.5 | I239: 522.00 | J239: Profit of Rs.67/- | K239: 67.00 | L239: 15.31% | M239: Successful | N239: 2016-04-20
A240: 48 | B240: 2016-03-09 | D240: Ashoka Buildcon Ltd | E240: Accu | F240: 189.50 | H240: 218 | I240: 218.00 | J240: Target Achieved | K240: 28.50 | L240: 15.04% | M240: Successful | N240: 2017-10-26
A241: 49 | B241: 2016-04-11 | D241: PTC INDIA FIN SERV LTD | E241: Accu | F241: 36-37 | I241: 60.00 | J241: Open
A242: 50 | B242: 2016-04-12 | D242: CAMLINFINE $ | E242: Accu | F242: 93.00 | H242: 149 | I242: 140.00 | J242: Profit of Rs 56/- | K242: 56.00 | L242: =K242/F242 -> 60.22% | M242: Successful | N242: 2017-01-05
A243: 51 | B243: 2016-04-12 | D243: Greaves Cotton Ltd. | E243: Accu | F243: 130.00 | H243: 150 | I243: 150-155 | J243: Target Achieved | K243: 20.00 | L243: 15.38% | M243: Successful | N243: 2016-07-13
A244: 52 | B244: 2016-04-13 | D244: DHFL | E244: Accu | F244: 196.00 | H244: 299 | I244: 299.00 | J244: Target Achieved | K244: 103.00 | L244: 52.55% | M244: Successful | N244: 2016-09-07
A245: 53 | B245: 2016-04-13 | D245: Magma | E245: Accu | F245: 88.00 | H245: 103 | I245: 103.00 | J245: Target Achieved | K245: 15.00 | L245: 17.05% | M245: Successful | N245: 2016-06-09
A246: 54 | B246: 2016-05-02 | D246: KEC International ltd $ | E246: Accu | F246: 127.50 | H246: 148 | I246: 148-150 | J246: Target Achieved | K246: 20.50 | L246: 16.08% | M246: Successful | N246: 2016-07-13
A247: 55 | B247: 2016-05-03 | D247: Mindtree | E247: Accu | F247: 675.00 | H247: 815 | I247: 790-800 | J247: Target Achieved | K247: 140.00 | L247: 20.74% | M247: Successful | N247: 2018-02-23
A248: 56 | B248: 2016-06-01 | D248: Atulauto | E248: Accu | F248: 495-505 | I248: 565-570 | J248: Open
A249: 57 | B249: 2016-06-06 | D249: TRITURBINE | E249: Accu | F249: 110.00 | H249: 126.5 | I249: 125.00 | J249: Profit of Rs.16.50/- | K249: 16.50 | L249: =K249/F249 -> 15.00% | M249: Successful | N249: 2016-07-01
A250: 58 | B250: 2016-06-17 | D250: Pennar Industries Ltd | E250: Accu | F250: 44.00 | H250: 69.5 | I250: 69.50 | J250: Profit of Rs.25.50/- | K250: 25.50 | L250: =K250/F250 -> 57.95% | M250: Successful | N250: 2017-08-30
A251: 59 | B251: 2016-06-28 | D251: EVEREADY INDS. IND. LTD. | E251: Accu | F251: 262.50 | H251: 340 | I251: 333.00 | J251: Profit of Rs.77.50/- | K251: 77.50 | L251: =K251/F251 -> 29.52% | M251: Successful | N251: 2017-10-09
A252: 60 | B252: 2016-06-28 | D252: FIEM INDUSTRIES LIMITED | E252: Accu | F252: 840.00 | H252: 1230 | I252: 1230.00 | J252: Target Achieved | K252: 390.00 | L252: =K252/F252 -> 46.43% | M252: Successful | N252: 2016-10-06
A253: 61 | B253: 2016-07-05 | D253: Bajaj Corp Ltd | E253: Accu | F253: 395 | H253: 468.50 | I253: 510.00 | J253: Part profit of Rs.73.50/- | K253: 73.50 | L253: =K253/F253 -> 19% | M253: Successful | N253: 2017-08-30
A254: 62 | B254: 2016-08-02 | D254: GPPL $ | E254: Buy | F254: 167-172 | I254: 198-200 | J254: Open
A255: 63 | B255: 2016-08-04 | D255: WONDERLA HOLIDAYS LTD | E255: Accu | F255: 395-405 | I255: 475.00 | J255: Open
A256: 64 | B256: 2016-08-11 | D256: CAMLINFINE | E256: Accu | F256: 86.50 | H256: 130 | I256: 130.00 | J256: Profit of Rs.43.50/- | K256: =H256-F256 -> 43.50 | L256: =K256/F256 -> 50.29% | M256: Successful | N256: 2017-12-22
A257: 65 | B257: 2016-08-18 | D257: GRANULES | E257: Accu | F257: 133.5 | H257: 126.50 | I257: 178.00 | J257: Exit | K257: -7.00 | L257: -5.24% | M257: Unsuccessful | N257: 2016-09-02
A258: 66 | B258: 2016-08-31 | D258: VA TECH WABAG | E258: Accu | F258: 560.00 | H258: 725 | I258: 725.00 | J258: Target Achieved | K258: 165.00 | L258: 29.46% | M258: Successful | N258: 2016-03-27
A259: 67 | B259: 2016-09-01 | D259: SKIPPER LIMITED | E259: Accu | F259: 160.50 | H259: 210 | I259: 210.00 | J259: Target Achieved | K259: 49.50 | L259: 30.84% | M259: Successful | N259: 2017-05-16
A260: 68 | B260: 2016-10-03 | D260: IFB Industries | E260: Accu | F260: 430.00 | H260: 596 | I260: 575.00 | J260: Profit of Rs.166/- | K260: 166.00 | L260: 38.60% | M260: Successful | N260: 2017-02-03
A261: 69 | B261: 2016-10-14 | D261: ASIANTILES | E261: Accu | F261: 280.00 | H261: 345 | I261: 345.00 | J261: Target Achieved | K261: 65.00 | L261: 23.21% | M261: Successful | N261: 2017-03-20
A262: 70 | B262: 2016-10-14 | D262: DEEPIND | E262: Accu | F262: 245.00 | H262: 325.5 | I262: 330.00 | J262: Profit of Rs.80.5/- | K262: 80.50 | L262: 32.86% | M262: Successful | N262: 2017-02-03
A263: 71 | B263: 2016-10-17 | D263: DCBBANK | E263: Accu | F263: 125.00 | H263: 160 | I263: 160.00 | J263: Target Achieved | K263: 35.00 | L263: 28.00% | M263: Successful | N263: 2017-03-09
A264: 72 | B264: 2016-10-17 | D264: ORIENTREF | E264: Accu | F264: 114.00 | H264: 145 | I264: 145.00 | J264: Target Achieved | K264: 31.00 | L264: =K264/F264 -> 27.19% | M264: Successful | N264: 2017-05-04
A265: 73 | B265: 2016-10-17 | D265: GANECOS | E265: Accu | F265: 212.00 | H265: 280 | I265: 276.00 | J265: Profit of Rs.68/- | K265: 68.00 | L265: =K265/F265 -> 32.08% | M265: Successful | N265: 2017-05-03
A266: 74 | B266: 2016-11-04 | D266: NBCC | E266: Accu | F266: 155.00 | H266: 210 | I266: 210.00 | J266: Profit of Rs.55/- | K266: 55.00 | L266: =K266/F266 -> 35.48% | M266: Successful | N266: 2017-07-28
A267: 75 | B267: 2016-12-06 | D267: PRECAM | E267: Accu | F267: 150.5 | H267: 72.50 | I267: 174.00 | J267: Loss of Rs.78/- | K267: -78.00 | L267: =K267/F267 -> -51.83% | M267: Unsuccessful | N267: 2018-08-21
A268: 76 | B268: 2016-12-08 | D268: INFRATEL | E268: Accu | F268: 380.00 | H268: 478 | I268: 468.00 | J268: Target Achieved | K268: 98.00 | L268: =K268/F268 -> 25.79% | M268: Successful | N268: 2017-10-17
A269: 77 | B269: 2016-12-30 | D269: GODREJPROP | E269: Accu | F269: 305.00 | H269: 375 | I269: 375.00 | J269: Target Achieved | K269: 70.00 | L269: 22.95% | M269: Successful | N269: 2017-02-02
A270: 78 | B270: 2017-01-04 | D270: DEEPAKNTR | E270: Accu | F270: 99.50 | H270: 158 | I270: 158.00 | J270: Target Achieved | K270: 58.50 | L270: 58.79% | M270: Successful | N270: 2017-06-12
A271: 79 | B271: 2017-02-20 | D271: SUBROS | E271: Accu | F271: 202.50 | H271: 234 | I271: 234.00 | J271: Target Achieved | K271: 31.50 | L271: 15.56% | M271: Successful | N271: 2017-04-11
A272: 80 | B272: 2017-02-20 | D272: RECLTD | E272: Accu | F272: 140.50 | H272: 220 | I272: 220.00 | J272: Target Achieved | K272: 79.50 | L272: 56.58% | M272: Successful | N272: 2017-05-09
A273: 81 | B273: 2017-03-24 | D273: VRLLOG | E273: Accu | F273: 300.50 | H273: 417.5 | I273: 420.00 | J273: Profit of Rs.117/- | K273: 117.00 | L273: 38.94% | M273: Successful | N273: 2017-12-01
A274: 82 | B274: 2017-03-24 | D274: FIEMIND | E274: Accu | F274: 850.00 | H274: 1042.5 | I274: 1023.00 | J274: Profit of Rs 192.50/- | K274: 192.50 | L274: 22.65% | M274: Successful | N274: 2017-04-05
A275: 83 | B275: 2017-04-05 | D275: RATNAMANI | E275: Accu | F275: 785.00 | H275: 930 | I275: 920.00 | J275: Profit of Rs.145/- | K275: 145.00 | L275: 18.47% | M275: Successful | N275: 2017-08-29
A276: 84 | B276: 2017-04-06 | D276: ZEEMEDIA | E276: Accu | F276: 39-41 | I276: 60.00 | J276: Open
A277: 85 | B277: 2017-04-12 | D277: DABUR | E277: Accu | F277: 289.50 | H277: 354 | I277: 360.00 | J277: Profit of Rs.64.5/- | K277: 64.50 | L277: =K277/F277 -> 22.28% | M277: Successful | N277: 2017-11-01
A278: 86 | B278: 2017-04-20 | D278: KPRMILL | E278: Accu | F278: 700.00 | H278: 840 | I278: 840.00 | J278: Profit of Rs.140/- | K278: 140.00 | L278: =K278/F278 -> 20.00% | M278: Successful | N278: 2017-06-07
... 49 more rows

Sheet Sheet2 (hidden)
A1: SYMBOL | B1: SERIES | C1: OPEN | D1: HIGH | E1: LOW | F1: CLOSE | G1: LAST | H1: PREVCLOSE | I1: TOTTRDQTY | J1: TOTTRDVAL | K1: TIMESTAMP | L1: TOTALTRADES | M1: ISIN | N1: ISIN
A2: 20MICRONS | B2: EQ | C2: 40.2 | D2: 42.4 | E2: 40.15 | F2: 41.55 | G2: 41.45 | H2: 39.95 | I2: 34134 | J2: 1418812.65 | K2: 2018-10-12 | L2: 399 | M2: INE144J01027
A3: 21STCENMGM | B3: EQ | C3: 26.15 | D3: 26.5 | E3: 26 | F3: 26.3 | G3: 26.3 | H3: 26 | I3: 4062 | J3: 106798.6 | K3: 2018-10-12 | L3: 17 | M3: INE253B01015
A4: 3IINFOTECH | B4: EQ | C4: 3.45 | D4: 3.85 | E4: 3.25 | F4: 3.65 | G4: 3.7 | H4: 3.35 | I4: 9685661 | J4: 34414809.85 | K4: 2018-10-12 | L4: 2980 | M4: INE748C01020
A5: 3MINDIA | B5: EQ | C5: 22000 | D5: 22720 | E5: 21994.8 | F5: 22557.65 | G5: 22600 | H5: 21952.2 | I5: 4226 | J5: 95128979.85 | K5: 2018-10-12 | L5: 1010 | M5: INE470A01017
A6: 3PLAND | B6: BE | C6: 11.45 | D6: 11.45 | E6: 11.45 | F6: 11.45 | G6: 11.45 | H6: 11.45 | I6: 587 | J6: 6721.15 | K6: 2018-10-12 | L6: 2 | M6: INE105C01023
A7: 5PAISA | B7: EQ | C7: 199.4 | D7: 204 | E7: 195 | F7: 202.9 | G7: 203.3 | H7: 195.5 | I7: 9689 | J7: 1943577.4 | K7: 2018-10-12 | L7: 335 | M7: INE618L01018
A8: 63MOONS | B8: EQ | C8: 64.9 | D8: 69.65 | E8: 64.9 | F8: 66.6 | G8: 66.5 | H8: 64.45 | I8: 154124 | J8: 10399807.4 | K8: 2018-10-12 | L8: 2251 | M8: INE111B01023
A9: 8KMILES | B9: BE | C9: 120.8 | D9: 133.5 | E9: 120.8 | F9: 133.1 | G9: 133.4 | H9: 127.15 | I9: 775234 | J9: 99860978.05 | K9: 2018-10-12 | L9: 5103 | M9: INE650K01021
A10: A2ZINFRA | B10: EQ | C10: 11.1 | D10: 11.1 | E10: 10.95 | F10: 11.1 | G10: 11.1 | H10: 10.6 | I10: 96910 | J10: 1075282.2 | K10: 2018-10-12 | L10: 181 | M10: INE619I01012
A11: AARTIDRUGS | B11: EQ | C11: 572 | D11: 592.15 | E11: 569.85 | F11: 572.5 | G11: 573 | H11: 568.85 | I11: 13513 | J11: 7789452.5 | K11: 2018-10-12 | L11: 834 | M11: INE767A01016
A12: AARTIIND | B12: EQ | C12: 1284.5 | D12: 1325 | E12: 1265.05 | F12: 1294.4 | G12: 1299.9 | H12: 1283.4 | I12: 22066 | J12: 28620884.25 | K12: 2018-10-12 | L12: 2473 | M12: INE769A01020
A13: AARVEEDEN | B13: EQ | C13: 24.4 | D13: 24.4 | E13: 23.25 | F13: 23.95 | G13: 24.25 | H13: 23 | I13: 9681 | J13: 233070.55 | K13: 2018-10-12 | L13: 63 | M13: INE273D01019
A14: AAVAS | B14: EQ | C14: 760 | D14: 785.2 | E14: 760 | F14: 781.4 | G14: 780 | H14: 758.3 | I14: 49674 | J14: 38769283.15 | K14: 2018-10-12 | L14: 2097 | M14: INE216P01012
A15: ABAN | B15: EQ | C15: 78.65 | D15: 88 | E15: 78.65 | F15: 83.95 | G15: 83.85 | H15: 78.1 | I15: 1327474 | J15: 112565260.8 | K15: 2018-10-12 | L15: 12783 | M15: INE421A01028
A16: ABB | B16: EQ | C16: 1295.55 | D16: 1329 | E16: 1295.55 | F16: 1308.75 | G16: 1306 | H16: 1290 | I16: 237468 | J16: 311500586.2 | K16: 2018-10-12 | L16: 4944 | M16: INE117A01022
A17: ABBOTINDIA | B17: EQ | C17: 7440 | D17: 7570 | E17: 7280.3 | F17: 7485.2 | G17: 7485 | H17: 7231.7 | I17: 7067 | J17: 52721741.3 | K17: 2018-10-12 | L17: 2003 | M17: INE358A01014
A18: ABCAPITAL | B18: EQ | C18: 107.25 | D18: 109.7 | E18: 107.05 | F18: 107.8 | G18: 107.65 | H18: 106.15 | I18: 1488070 | J18: 161243703.3 | K18: 2018-10-12 | L18: 11663 | M18: INE674K01013
A19: ABFRL | B19: EQ | C19: 176.35 | D19: 192.15 | E19: 176.35 | F19: 185.65 | G19: 186.35 | H19: 175.05 | I19: 1723121 | J19: 318638258.9 | K19: 2018-10-12 | L19: 25573 | M19: INE647O01011
A20: ACC | B20: EQ | C20: 1451.85 | D20: 1509.75 | E20: 1447.3 | F20: 1503.2 | G20: 1509.75 | H20: 1434.8 | I20: 661327 | J20: 980260961.5 | K20: 2018-10-12 | L20: 43920 | M20: INE012A01025
A21: ACCELYA | B21: EQ | C21: 982.8 | D21: 1016.55 | E21: 974.95 | F21: 976.3 | G21: 975 | H21: 982.8 | I21: 5330 | J21: 5234804.65 | K21: 2018-10-12 | L21: 601 | M21: INE793A01012
A22: ACE | B22: EQ | C22: 90.8 | D22: 91.9 | E22: 90.65 | F22: 91.9 | G22: 91.9 | H22: 87.55 | I22: 82080 | J22: 7525475.95 | K22: 2018-10-12 | L22: 355 | M22: INE731H01025
A23: ADANIENT | B23: EQ | C23: 140.1 | D23: 145.4 | E23: 140.1 | F23: 143.85 | G23: 143.05 | H23: 138.2 | I23: 6338784 | J23: 904613374.9 | K23: 2018-10-12 | L23: 32345 | M23: INE423A01024
A24: ADANIGREEN | B24: EQ | C24: 35.1 | D24: 35.1 | E24: 35.1 | F24: 35.1 | G24: 35.1 | H24: 33.45 | I24: 170930 | J24: 5999643 | K24: 2018-10-12 | L24: 331 | M24: INE364U01010
A25: ADANIPORTS | B25: EQ | C25: 317 | D25: 327.85 | E25: 317 | F25: 323.15 | G25: 323.25 | H25: 313.5 | I25: 2428109 | J25: 786262308.5 | K25: 2018-10-12 | L25: 50561 | M25: INE742F01042
A26: ADANIPOWER | B26: EQ | C26: 30.7 | D26: 34.15 | E26: 30.4 | F26: 32.55 | G26: 32.65 | H26: 30 | I26: 94525849 | J26: 3109649221 | K26: 2018-10-12 | L26: 110460 | M26: INE814H01011
A27: ADANITRANS | B27: BE | C27: 155.8 | D27: 156.3 | E27: 150 | F27: 156.3 | G27: 156.3 | H27: 148.9 | I27: 28648 | J27: 4461301.1 | K27: 2018-10-12 | L27: 294 | M27: INE931S01010
A28: ADFFOODS | B28: EQ | C28: 199.45 | D28: 209.8 | E28: 198.6 | F28: 207.15 | G28: 205.5 | H28: 198 | I28: 32225 | J28: 6590012.6 | K28: 2018-10-12 | L28: 1145 | M28: INE982B01019
A29: ADHUNIK | B29: BE | C29: 2.95 | D29: 2.95 | E29: 2.75 | F29: 2.8 | G29: 2.8 | H29: 2.85 | I29: 28670 | J29: 81008.1 | K29: 2018-10-12 | L29: 39 | M29: INE400H01019
A30: ADHUNIKIND | B30: EQ | C30: 55.05 | D30: 58.8 | E30: 51.65 | F30: 57 | G30: 58.7 | H30: 56.65 | I30: 3656 | J30: 207063.3 | K30: 2018-10-12 | L30: 81 | M30: INE452L01012
A31: ADLABS | B31: EQ | C31: 14.7 | D31: 15.6 | E31: 14.4 | F31: 15.5 | G31: 15.55 | H31: 14.2 | I31: 202960 | J31: 3086080.15 | K31: 2018-10-12 | L31: 1614 | M31: INE172N01012
A32: ADORWELD | B32: EQ | C32: 342.15 | D32: 355 | E32: 338 | F32: 343.5 | G32: 344 | H32: 338.3 | I32: 22328 | J32: 7697656 | K32: 2018-10-12 | L32: 978 | M32: INE045A01017
A33: ADROITINFO | B33: BE | C33: 24.15 | D33: 24.15 | E33: 22.15 | F33: 22.95 | G33: 22.95 | H33: 23 | I33: 1049 | J33: 23657.1 | K33: 2018-10-12 | L33: 11 | M33: INE737B01033
A34: ADSL | B34: EQ | C34: 15 | D34: 15 | E34: 13.6 | F34: 14.15 | G34: 14.05 | H34: 14.2 | I34: 14471 | J34: 208616.65 | K34: 2018-10-12 | L34: 98 | M34: INE102I01027
A35: ADVANIHOTR | B35: EQ | C35: 49.2 | D35: 49.8 | E35: 48.3 | F35: 48.7 | G35: 49.2 | H35: 48.15 | I35: 2559 | J35: 125233.05 | K35: 2018-10-12 | L35: 41 | M35: INE199C01026
A36: ADVENZYMES | B36: EQ | C36: 180 | D36: 196 | E36: 177.95 | F36: 192.15 | G36: 192 | H36: 177.95 | I36: 6264569 | J36: 1190463850 | K36: 2018-10-12 | L36: 8838 | M36: INE837H01020
A37: AEGISCHEM | B37: EQ | C37: 184 | D37: 189.5 | E37: 181.8 | F37: 187.5 | G37: 187.5 | H37: 180.55 | I37: 118462 | J37: 21840319.2 | K37: 2018-10-12 | L37: 9961 | M37: INE208C01025
A38: AGARIND | B38: EQ | C38: 192.9 | D38: 199.95 | E38: 190 | F38: 198.4 | G38: 195 | H38: 183.2 | I38: 2608 | J38: 516578.9 | K38: 2018-10-12 | L38: 83 | M38: INE204E01012
A39: AGCNET | B39: EQ | C39: 63.95 | D39: 64 | E39: 59.1 | F39: 60 | G39: 59.8 | H39: 61.5 | I39: 36716 | J39: 2214698.1 | K39: 2018-10-12 | L39: 323 | M39: INE676A01019
A40: AGLSL | B40: EQ | C40: 74 | D40: 75.05 | E40: 68.5 | F40: 75 | G40: 75 | H40: 69.9 | I40: 9522 | J40: 706324.55 | K40: 2018-10-12 | L40: 42 | M40: INE517U01013
A41: AGRITECH | B41: EQ | C41: 62.95 | D41: 62.95 | E41: 59 | F41: 60.3 | G41: 60 | H41: 57.9 | I41: 8003 | J41: 485950 | K41: 2018-10-12 | L41: 209 | M41: INE449G01018
A42: AHLEAST | B42: EQ | C42: 237.05 | D42: 249 | E42: 237.05 | F42: 240.05 | G42: 240.05 | H42: 236.3 | I42: 550 | J42: 134171.55 | K42: 2018-10-12 | L42: 25 | M42: INE926K01017
A43: AHLUCONT | B43: EQ | C43: 287.55 | D43: 292.7 | E43: 285 | F43: 289.05 | G43: 288.1 | H43: 288.15 | I43: 1526 | J43: 442194.05 | K43: 2018-10-12 | L43: 121 | M43: INE758C01029
A44: AHLWEST | B44: EQ | C44: 280 | D44: 281.95 | E44: 280 | F44: 280.2 | G44: 281.95 | H44: 272.45 | I44: 17 | J44: 4763.9 | K44: 2018-10-12 | L44: 2 | M44: INE915K01010
A45: AIAENG | B45: EQ | C45: 1509.7 | D45: 1534.95 | E45: 1491.75 | F45: 1518.4 | G45: 1516 | H45: 1481.9 | I45: 100833 | J45: 151846448.8 | K45: 2018-10-12 | L45: 3995 | M45: INE212H01026
A46: AIFL | B46: EQ | C46: 154.35 | D46: 154.35 | E46: 154.35 | F46: 154.35 | G46: 154.35 | H46: 162.45 | I46: 1107 | J46: 170865.45 | K46: 2018-10-12 | L46: 45 | M46: INE428O01016
A47: AIONJSW | B47: BE | C47: 39.05 | D47: 39.05 | E47: 39.05 | F47: 39.05 | G47: 39.05 | H47: 41.1 | I47: 21454 | J47: 837778.7 | K47: 2018-10-12 | L47: 56 | M47: INE743C01021
A48: AJANTPHARM | B48: EQ | C48: 1016.45 | D48: 1044.2 | E48: 1009 | F48: 1024.6 | G48: 1022 | H48: 1008.9 | I48: 240575 | J48: 246491142.1 | K48: 2018-10-12 | L48: 8282 | M48: INE031B01049
A49: AJMERA | B49: EQ | C49: 147.95 | D49: 154.75 | E49: 147.95 | F49: 152.65 | G49: 152.4 | H49: 146.3 | I49: 34499 | J49: 5271961.3 | K49: 2018-10-12 | L49: 808 | M49: INE298G01027
A50: AKSHARCHEM | B50: EQ | C50: 464 | D50: 484 | E50: 428.45 | F50: 468.5 | G50: 484 | H50: 439.75 | I50: 5670 | J50: 2602269.3 | K50: 2018-10-12 | L50: 232 | M50: INE542B01011
A51: AKSHOPTFBR | B51: EQ | C51: 25.25 | D51: 26 | E51: 25.1 | F51: 25.35 | G51: 25.25 | H51: 24.5 | I51: 984792 | J51: 25087470.5 | K51: 2018-10-12 | L51: 2739 | M51: INE523B01011
A52: AKZOINDIA | B52: EQ | C52: 1610 | D52: 1620 | E52: 1585 | F52: 1610.3 | G52: 1610.1 | H52: 1589.4 | I52: 13615 | J52: 21914648.7 | K52: 2018-10-12 | L52: 563 | M52: INE133A01011
A53: ALANKIT | B53: EQ | C53: 19.35 | D53: 20.6 | E53: 19.35 | F53: 20.15 | G53: 20.25 | H53: 19.15 | I53: 809022 | J53: 16363082.65 | K53: 2018-10-12 | L53: 1437 | M53: INE914E01040
A54: ALBERTDAVD | B54: EQ | C54: 548 | D54: 559 | E54: 545.55 | F54: 559 | G54: 559 | H54: 532.4 | I54: 6463 | J54: 3601229.3 | K54: 2018-10-12 | L54: 227 | M54: INE155C01010
A55: ALBK | B55: EQ | C55: 35.45 | D55: 36.8 | E55: 35.45 | F55: 36.35 | G55: 36.15 | H55: 35.4 | I55: 2513089 | J55: 90971513.25 | K55: 2018-10-12 | L55: 5643 | M55: INE428A01015
A56: ALCHEM | B56: BE | C56: 4.35 | D56: 4.35 | E56: 4.15 | F56: 4.2 | G56: 4.15 | H56: 4.15 | I56: 5736 | J56: 24424.6 | K56: 2018-10-12 | L56: 33 | M56: INE964B01033
A57: ALEMBICLTD | B57: EQ | C57: 40.75 | D57: 42.25 | E57: 40.05 | F57: 41.75 | G57: 41.75 | H57: 40.3 | I57: 278406 | J57: 11567500.1 | K57: 2018-10-12 | L57: 1686 | M57: INE426A01027
A58: ALICON | B58: EQ | C58: 599 | D58: 624 | E58: 595.05 | F58: 620.8 | G58: 620 | H58: 585.05 | I58: 2215 | J58: 1354821.45 | K58: 2018-10-12 | L58: 211 | M58: INE062D01024
A59: ALKALI | B59: EQ | C59: 56.2 | D59: 58.6 | E59: 56.1 | F59: 56.75 | G59: 56.1 | H59: 57.05 | I59: 3519 | J59: 201666.55 | K59: 2018-10-12 | L59: 78 | M59: INE773I01017
A60: ALKEM | B60: EQ | C60: 1974.7 | D60: 1976.95 | E60: 1951 | F60: 1966.4 | G60: 1951 | H60: 1950.15 | I60: 12031 | J60: 23698363.75 | K60: 2018-10-12 | L60: 1143 | M60: INE540L01014
A61: ALKYLAMINE | B61: EQ | C61: 595 | D61: 603.9 | E61: 593 | F61: 594.2 | G61: 595 | H61: 584.5 | I61: 1311 | J61: 783114.05 | K61: 2018-10-12 | L61: 78 | M61: INE150B01021
A62: ALLCARGO | B62: EQ | C62: 100 | D62: 102.9 | E62: 97.85 | F62: 98.75 | G62: 98.8 | H62: 98.65 | I62: 553255 | J62: 55458657 | K62: 2018-10-12 | L62: 3205 | M62: INE418H01029
A63: ALLSEC | B63: EQ | C63: 251.95 | D63: 263.7 | E63: 242 | F63: 254.1 | G63: 256.95 | H63: 249.2 | I63: 6932 | J63: 1776218.4 | K63: 2018-10-12 | L63: 513 | M63: INE835G01018
A64: ALMONDZ | B64: BE | C64: 27.8 | D64: 28.95 | E64: 27.8 | F64: 28.95 | G64: 28.95 | H64: 27.8 | I64: 50 | J64: 1424.5 | K64: 2018-10-12 | L64: 2 | M64: INE326B01027
A65: ALOKTEXT | B65: BE | C65: 3.4 | D65: 3.6 | E65: 3.3 | F65: 3.55 | G65: 3.5 | H65: 3.45 | I65: 2472957 | J65: 8501621.5 | K65: 2018-10-12 | L65: 1515 | M65: INE270A01011
A66: ALPA | B66: EQ | C66: 24 | D66: 25.5 | E66: 24 | F66: 24.85 | G66: 24.95 | H66: 24.05 | I66: 12084 | J66: 302140.5 | K66: 2018-10-12 | L66: 134 | M66: INE385I01010
A67: ALPHAGEO | B67: EQ | C67: 480.3 | D67: 524.9 | E67: 477.05 | F67: 482.6 | G67: 485 | H67: 473.7 | I67: 26163 | J67: 13034009.75 | K67: 2018-10-12 | L67: 2137 | M67: INE137C01018
A68: ALPSINDUS | B68: BE | C68: 2.6 | D68: 2.7 | E68: 2.5 | F68: 2.5 | G68: 2.5 | H68: 2.6 | I68: 8864 | J68: 22925.35 | K68: 2018-10-12 | L68: 24 | M68: INE093B01015
A69: AMARAJABAT | B69: EQ | C69: 726.8 | D69: 741 | E69: 725.05 | F69: 735.85 | G69: 734.6 | H69: 719.45 | I69: 565933 | J69: 415738189.2 | K69: 2018-10-12 | L69: 18532 | M69: INE885A01032
A70: AMBER | B70: EQ | C70: 889 | D70: 889 | E70: 869.25 | F70: 884.35 | G70: 887 | H70: 868.35 | I70: 4165 | J70: 3672718.2 | K70: 2018-10-12 | L70: 432 | M70: INE371P01015
A71: AMBIKCO | B71: EQ | C71: 1142 | D71: 1161.95 | E71: 1140.05 | F71: 1152.65 | G71: 1154 | H71: 1138 | I71: 1184 | J71: 1363190.45 | K71: 2018-10-12 | L71: 129 | M71: INE540G01014
A72: AMBUJACEM | B72: EQ | C72: 210 | D72: 220.8 | E72: 208.9 | F72: 219.6 | G72: 218.2 | H72: 207.85 | I72: 5695694 | J72: 1230602580 | K72: 2018-10-12 | L72: 82088 | M72: INE079A01024
A73: AMDIND | B73: EQ | C73: 19 | D73: 20.75 | E73: 18.75 | F73: 19.6 | G73: 19.4 | H73: 19.9 | I73: 6554 | J73: 128753.1 | K73: 2018-10-12 | L73: 32 | M73: INE005I01014
A74: AMJLAND | B74: EQ | C74: 22 | D74: 22.5 | E74: 20.8 | F74: 21.9 | G74: 21.9 | H74: 21.65 | I74: 9105 | J74: 198614.1 | K74: 2018-10-12 | L74: 88 | M74: INE606A01024
A75: AMRUTANJAN | B75: EQ | C75: 254.95 | D75: 257 | E75: 250 | F75: 251.55 | G75: 251.5 | H75: 246.6 | I75: 12821 | J75: 3241591.95 | K75: 2018-10-12 | L75: 574 | M75: INE098F01031
A76: ANANTRAJ | B76: EQ | C76: 37.15 | D76: 38 | E76: 36.9 | F76: 37.8 | G76: 37.7 | H76: 36.25 | I76: 420684 | J76: 15803809.15 | K76: 2018-10-12 | L76: 3065 | M76: INE242C01024
A77: ANDHRABANK | B77: EQ | C77: 25.85 | D77: 26.65 | E77: 25.85 | F77: 26.15 | G77: 26 | H77: 25.85 | I77: 1273216 | J77: 33487890.9 | K77: 2018-10-12 | L77: 2800 | M77: INE434A01013
A78: ANDHRACEMT | B78: EQ | C78: 6.05 | D78: 6.35 | E78: 5.9 | F78: 6.25 | G78: 6.25 | H78: 6 | I78: 68576 | J78: 424503 | K78: 2018-10-12 | L78: 155 | M78: INE666E01012
A79: ANDHRSUGAR | B79: EQ | C79: 310 | D79: 324.7 | E79: 309.95 | F79: 317.15 | G79: 317.2 | H79: 308.95 | I79: 118449 | J79: 37837376.2 | K79: 2018-10-12 | L79: 3204 | M79: INE715B01013
A80: ANGIND | B80: BE | C80: 2 | D80: 2 | E80: 1.9 | F80: 1.9 | G80: 1.9 | H80: 2 | I80: 5214 | J80: 9907.8 | K80: 2018-10-12 | L80: 13 | M80: INE017D01010
A81: ANIKINDS | B81: EQ | C81: 25.3 | D81: 27 | E81: 25.3 | F81: 26.6 | G81: 26.55 | H81: 25.95 | I81: 1455 | J81: 38106.95 | K81: 2018-10-12 | L81: 23 | M81: INE087B01017
A82: ANKITMETAL | B82: BE | C82: 0.5 | D82: 0.55 | E82: 0.5 | F82: 0.5 | G82: 0.5 | H82: 0.5 | I82: 25175 | J82: 12592.5 | K82: 2018-10-12 | L82: 11 | M82: INE106I01010
A83: ANSALAPI | B83: EQ | C83: 11.2 | D83: 11.7 | E83: 10.7 | F83: 11.2 | G83: 11.1 | H83: 10.75 | I83: 22602 | J83: 254183.9 | K83: 2018-10-12 | L83: 107 | M83: INE436A01026
A84: ANSALHSG | B84: EQ | C84: 9.8 | D84: 10.35 | E84: 9.8 | F84: 10.1 | G84: 10.1 | H84: 9.65 | I84: 43883 | J84: 444791.1 | K84: 2018-10-12 | L84: 189 | M84: INE880B01015
A85: ANTGRAPHIC | B85: BE | C85: 0.55 | D85: 0.55 | E85: 0.55 | F85: 0.55 | G85: 0.55 | H85: 0.55 | I85: 695 | J85: 382.25 | K85: 2018-10-12 | L85: 6 | M85: INE414B01021
A86: APARINDS | B86: EQ | C86: 582 | D86: 590.05 | E86: 563.55 | F86: 571.35 | G86: 571.25 | H86: 577.9 | I86: 13191 | J86: 7617313.05 | K86: 2018-10-12 | L86: 758 | M86: INE372A01015
A87: APCL | B87: EQ | C87: 115.7 | D87: 115.7 | E87: 112.7 | F87: 114.05 | G87: 114.75 | H87: 112.4 | I87: 786 | J87: 89463.3 | K87: 2018-10-12 | L87: 40 | M87: INE071F01012
A88: APCOTEXIND | B88: EQ | C88: 543.7 | D88: 548.2 | E88: 528.8 | F88: 539.2 | G88: 540 | H88: 520.65 | I88: 6022 | J88: 3244039.85 | K88: 2018-10-12 | L88: 213 | M88: INE116A01024
A89: APEX | B89: EQ | C89: 371.8 | D89: 377.95 | E89: 366 | F89: 369.85 | G89: 370 | H89: 366.35 | I89: 83297 | J89: 31017391.15 | K89: 2018-10-12 | L89: 2229 | M89: INE346W01013
A90: APLAPOLLO | B90: EQ | C90: 1210.5 | D90: 1304.05 | E90: 1210.5 | F90: 1250.05 | G90: 1250 | H90: 1200.85 | I90: 116267 | J90: 146775971.7 | K90: 2018-10-12 | L90: 5662 | M90: INE702C01019
A91: APLLTD | B91: EQ | C91: 606.9 | D91: 607.3 | E91: 570 | F91: 584.2 | G91: 585 | H91: 598 | I91: 124483 | J91: 72516539.05 | K91: 2018-10-12 | L91: 11484 | M91: INE901L01018
A92: APOLLO | B92: EQ | C92: 111.9 | D92: 114 | E92: 110.1 | F92: 111.7 | G92: 112.7 | H92: 107.85 | I92: 24848 | J92: 2785266.65 | K92: 2018-10-12 | L92: 654 | M92: INE713T01010
A93: APOLLOHOSP | B93: EQ | C93: 1125.6 | D93: 1138.45 | E93: 1104.05 | F93: 1132 | G93: 1133.8 | H93: 1121.15 | I93: 553890 | J93: 622365843.6 | K93: 2018-10-12 | L93: 27490 | M93: INE437A01024
A94: APOLLOTYRE | B94: EQ | C94: 209 | D94: 219 | E94: 209 | F94: 217.05 | G94: 217.1 | H94: 206 | I94: 3747478 | J94: 809448744 | K94: 2018-10-12 | L94: 34625 | M94: INE438A01022
A95: APOLSINHOT | B95: EQ | C95: 600.05 | D95: 670.2 | E95: 595.8 | F95: 668.15 | G95: 670 | H95: 1117 | I95: 2690 | J95: 1780792.6 | K95: 2018-10-12 | L95: 239 | M95: INE451F01016
A96: APTECHT | B96: EQ | C96: 130.9 | D96: 136.45 | E96: 130.9 | F96: 132.7 | G96: 132.5 | H96: 129.85 | I96: 200518 | J96: 26790146.45 | K96: 2018-10-12 | L96: 2722 | M96: INE266F01018
A97: ARCHIDPLY | B97: EQ | C97: 38.9 | D97: 43.9 | E97: 38.9 | F97: 43.65 | G97: 43.5 | H97: 39.5 | I97: 43087 | J97: 1848837.5 | K97: 2018-10-12 | L97: 578 | M97: INE877I01016
A98: ARCHIES | B98: EQ | C98: 25.6 | D98: 26.7 | E98: 25.55 | F98: 25.75 | G98: 25.6 | H98: 25.05 | I98: 34377 | J98: 889188.8 | K98: 2018-10-12 | L98: 314 | M98: INE731A01020
A99: ARCOTECH | B99: BE | C99: 6.7 | D99: 6.7 | E99: 6.7 | F99: 6.7 | G99: 6.7 | H99: 7.05 | I99: 141721 | J99: 949530.7 | K99: 2018-10-12 | L99: 160 | M99: INE574I01035
A100: ARIES | B100: EQ | C100: 96.1 | D100: 101 | E100: 95.25 | F100: 99.5 | G100: 99.35 | H100: 94.75 | I100: 34946 | J100: 3459260.8 | K100: 2018-10-12 | L100: 709 | M100: INE298I01015
A101: ARIHANT | B101: EQ | C101: 31.95 | D101: 31.95 | E101: 26.05 | F101: 28.7 | G101: 28.75 | H101: 28.2 | I101: 4098 | J101: 115880.6 | K101: 2018-10-12 | L101: 51 | M101: INE413D01011
A102: ARIHANTSUP | B102: EQ | C102: 54.3 | D102: 63 | E102: 54.3 | F102: 57.25 | G102: 58.25 | H102: 57.5 | I102: 21067 | J102: 1241968 | K102: 2018-10-12 | L102: 863 | M102: INE643K01018
A103: ARMANFIN | B103: EQ | C103: 300 | D103: 329 | E103: 294 | F103: 310.6 | G103: 310.2 | H103: 294.05 | I103: 7617 | J103: 2346075.8 | K103: 2018-10-12 | L103: 244 | M103: INE109C01017
A104: AROGRANITE | B104: EQ | C104: 53.65 | D104: 54.5 | E104: 51.9 | F104: 54.1 | G104: 54.4 | H104: 52.3 | I104: 7117 | J104: 379377.4 | K104: 2018-10-12 | L104: 95 | M104: INE210C01013
A105: ARROWGREEN | B105: EQ | C105: 105 | D105: 114.05 | E105: 105 | F105: 113.45 | G105: 114 | H105: 108.65 | I105: 18303 | J105: 2061420.1 | K105: 2018-10-12 | L105: 365 | M105: INE570D01018
A106: ARROWTEX | B106: EQ | C106: 26 | D106: 26 | E106: 24.65 | F106: 24.75 | G106: 24.75 | H106: 24.95 | I106: 7821 | J106: 195448.7 | K106: 2018-10-12 | L106: 58 | M106: INE933J01015
A107: ARSHIYA | B107: EQ | C107: 30.3 | D107: 36.7 | E107: 30.3 | F107: 36.45 | G107: 36.7 | H107: 30.6 | I107: 272168 | J107: 9066728.15 | K107: 2018-10-12 | L107: 1087 | M107: INE968D01022
A108: ARSSINFRA | B108: EQ | C108: 22.3 | D108: 23.25 | E108: 22.3 | F108: 22.75 | G108: 22.65 | H108: 22.7 | I108: 8814 | J108: 201473.35 | K108: 2018-10-12 | L108: 70 | M108: INE267I01010
A109: ARVIND | B109: EQ | C109: 327.45 | D109: 335.75 | E109: 325 | F109: 329.8 | G109: 328.6 | H109: 321.5 | I109: 1550882 | J109: 512417067.4 | K109: 2018-10-12 | L109: 20857 | M109: INE034A01011
A110: ARVSMART | B110: EQ | C110: 111.25 | D110: 119 | E110: 111.25 | F110: 116.55 | G110: 117 | H110: 110.65 | I110: 15783 | J110: 1835948.25 | K110: 2018-10-12 | L110: 328 | M110: INE034S01021
A111: ASAHIINDIA | B111: EQ | C111: 300.15 | D111: 307.7 | E111: 296 | F111: 300.8 | G111: 298.15 | H111: 299.9 | I111: 9876 | J111: 2999702.95 | K111: 2018-10-12 | L111: 524 | M111: INE439A01020
A112: ASAHISONG | B112: EQ | C112: 238 | D112: 257.9 | E112: 238 | F112: 249.5 | G112: 245 | H112: 240.7 | I112: 3232 | J112: 814148.05 | K112: 2018-10-12 | L112: 101 | M112: INE228I01012
A113: ASAL | B113: EQ | C113: 39.65 | D113: 43.8 | E113: 39.65 | F113: 42.2 | G113: 42.2 | H113: 39.95 | I113: 9974 | J113: 414437.7 | K113: 2018-10-12 | L113: 209 | M113: INE900C01027
A114: ASHAPURMIN | B114: EQ | C114: 28.4 | D114: 30.8 | E114: 28.4 | F114: 30.45 | G114: 30.7 | H114: 28.6 | I114: 46656 | J114: 1399434.8 | K114: 2018-10-12 | L114: 507 | M114: INE348A01023
A115: ASHIANA | B115: EQ | C115: 123.7 | D115: 127.15 | E115: 120.5 | F115: 125.4 | G115: 125.9 | H115: 122.05 | I115: 34901 | J115: 4339602.15 | K115: 2018-10-12 | L115: 579 | M115: INE365D01021
A116: ASHIMASYN | B116: EQ | C116: 13.4 | D116: 14.2 | E116: 13.05 | F116: 13.8 | G116: 13.85 | H116: 13 | I116: 106412 | J116: 1469397.8 | K116: 2018-10-12 | L116: 479 | M116: INE440A01010
A117: ASHOKA | B117: EQ | C117: 109 | D117: 117 | E117: 108.95 | F117: 115.35 | G117: 115.25 | H117: 108.95 | I117: 645717 | J117: 73852908.25 | K117: 2018-10-12 | L117: 6889 | M117: INE442H01029
A118: ASHOKLEY | B118: EQ | C118: 113.7 | D118: 118.5 | E118: 112.55 | F118: 115.8 | G118: 116.25 | H118: 111.8 | I118: 22021483 | J118: 2561210269 | K118: 2018-10-12 | L118: 78293 | M118: INE208A01029
A119: ASIANHOTNR | B119: EQ | C119: 189.9 | D119: 195 | E119: 161.15 | F119: 189.9 | G119: 189.95 | H119: 171.1 | I119: 1848 | J119: 345988.35 | K119: 2018-10-12 | L119: 58 | M119: INE363A01022
A120: ASIANPAINT | B120: EQ | C120: 1233.9 | D120: 1265.95 | E120: 1233.9 | F120: 1261.2 | G120: 1260 | H120: 1219.05 | I120: 1000950 | J120: 1254431497 | K120: 2018-10-12 | L120: 40077 | M120: INE021A01026
A121: ASIANTILES | B121: EQ | C121: 169.4 | D121: 189.9 | E121: 166.8 | F121: 178 | G121: 177.1 | H121: 165.25 | I121: 143777 | J121: 25744666.7 | K121: 2018-10-12 | L121: 3291 | M121: INE022I01019
A122: ASPINWALL | B122: EQ | C122: 182 | D122: 187 | E122: 180 | F122: 181 | G122: 181 | H122: 175.2 | I122: 1472 | J122: 268844.05 | K122: 2018-10-12 | L122: 82 | M122: INE991I01015
A123: ASTEC | B123: EQ | C123: 548.95 | D123: 550.95 | E123: 534.6 | F123: 538.45 | G123: 534.6 | H123: 538.5 | I123: 13604 | J123: 7376908.9 | K123: 2018-10-12 | L123: 622 | M123: INE563J01010
A124: ASTERDM | B124: EQ | C124: 156 | D124: 162.25 | E124: 156 | F124: 159.5 | G124: 158.75 | H124: 159.7 | I124: 27645 | J124: 4418846.1 | K124: 2018-10-12 | L124: 1730 | M124: INE914M01019
A125: ASTRAL | B125: EQ | C125: 881 | D125: 894.65 | E125: 871.7 | F125: 888 | G125: 885.05 | H125: 867.65 | I125: 27944 | J125: 24745975.85 | K125: 2018-10-12 | L125: 3712 | M125: INE006I01046
A126: ASTRAMICRO | B126: EQ | C126: 78.7 | D126: 83.5 | E126: 78.7 | F126: 82.65 | G126: 82.9 | H126: 78.05 | I126: 217334 | J126: 17860310 | K126: 2018-10-12 | L126: 4331 | M126: INE386C01029
A127: ASTRAZEN | B127: EQ | C127: 1628.7 | D127: 1698 | E127: 1628.65 | F127: 1664.95 | G127: 1662.6 | H127: 1618.9 | I127: 16092 | J127: 26756502.6 | K127: 2018-10-12 | L127: 1382 | M127: INE203A01020
A128: ASTRON | B128: EQ | C128: 115.85 | D128: 118.9 | E128: 112.5 | F128: 117.8 | G128: 118 | H128: 114.35 | I128: 220618 | J128: 25785446.55 | K128: 2018-10-12 | L128: 3622 | M128: INE646X01014
A129: ATFL | B129: EQ | C129: 488.95 | D129: 517.9 | E129: 488.95 | F129: 501.15 | G129: 497 | H129: 488.6 | I129: 9903 | J129: 4967057.85 | K129: 2018-10-12 | L129: 593 | M129: INE209A01019
A130: ATLANTA | B130: EQ | C130: 20.9 | D130: 21.3 | E130: 20 | F130: 21.3 | G130: 21.3 | H130: 20.3 | I130: 63493 | J130: 1345010.85 | K130: 2018-10-12 | L130: 346 | M130: INE285H01022
A131: ATNINTER | B131: BE | C131: 0.2 | D131: 0.2 | E131: 0.2 | F131: 0.2 | G131: 0.2 | H131: 0.2 | I131: 1001 | J131: 200.2 | K131: 2018-10-12 | L131: 3 | M131: INE803A01027
A132: ATUL | B132: EQ | C132: 3120 | D132: 3230 | E132: 3120 | F132: 3207.6 | G132: 3170.85 | H132: 3102 | I132: 9481 | J132: 30029899.8 | K132: 2018-10-12 | L132: 1383 | M132: INE100A01010
A133: ATULAUTO | B133: EQ | C133: 296.05 | D133: 308.95 | E133: 296 | F133: 306.9 | G133: 306.75 | H133: 295.65 | I133: 19901 | J133: 6031767.75 | K133: 2018-10-12 | L133: 682 | M133: INE951D01028
A134: AUBANK | B134: EQ | C134: 598.35 | D134: 621.9 | E134: 583.3 | F134: 617.85 | G134: 619.9 | H134: 580.25 | I134: 465033 | J134: 282911651.6 | K134: 2018-10-12 | L134: 13680 | M134: INE949L01017
A135: AURIONPRO | B135: EQ | C135: 150 | D135: 157 | E135: 150 | F135: 155.4 | G135: 155.85 | H135: 150.9 | I135: 2040 | J135: 315112.75 | K135: 2018-10-12 | L135: 75 | M135: INE132H01018
A136: AUROPHARMA | B136: EQ | C136: 755 | D136: 764.65 | E136: 732 | F136: 735.5 | G136: 735.1 | H136: 756.25 | I136: 3541637 | J136: 2634000595 | K136: 2018-10-12 | L136: 74773 | M136: INE406A01037
A137: AUSOMENT | B137: EQ | C137: 53.3 | D137: 55.55 | E137: 52.95 | F137: 53.35 | G137: 53.1 | H137: 52.45 | I137: 4170 | J137: 224476.3 | K137: 2018-10-12 | L137: 273 | M137: INE218C01016
A138: AUTOAXLES | B138: EQ | C138: 1170 | D138: 1216 | E138: 1170 | F138: 1191 | G138: 1185 | H138: 1169.6 | I138: 27459 | J138: 32902628.1 | K138: 2018-10-12 | L138: 2865 | M138: INE449A01011
A139: AUTOIND | B139: EQ | C139: 60 | D139: 62 | E139: 58.15 | F139: 60 | G139: 60.55 | H139: 58.3 | I139: 16422 | J139: 995962.6 | K139: 2018-10-12 | L139: 321 | M139: INE718H01014
A140: AUTOLITIND | B140: EQ | C140: 39.8 | D140: 42.7 | E140: 39.75 | F140: 41.3 | G140: 41 | H140: 39.35 | I140: 7564 | J140: 313443.85 | K140: 2018-10-12 | L140: 148 | M140: INE448A01013
A141: AVADHSUGAR | B141: EQ | C141: 459.95 | D141: 471.15 | E141: 455 | F141: 471.15 | G141: 471.15 | H141: 448.75 | I141: 40821 | J141: 19135735.4 | K141: 2018-10-12 | L141: 786 | M141: INE349W01017
A142: AVANTIFEED | B142: EQ | C142: 381 | D142: 396.8 | E142: 379.1 | F142: 391.25 | G142: 391.35 | H142: 374.4 | I142: 375159 | J142: 146090460.1 | K142: 2018-10-12 | L142: 12049 | M142: INE871C01038
A143: AVTNPL | B143: EQ | C143: 27.3 | D143: 30 | E143: 27.3 | F143: 28.45 | G143: 28.25 | H143: 27.55 | I143: 78770 | J143: 2257154.3 | K143: 2018-10-12 | L143: 266 | M143: INE488D01021
A144: AXISBANK | B144: EQ | C144: 589.65 | D144: 602.25 | E144: 580.75 | F144: 584.9 | G144: 584.05 | H144: 580.85 | I144: 10689006 | J144: 6299981750 | K144: 2018-10-12 | L144: 151254 | M144: INE238A01034
A145: AXISCADES | B145: EQ | C145: 67.4 | D145: 79 | E145: 67 | F145: 70.4 | G145: 69.5 | H145: 66.4 | I145: 73100 | J145: 5214833.8 | K145: 2018-10-12 | L145: 1604 | M145: INE555B01013
A146: AXISGOLD | B146: EQ | C146: 2798 | D146: 2798 | E146: 2770.1 | F146: 2790 | G146: 2790 | H146: 2782.1 | I146: 57 | J146: 158443.55 | K146: 2018-10-12 | L146: 9 | M146: INF846K01347
A147: AXISNIFTY | B147: EQ | C147: 1063.14 | D147: 1069.09 | E147: 1062 | F147: 1069.09 | G147: 1069.09 | H147: 1043.66 | I147: 145 | J147: 154888.75 | K147: 2018-10-12 | L147: 6 | M147: INF846K01ZL0
A148: AYMSYNTEX | B148: EQ | C148: 31.05 | D148: 32.9 | E148: 31 | F148: 32.65 | G148: 32.5 | H148: 30.5 | I148: 7776 | J148: 249871.4 | K148: 2018-10-12 | L148: 59 | M148: INE193B01039
A149: BAFNAPHARM | B149: EQ | C149: 13.3 | D149: 13.45 | E149: 12.5 | F149: 13.05 | G149: 12.8 | H149: 12.4 | I149: 15472 | J149: 201781.55 | K149: 2018-10-12 | L149: 138 | M149: INE878I01014
A150: BAGFILMS | B150: BE | C150: 4.2 | D150: 4.4 | E150: 4.1 | F150: 4.4 | G150: 4.4 | H150: 4.2 | I150: 33034 | J150: 142209.55 | K150: 2018-10-12 | L150: 131 | M150: INE116D01028
A151: BAJAJ-AUTO | B151: EQ | C151: 2549.5 | D151: 2648.95 | E151: 2530.1 | F151: 2623.05 | G151: 2621.7 | H151: 2525.8 | I151: 510424 | J151: 1332296174 | K151: 2018-10-12 | L151: 31891 | M151: INE917I01010
A152: BAJAJCORP | B152: EQ | C152: 406.4 | D152: 425.65 | E152: 395 | F152: 398.5 | G152: 396 | H152: 401.25 | I152: 40487 | J152: 16350909.1 | K152: 2018-10-12 | L152: 4505 | M152: INE933K01021
A153: BAJAJELEC | B153: EQ | C153: 498.9 | D153: 508 | E153: 495.55 | F153: 498.65 | G153: 501.8 | H153: 491.3 | I153: 150556 | J153: 75660546.75 | K153: 2018-10-12 | L153: 5925 | M153: INE193E01025
A154: BAJAJFINSV | B154: EQ | C154: 5698.5 | D154: 5910.2 | E154: 5680.1 | F154: 5813.55 | G154: 5774 | H154: 5592 | I154: 297224 | J154: 1728650774 | K154: 2018-10-12 | L154: 35274 | M154: INE918I01018
A155: BAJAJHIND | B155: EQ | C155: 10.4 | D155: 10.7 | E155: 10.15 | F155: 10.35 | G155: 10.35 | H155: 9.95 | I155: 6774152 | J155: 70575211.1 | K155: 2018-10-12 | L155: 6784 | M155: INE306A01021
A156: BAJAJHLDNG | B156: EQ | C156: 2619 | D156: 2694.65 | E156: 2615.05 | F156: 2635.35 | G156: 2632.1 | H156: 2600.05 | I156: 5835 | J156: 15433474.6 | K156: 2018-10-12 | L156: 1045 | M156: INE118A01012
A157: BAJFINANCE | B157: EQ | C157: 2227.25 | D157: 2320 | E157: 2227.25 | F157: 2287.35 | G157: 2286 | H157: 2162.1 | I157: 3665577 | J157: 8376744417 | K157: 2018-10-12 | L157: 145259 | M157: INE296A01024
A158: BALAJITELE | B158: EQ | C158: 105.6 | D158: 110.7 | E158: 105.15 | F158: 109.95 | G158: 110.7 | H158: 105.3 | I158: 109446 | J158: 11927329.25 | K158: 2018-10-12 | L158: 776 | M158: INE794B01026
A159: BALAMINES | B159: EQ | C159: 458.4 | D159: 481 | E159: 458.35 | F159: 471.1 | G159: 468.15 | H159: 458.15 | I159: 13288 | J159: 6288466.9 | K159: 2018-10-12 | L159: 1167 | M159: INE050E01027
A160: BALKRISHNA | B160: EQ | C160: 52.3 | D160: 53.35 | E160: 51.5 | F160: 52.25 | G160: 52.5 | H160: 51.15 | I160: 8659 | J160: 455402.7 | K160: 2018-10-12 | L160: 128 | M160: INE875R01011
A161: BALKRISIND | B161: EQ | C161: 1019.25 | D161: 1067.8 | E161: 1019.25 | F161: 1054.75 | G161: 1049 | H161: 1013.2 | I161: 708237 | J161: 744362074.4 | K161: 2018-10-12 | L161: 18699 | M161: INE787D01026
A162: BALLARPUR | B162: EQ | C162: 6.25 | D162: 6.35 | E162: 6.15 | F162: 6.3 | G162: 6.3 | H162: 6.15 | I162: 499561 | J162: 3124887.85 | K162: 2018-10-12 | L162: 562 | M162: INE294A01037
A163: BALMLAWRIE | B163: EQ | C163: 189.8 | D163: 191.9 | E163: 187 | F163: 189.8 | G163: 191.5 | H163: 187.65 | I163: 37705 | J163: 7152034.15 | K163: 2018-10-12 | L163: 2025 | M163: INE164A01016
A164: BALPHARMA | B164: EQ | C164: 77.65 | D164: 80.7 | E164: 77.6 | F164: 79.35 | G164: 79.5 | H164: 76.95 | I164: 14627 | J164: 1165442 | K164: 2018-10-12 | L164: 317 | M164: INE083D01012
A165: BALRAMCHIN | B165: EQ | C165: 92.1 | D165: 97.4 | E165: 92.05 | F165: 95.35 | G165: 95.15 | H165: 92.3 | I165: 9260997 | J165: 881839679 | K165: 2018-10-12 | L165: 58157 | M165: INE119A01028
A166: BANARBEADS | B166: EQ | C166: 49 | D166: 50.4 | E166: 49 | F166: 49 | G166: 49 | H166: 49 | I166: 2147 | J166: 107222 | K166: 2018-10-12 | L166: 7 | M166: INE655B01011
A167: BANARISUG | B167: EQ | C167: 1484 | D167: 1655.65 | E167: 1484 | F167: 1584.5 | G167: 1590 | H167: 1498.9 | I167: 2120 | J167: 3370806.65 | K167: 2018-10-12 | L167: 303 | M167: INE459A01010
A168: BANCOINDIA | B168: EQ | C168: 182.3 | D168: 192.15 | E168: 177.65 | F168: 186.45 | G168: 186.25 | H168: 180.9 | I168: 61820 | J168: 11424912.9 | K168: 2018-10-12 | L168: 2701 | M168: INE213C01025
A169: BANDHANBNK | B169: EQ | C169: 475 | D169: 485.85 | E169: 463 | F169: 467.8 | G169: 464.85 | H169: 470.2 | I169: 1559358 | J169: 740760733.9 | K169: 2018-10-12 | L169: 38957 | M169: INE545U01014
A170: BANG | B170: EQ | C170: 52 | D170: 52.95 | E170: 49.9 | F170: 51.5 | G170: 51.7 | H170: 50.95 | I170: 8818 | J170: 450694.1 | K170: 2018-10-12 | L170: 96 | M170: INE863I01016
A171: BANKBARODA | B171: EQ | C171: 96.9 | D171: 97.75 | E171: 94.8 | F171: 96.5 | G171: 96.45 | H171: 93.95 | I171: 23768732 | J171: 2288404642 | K171: 2018-10-12 | L171: 79043 | M171: INE028A01039
A172: BANKBEES | B172: EQ | C172: 2562.04 | D172: 2598.5 | E172: 2562.04 | F172: 2590.3 | G172: 2587.19 | H172: 2528.75 | I172: 8259 | J172: 21360081.11 | K172: 2018-10-12 | L172: 540 | M172: INF732E01078
A173: BANKINDIA | B173: EQ | C173: 76.55 | D173: 78.55 | E173: 76.5 | F173: 77.15 | G173: 77 | H173: 75.6 | I173: 4733008 | J173: 366552419.6 | K173: 2018-10-12 | L173: 14921 | M173: INE084A01016
A174: BANSWRAS | B174: EQ | C174: 68.35 | D174: 72 | E174: 67.1 | F174: 69.9 | G174: 70 | H174: 66.1 | I174: 1315 | J174: 90505.85 | K174: 2018-10-12 | L174: 71 | M174: INE629D01012
A175: BARTRONICS | B175: EQ | C175: 7 | D175: 7.4 | E175: 7 | F175: 7 | G175: 7.1 | H175: 7 | I175: 9769 | J175: 68982.2 | K175: 2018-10-12 | L175: 55 | M175: INE855F01034
A176: BASF | B176: EQ | C176: 1696.95 | D176: 1709 | E176: 1654.45 | F176: 1699.8 | G176: 1691 | H176: 1663.1 | I176: 17652 | J176: 29856259.95 | K176: 2018-10-12 | L176: 888 | M176: INE373A01013
A177: BASML | B177: EQ | C177: 209.25 | D177: 221.9 | E177: 207.05 | F177: 208.35 | G177: 208.1 | H177: 200 | I177: 1310 | J177: 283278.7 | K177: 2018-10-12 | L177: 47 | M177: INE186H01014
A178: BATAINDIA | B178: EQ | C178: 910.85 | D178: 943.85 | E178: 910.05 | F178: 921.05 | G178: 925 | H178: 901.7 | I178: 1503189 | J178: 1396934204 | K178: 2018-10-12 | L178: 41335 | M178: INE176A01028
A179: BAYERCROP | B179: EQ | C179: 4325.8 | D179: 4395 | E179: 4280 | F179: 4363.7 | G179: 4283.4 | H179: 4336.5 | I179: 8952 | J179: 39011245.4 | K179: 2018-10-12 | L179: 1585 | M179: INE462A01022
A180: BBL | B180: EQ | C180: 1138.3 | D180: 1167.45 | E180: 1125.15 | F180: 1129.7 | G180: 1130 | H180: 1121.6 | I180: 15172 | J180: 17304574.7 | K180: 2018-10-12 | L180: 844 | M180: INE464A01028
A181: BBTC | B181: EQ | C181: 1285 | D181: 1366 | E181: 1285 | F181: 1325.6 | G181: 1323.75 | H181: 1267.25 | I181: 295654 | J181: 393302076.9 | K181: 2018-10-12 | L181: 16890 | M181: INE050A01025
A182: BCG | B182: EQ | C182: 4.55 | D182: 4.75 | E182: 4.45 | F182: 4.55 | G182: 4.5 | H182: 4.45 | I182: 572352 | J182: 2610779.4 | K182: 2018-10-12 | L182: 417 | M182: INE425B01027
A183: BDL | B183: EQ | C183: 283 | D183: 287 | E183: 279.05 | F183: 282.9 | G183: 282 | H183: 282.65 | I183: 10783 | J183: 3057723.25 | K183: 2018-10-12 | L183: 1006 | M183: INE171Z01018
A184: BEARDSELL | B184: EQ | C184: 24.5 | D184: 24.75 | E184: 23.5 | F184: 24.55 | G184: 24.75 | H184: 22.85 | I184: 7044 | J184: 171767.4 | K184: 2018-10-12 | L184: 50 | M184: INE520H01022
A185: BEDMUTHA | B185: BE | C185: 22.25 | D185: 22.65 | E185: 21.35 | F185: 21.55 | G185: 21.55 | H185: 21.6 | I185: 6923 | J185: 153703.05 | K185: 2018-10-12 | L185: 21 | M185: INE844K01012
A186: BEL | B186: EQ | C186: 86 | D186: 87.4 | E186: 84.8 | F186: 85.55 | G186: 85.6 | H186: 84.9 | I186: 7673912 | J186: 660389337.5 | K186: 2018-10-12 | L186: 34689 | M186: INE263A01024
A187: BEML | B187: EQ | C187: 589.4 | D187: 607.5 | E187: 588.55 | F187: 594.8 | G187: 592.5 | H187: 585.35 | I187: 1025434 | J187: 613264434.2 | K187: 2018-10-12 | L187: 29663 | M187: INE258A01016
A188: BEPL | B188: EQ | C188: 130.25 | D188: 135 | E188: 130.2 | F188: 132.05 | G188: 131.5 | H188: 128.75 | I188: 429328 | J188: 56971740.1 | K188: 2018-10-12 | L188: 4299 | M188: INE922A01025
A189: BERGEPAINT | B189: EQ | C189: 280.55 | D189: 285.9 | E189: 279.15 | F189: 283.95 | G189: 285 | H189: 274.75 | I189: 875819 | J189: 247704344.1 | K189: 2018-10-12 | L189: 17636 | M189: INE463A01038
A190: BFINVEST | B190: EQ | C190: 229.9 | D190: 252.5 | E190: 229.9 | F190: 247 | G190: 246 | H190: 227.15 | I190: 176135 | J190: 43119068.1 | K190: 2018-10-12 | L190: 4911 | M190: INE878K01010
A191: BFUTILITIE | B191: EQ | C191: 204.7 | D191: 217.15 | E191: 204 | F191: 213.1 | G191: 212.95 | H191: 201.55 | I191: 321418 | J191: 68352250.15 | K191: 2018-10-12 | L191: 6206 | M191: INE243D01012
A192: BGLOBAL | B192: BE | C192: 2.25 | D192: 2.45 | E192: 2.25 | F192: 2.4 | G192: 2.4 | H192: 2.35 | I192: 2335 | J192: 5519.25 | K192: 2018-10-12 | L192: 10 | M192: INE224M01013
A193: BGRENERGY | B193: EQ | C193: 52.5 | D193: 59.3 | E193: 52.5 | F193: 56.65 | G193: 56.2 | H193: 52.15 | I193: 174831 | J193: 9842105.95 | K193: 2018-10-12 | L193: 2468 | M193: INE661I01014
A194: BHAGERIA | B194: EQ | C194: 276 | D194: 288.8 | E194: 276 | F194: 285.3 | G194: 284.1 | H194: 276.5 | I194: 17863 | J194: 5073869.45 | K194: 2018-10-12 | L194: 645 | M194: INE354C01027
A195: BHAGYANGR | B195: BE | C195: 28.3 | D195: 29.4 | E195: 27.05 | F195: 29.05 | G195: 29 | H195: 28.3 | I195: 12316 | J195: 357116.55 | K195: 2018-10-12 | L195: 73 | M195: INE458B01036
A196: BHAGYAPROP | B196: EQ | C196: 24.25 | D196: 24.25 | E196: 21.85 | F196: 23 | G196: 23 | H196: 22.85 | I196: 11635 | J196: 258338.95 | K196: 2018-10-12 | L196: 22 | M196: INE363W01018
A197: BHANDARI | B197: EQ | C197: 1.8 | D197: 1.9 | E197: 1.8 | F197: 1.8 | G197: 1.8 | H197: 1.8 | I197: 195087 | J197: 357573.05 | K197: 2018-10-12 | L197: 160 | M197: INE474E01029
A198: BHARATFIN | B198: EQ | C198: 991.25 | D198: 1025.8 | E198: 991.25 | F198: 1021.2 | G198: 1019.4 | H198: 990.8 | I198: 1254699 | J198: 1274288238 | K198: 2018-10-12 | L198: 11710 | M198: INE180K01011
A199: BHARATFORG | B199: EQ | C199: 560 | D199: 584 | E199: 559.1 | F199: 573.6 | G199: 568 | H199: 555.25 | I199: 1420975 | J199: 817830612.4 | K199: 2018-10-12 | L199: 24426 | M199: INE465A01025
A200: BHARATGEAR | B200: EQ | C200: 158.2 | D200: 165 | E200: 158.2 | F200: 163.75 | G200: 164 | H200: 156.7 | I200: 18082 | J200: 2957398.2 | K200: 2018-10-12 | L200: 602 | M200: INE561C01019
... 1438 more rows
